Workbook

Sheet モデルのしくみ
M2: 2020.03.02版

Sheet Dashboard
B2: 中東石油開発プロジェクト | F2: ABC石油開発株式会社 | J2: このシートで前提条件や感度分析のコントロールを行います。
Q3: ① 感度分析-１
B4: 前提条件 | D4: 原油のみ生産のケース | L4: 計算結果 | M4: =TODAY() -> 2020-03-10 | Q4: ・セキュリティの警告：コンテンツの有効化→表示→マクロ→感度分析を選択→実行
Q5: ・下表の感度分析はマクロでセットされています。
B6: 鉱区の名称 | D6: 中東A国海上鉱区 | F6: Block-11 | G6: 鉱区持分 | J6: 感度分析 | L6: 経済性指標 | N6: プロジェクト | O6: ABC石油 | Q6: ・好みの組み合わせに応じたマクロを作成しておくと便利です。
B7: パートナー | D7: ABC石油開発株式会社 | F7: オペレーター | G7: 0.6 | J7: 1
D8: XYZ Oil Inc. | F8: ノンオペレーター | G8: 0.4 | J8: 1 | L8: 全期間 | M8: ROR | N8: =プロジェクト収支!E33 -> 0.1459504278 | O8: ='自社収支 '!E38 -> 0.1452773247 | Q8: マクロ作成用の作業セル | T8: 条件変数 | U8: 目的１ | V8: 目的２
M9: NPV （百万ドル） | N9: =プロジェクト収支!AF30 -> 475.3992745 | O9: ='自社収支 '!E39 -> 283.130634 | T9: 初日産 | U9: ROR | V9: NTV
B10: 鉱区条件 | C10: Royalty | G10: 0.1 | J10: 1 | M10: FIRR | O10: ='自社収支 '!E40 -> 0.1931862379 | T10: 条件 | U10: 計算値 | V10: 計算値
C11: Maximum Cost Recovery | F11: Oil | G11: 0.35 | J11: 1 | M11: 投資回収期間（年） | N11: =プロジェクト収支!P38 -> 9.864364777 | T11: =Q17 -> 1 | U11: =O8 -> 0.1452773247 | V11: =O9 -> 283.130634
F12: Gas | G12: 0.4 | J12: 1 | L12: 開発以降 | M12: ROR | N12: =プロジェクト収支!I33 -> 0.3125855545 | O12: ='自社収支 '!I38 -> 0.3116967931 | Q12: 感度分析（自社のROR) | V12: 感度分析（自社のNPV：百万ドル)
C13: Profit Sharing | E13: Oil Tier-1 | F13: 5万BDまで | G13: 0.3 | J13: 1 | N13: 百万バレル | O13: 百万バレル | R13: 初日産 | S13: リグレート | T13: 生産設備 | W13: 初日産 | X13: リグレート | Y13: 生産設備
E14: Tier-2 | F14: 5万BD超 | G14: 0.2 | J14: 1 | M14: 原油生産量 | N14: =生産と生産額!AF35 -> 103.901969
E15: Gas | F15: 全量 | G15: 0.3 | J15: 1 | M15: 権益原油取得量 | N15: =プロジェクト収支!AF35 -> 39.93209408 | O15: =N15*G7 -> 23.95925645 | Q15: 0.8 | R15: 0.121569026 | S15: 0.1607144939 | T15: 0.1540443846 | V15: 0.8 | W15: 192.7564574 | X15: 302.7192466 | Y15: 297.2064168
C16: 石油収入税 | G16: 0.5 | J16: 1 | Q16: 0.9 | R16: 0.1339424443 | S16: 0.1526151408 | T16: 0.1495684873 | V16: 0.9 | W16: 238.1504632 | X16: 292.9249403 | Y16: 290.1685254
C17: ボーナス | E17: サインボーナス | G17: 10 | H17: $ million | J17: 1 | Q17: 1 | R17: 0.1452773247 | S17: 0.1452773247 | T17: 0.1452773247 | V17: 1 | W17: 283.130634 | X17: 283.130634 | Y17: 283.130634
E18: 発見ボーナス | G18: 3 | H18: $ million | J18: 1 | L18: 収支（名目額） | N18: 百万ドル | O18: 百万ドル | Q18: 1.1 | R18: 0.1560045257 | S18: 0.1385879511 | T18: 0.1411615306 | V18: 1.1 | W18: 328.2824996 | X18: 273.3363277 | Y18: 276.0927426
E19: 生産移行ボーナス | G19: 5 | H19: $ million | J19: 1 | L19: 費用 | M19: ボーナス | N19: =作業と支出!AF30 -> 18 | O19: ='自社収支 '!AF15 -> 10.8 | Q19: 1.2 | R19: 0.1662093689 | S19: 0.1324562357 | T19: 0.1372120979 | V19: 1.2 | W19: 373.5831065 | X19: 263.5420214 | Y19: 269.0548512
M20: 探鉱費 | N20: =作業と支出!AF37 -> 236.1345889 | O20: =N20*G7 -> 141.6807533
B21: 経済条件 | C21: インフレーション | G21: 0.015 | H21: 年率 | J21: 1 | M21: 開発費 | N21: =作業と支出!AF60 -> 809.2118713 | O21: =N21*G7 -> 485.5271228 | Q21: ② 感度分析-２ | S21: ソルバーによる必要条件の計算
C22: 初期価格 | E22: 原油 | G22: 75 | H22: ドル/バレル | J22: 1 | M22: 生産操業費 | N22: =作業と支出!AF73 -> 653.784021 | O22: =N22*G7 -> 392.2704126 | Q22: ・データ → ソルバーを選択
E23: ガス | G23: 3 | H23: ドル/MMBtu | J23: 1 | M23: 本社管理費 | N23: =プロジェクト収支!AF26 -> 9.454190688 | O23: =N23 -> 9.454190688 | Q23: ・条件変数を選び、J列のセルをソルバーの「変数」に指定する。
D24: エスカレーション | G24: 0.015 | H24: 年率 | J24: 1 | M24: 合計 | N24: =SUM(N19:N23) -> 1726.584672 | O24: =SUM(O19:O23) -> 1039.732479 | Q24: ・下記の作業用セルに目標を指定し、「目標値を入力」する。
C25: 初日産（原油） | G25: 2500 | H25: バレル/日/坑 | J25: 1 | Q25: ・セルT27をソルバーの目的セルに指定し、「最小にする」を実行する。
C26: リグレート | G26: 200 | H26: 千ドル/日 | J26: 1 | L26: 収入 | M26: コスト原油 | N26: =プロジェクト収支!AF21 -> 1633.983035 | O26: =N26*$G$7 -> 980.3898209
D27: 付帯費用比率（掘削費） | G27: 1 | J27: 1 | M27: プロフィット原油 | N27: =プロジェクト収支!AF23 -> 2435.957043 | O27: =N27*$G$7 -> 1461.574226 | Q27: 目的変数 | R27: 計算値 | S27: 目標値 | T27: 目的セル
C28: 生産設備費（「生産施設＋坑井」の総費用） | J28: 1 | M28: 合計 | N28: =N26+N27 -> 4069.940078 | O28: =O26+O27 -> 2441.964047 | Q28: ROR | R28: =O8 -> 0.1452773247 | S28: 0.15 | T28: =(S28-R28)^2 -> 2.230366173e-05
C29: 生産操業費 | E29: 固定比率 | F29: 設備費× | G29: 0.02 | J29: 1 | L29: 税 | M29: 石油収入税 | N29: =プロジェクト収支!AF24 -> 1217.978522 | O29: 730.787113
E30: 生産高比率×設備費× | G30: 0.01 | J30: 1 | M30: 差し引き計 | N30: =N28-N29 -> 2851.961557 | O30: =O28-O29 -> 1711.176934 | Q30: 自社のROR=15%を達成するための条件 | U30: 実数
C31: パイプイン使用料 | G31: 1 | H31: ドル/バレル | J31: 1 | Q31: 変数セル | S31: 基準ケース対比の解 | V31: 基準
C32: 本社管理費 | G32: 300 | H32: ドル/年 | J32: 1 | L32: ネット収支 | M32: 借入金なし | N32: =プロジェクト収支!AF28 -> 1125.376885 | O32: ='自社収支 '!AF30 -> 671.4444545 | Q32: 埋蔵量（初日産の変化） | T32: 1.043380899 | U32: =N14*T32 -> 108.4093298 | V32: =N14 -> 103.901969 | W32: 百万バレル
M33: 借入金あり | O33: ='自社収支 '!AF33 -> 548.504601 | Q33: リグレート | T33: 0.9345513177 | U33: =G26*T33 -> 186.9102635 | V33: =G26 -> 200 | W33: 千ドル/日
B34: 財務条件 | C34: 借入金利 | G34: 0.05 | H34: 年率 | J34: 1 | Q34: 生産設備費 | T34: 0.8901728621 | U34: 311.5605017 | V34: =作業と支出!AF54 -> 350 | W34: 百万ドル
C35: 返済期間 | G35: 7 | H35: 年 | M35: 総借入額 | O35: ='自社収支 '!AF22 -> 457.3326255 | Q35: PS比率 Tier-1 | T35: 1.055097927 | U35: =G13*T35 -> 0.316529378 | V35: =G13 -> 0.3
C36: 割引率 | G36: 0.05 | H36: 年率 | J36: 1 | M36: 支払い金利 | O36: ='自社収支 '!AF23 -> 122.9398535
C37: 資本回収係数 | E37: (上記による計算値） | G37: =G34/(1-(1+G34)^(-1*G35)) -> 0.1728198184 | H37: 年率
B39: 感度分析を行うため、上記の前提条件「GXX＊JXX」をモデルの該当箇所にリンクする。

Sheet 作業と支出
B2: １．作業工程のシナリオ
C4: 最初にプロジェクト全期間の作業シナリオと工程を整理する。 | I4: 作業は、探鉱計画の作成→埋蔵量と生産プロファイルの想定→開発計画の想定という流れで進む。
E5: 探鉱期間→ | I5: 開発期間→ | L5: 生産期間→
E6: 2021 | F6: =E6+1 -> 2022 | G6: =F6+1 -> 2023 | H6: =G6+1 -> 2024 | I6: =H6+1 -> 2025 | J6: =I6+1 -> 2026 | K6: =J6+1 -> 2027 | L6: =K6+1 -> 2028 | M6: =L6+1 -> 2029 | N6: =M6+1 -> 2030 | O6: 2031 | P6: 2032 | Q6: 2033 | R6: 2034 | S6: 2035 | T6: 2036 | U6: 2037 | V6: 2038 | W6: 2039 | X6: 2040 | Y6: 2041 | Z6: 2042 | AA6: 2043 | AB6: 2044 | AC6: 2045 | AD6: 2046 | AE6: 2046 | AF6: 合計
C7: 探鉱作業
D8: 物理探鉱と解釈 | E8: 第１次 | G8: 第２次 | L8: ・第１次キャンペーン＋第１次試掘終了後追加震探を実施。
D9: 試掘・探掘・評価井 | F9: 第１次 | G9: 第２次 | H9: 評価井 | L9: ・第１次キャンペーンでは３坑中１坑で油兆あり、テストするも少量。 | T9: 第２次キャンペーンでは２坑で石油発見、評価井３坑を掘削。
C10: 開発作業
D11: 生産設備 | I11: 設計 | J11: 生産設備建設 | AE11: 設備撤去
D12: 生産井 | I12: 設計 | J12: 生産井掘削 | M12: →合計１２坑 | P12: 改修 | R12: In-fill well掘削 | AE12: 廃坑
C13: 生産作業
D14: 生産・操業 | L14: 生産開始：4坑ずつ、半年間隔で生産開始 | AD14: 操業赤字化
B16: ２．ボーナスと探鉱投資額の計算 | I16: ⇒ Dashboardでセットする前提条件 | O16: → | P16: 項目別の費用は外注費や応援要員の費用。現地駐在員・社員の費用は「現地管理費」に含む。
C17: ・前提条件
C18: ・ ボーナス：契約に沿って支払い（確定額で、インフレには左右されない。）
C19: ・ 探鉱費
C20: 1. 地震探鉱費ほか | G20: 第1次キャンペーン： | H20: 15 | I20: 百万ドル | M20: 第2次キャンペーン： | N20: 5 | O20: 百万ドル | Q20: 作業の種類（2次元、3次元)と規模（測線長、面積）、作業単価を想定し、総費用を推定する。
C21: 2. 試探掘費 | Q21: １次キャンペーン | T21: ２次キャンペーン
D22: 1) 試掘井 | E22: ドライホール：50日＊２坑＋成功井：（50日＋テスト20日）＊1坑+往航3日（復航はゼロとする） | Q22: =3+50*2+50+20 -> 173 | R22: 日 | T22: =3+(50+20)*2 -> 143 | U22: 日
D23: 2) 評価井 | E23: [50日＊９０％（習熟率）＋テスト15日（２ゾーン）]＊3坑+モブ3日（デモブはゼロ） | Q23: =3+(45+15)*3 -> 183 | R23: 日
D24: 3) 掘削費 | E24: 掘削費日額＊坑井数
G25: 千ドル/日 | J25: 千ドル/日 | L25: 千ドル/日 | AF25: 2046年までの合計
D26: 坑井掘削費用：日額 | F26: リグレート | G26: =Dashboard!G26*Dashboard!J26 -> 200 | I26: ＋ 付帯費用 | J26: =Dashboard!G27*Dashboard!J27 -> 1 | K26: 合計 | L26: =G26*(1+J26) -> 400 | O26: 付帯費用＝ | P26: ヘリコプター、サプライボート、各種技術サービス、ケータリング、その他の費用 | AF26: ↓
E27: 探鉱期間→ | I27: 開発期間→ | L27: 生産期間→ | AE27: 廃山ケース
C28: ・計算結果（百万ドル） | E28: 2021 | F28: =E28+1 -> 2022 | G28: =F28+1 -> 2023 | H28: 2024 | I28: 2025 | J28: 2026 | K28: 2027 | L28: 2028 | M28: 2029 | N28: 2030 | O28: 2031 | P28: 2032 | Q28: 2033 | R28: 2034 | S28: 2035 | T28: 2036 | U28: 2037 | V28: 2038 | W28: 2039 | X28: 2040 | Y28: 2041 | Z28: 2042 | AA28: 2043 | AB28: 2044 | AC28: =AB28+1 -> 2045 | AD28: =AC28+1 -> 2046 | AE28: =AC28+1 -> 2046 | AF28: 合計
E29: サインボーナス | I29: 商業発見ボーナス | L29: 生産移行ボーナス
C30: ボーナス | E30: 10 | I30: 3 | L30: 5 | AF30: =SUM(E30:AC30)+AE30 -> 18
C31: 探鉱費 | D31: 地震探鉱費ほか | E31: =H20 -> 15 | G31: =N20 -> 5 | AF31: 20
C32: （実質） | D32: 試掘井掘削費 | F32: =$L$26*Q22/1000 -> 69.2 | G32: =$L$26*T22/1000 -> 57.2 | AF32: 126.4
D33: 評価井掘削費 | H33: =$L$26*Q23/1000 -> 73.2 | AF33: 73.2
D34: スタディ費 | F34: 0.5 | G34: 0.5 | H34: 1.5 | AF34: 2.5
D35: 現地管理費 | E35: 1.5 | F35: 2 | G35: 2 | H35: 2 | AF35: 7.5
D36: （探鉱費計） | E36: =SUM(E31:E35) -> 16.5 | F36: =SUM(F31:F35) -> 71.7 | G36: =SUM(G31:G35) -> 64.7 | H36: =SUM(H31:H35) -> 76.7 | AF36: 229.6
D37: （計：インフレ含む名目値） | E37: =E36*((1+生産と生産額!$O$31)^(E28-2021)) -> 16.5 | F37: =F36*((1+生産と生産額!$O$31)^(F28-2021)) -> 72.7755 | G37: =G36*((1+生産と生産額!$O$31)^(G28-2021)) -> 66.6555575 | H37: =H36*((1+生産と生産額!$O$31)^(H28-2021)) -> 80.20353136 | I37: =I36*((1+生産と生産額!$O$31)^(I28-2021)) -> 0 | J37: =J36*((1+生産と生産額!$O$31)^(J28-2021)) -> 0 | K37: =K36*((1+生産と生産額!$O$31)^(K28-2021)) -> 0 | L37: =L36*((1+生産と生産額!$O$31)^(L28-2021)) -> 0 | M37: =M36*((1+生産と生産額!$O$31)^(M28-2021)) -> 0 | N37: =N36*((1+生産と生産額!$O$31)^(N28-2021)) -> 0 | O37: =O36*((1+生産と生産額!$O$31)^(O28-2021)) -> 0 | P37: =P36*((1+生産と生産額!$O$31)^(P28-2021)) -> 0 | Q37: =Q36*((1+生産と生産額!$O$31)^(Q28-2021)) -> 0 | R37: =R36*((1+生産と生産額!$O$31)^(R28-2021)) -> 0 | S37: =S36*((1+生産と生産額!$O$31)^(S28-2021)) -> 0 | T37: =T36*((1+生産と生産額!$O$31)^(T28-2021)) -> 0 | U37: =U36*((1+生産と生産額!$O$31)^(U28-2021)) -> 0 | V37: =V36*((1+生産と生産額!$O$31)^(V28-2021)) -> 0 | W37: =W36*((1+生産と生産額!$O$31)^(W28-2021)) -> 0 | X37: =X36*((1+生産と生産額!$O$31)^(X28-2021)) -> 0 | Y37: =Y36*((1+生産と生産額!$O$31)^(Y28-2021)) -> 0 | Z37: =Z36*((1+生産と生産額!$O$31)^(Z28-2021)) -> 0 | AA37: =AA36*((1+生産と生産額!$O$31)^(AA28-2021)) -> 0 | AB37: =AB36*((1+生産と生産額!$O$31)^(AB28-2021)) -> 0 | AC37: =AC36*((1+生産と生産額!$O$31)^(AC28-2021)) -> 0 | AD37: =AD36*((1+生産と生産額!$O$31)^(AD28-2021)) -> 0 | AE37: 0 | AF37: 236.1345889
B39: ３．開発投資額の計算
C40: ・前提条件
C41: １. 生産井掘削費 | E41: 合計 ５７９日
D42: 1) 掘削日数 48日/１坑= | E42: [45日（評価井基準）＊(3800m/4000m：生産層までの掘削)*80％（習熟率）＊120%（傾斜掘りによる平均屈伸長の増加）＋7日（坑井仕上げ）]*12坑 | V42: =45*(3800/4000)*0.8*1.2+7 -> 48.04
D43: 掘削日数＝ | E43: ３日＋12坑×48日/坑＝579日 | J43: 135 | K43: 365 | L43: 80 | M43: =J43+K43+L43 -> 580 | N43: 日（ラウンド） | V43: =3+V42*12 -> 579.48
D44: 2） 生産井掘削費日額 | J44: =L26*(1-N44) -> 360 | K44: 千ドル/日 | M44: 割引率 | N44: 0.1 | O44: → | P44: 生産井の掘削では、評価井に比べて、a. 掘り止め深度がやや浅くなる、b.習熟度が増す、c.傾斜掘りとなる、d.長期の契約のため割引がある。
D45: 3) 坑井改修、廃坑作業 | J45: =L26 -> 400 | K45: 千ドル/日 | O45: → | P45: 坑井改修や廃坑作業では作業期間が短いため、リグレートの割引なし。
C46: → | D46: 生産終了の翌年に廃山費用を計上（AD33とAD35)。
C47: ２. 設備建設費
D48: 1) FEED費用 | E48: 10 | F48: 百万ドル | J48: 2025 | K48: 2026 | L48: 合計
D49: 2) 生産設備建設費 | J49: 120 | K49: 230 | L49: =J49+K49 -> 350 | M49: 百万ドル | O49: → | P49: 廃山費用：設備建設費に対する比率 → | U49: 0.05
D50: 3) 建設費の生産規模による変化率 | H50: 初日産に対する比率： | I50: =生産と生産額!F16/Dashboard!G25 -> 1 | J50: の | L50: 0.5 | M50: 乗 | N50: =I50^L50 -> 1 | O50: → | P50: 生産設備の建設費は生産規模に応じて変化すると考える。標準的には1/2乗～1/3乗程度。
E51: 探鉱期間→ | I51: 開発期間→ | L51: 生産期間→ | AE51: 廃山ケース
C52: ・計算結果（百万ドル） | E52: 2021 | F52: =E52+1 -> 2022 | G52: =F52+1 -> 2023 | H52: 2024 | I52: 2025 | J52: 2026 | K52: 2027 | L52: 2028 | M52: 2029 | N52: 2030 | O52: 2031 | P52: 2032 | Q52: 2033 | R52: 2034 | S52: 2035 | T52: 2036 | U52: 2037 | V52: 2038 | W52: =V52+1 -> 2039 | X52: 2040 | Y52: 2041 | Z52: 2042 | AA52: 2043 | AB52: 2044 | AC52: =AB52+1 -> 2045 | AD52: =AC52+1 -> 2046 | AE52: =AC52+1 -> 2046 | AF52: 合計
C53: 開発費 | D53: FEED | I53: =E48*Dashboard!J28 -> 10 | AF53: =SUM(E53:AC53)+AE53 -> 10
C54: （実質） | D54: 生産施設建設 | J54: =J49*Dashboard!$J$28*作業と支出!$N$50 -> 120 | K54: =K49*Dashboard!$J$28*作業と支出!$N$50 -> 230 | AF54: 350
D55: 廃山費用 | R55: In-fill well 掘削 | AE55: =AF54*U49 -> 17.5 | AF55: 17.5
D56: 生産井掘削 | J56: =$J$44*135/1000 -> 48.6 | K56: =$J$44*365/1000 -> 131.4 | L56: =J44*80/1000 -> 28.8 | R56: =J44*(48*4+3)/1000 -> 70.2 | AF56: 279
D57: 改修・廃坑費用 | P57: =J45*(7*12+3)/1000 -> 34.8 | AE57: =J45*(3+3*16)/1000 -> 20.4 | AF57: 55.2
D58: 現地管理費 | I58: 2 | J58: 2.5 | K58: 2.5 | L58: 1 | AF58: 8
D59: （開発費計） | E59: =SUM(E53:E58) -> 0 | F59: =SUM(F53:F58) -> 0 | G59: 0 | H59: 0 | I59: 12 | J59: 171.1 | K59: 363.9 | L59: 29.8 | M59: 0 | N59: 0 | O59: 0 | P59: 34.8 | Q59: 0 | R59: 70.2 | S59: 0 | T59: 0 | U59: 0 | V59: 0 | W59: 0 | X59: 0 | Y59: 0 | Z59: 0 | AA59: 0 | AB59: 0 | AC59: 0 | AD59: =SUM(AD53:AD58) -> 0 | AE59: 37.9 | AF59: 719.7
D60: （計：インフレ含む名目値） | E60: =E59*(1+生産と生産額!$O$31)^(E52-2021) -> 0 | F60: =F59*(1+生産と生産額!$O$31)^(F52-2021) -> 0 | G60: =G59*(1+生産と生産額!$O$31)^(G52-2021) -> 0 | H60: =H59*(1+生産と生産額!$O$31)^(H52-2021) -> 0 | I60: =I59*(1+生産と生産額!$O$31)^(I52-2021) -> 12.73636261 | J60: =J59*(1+生産と生産額!$O$31)^(J52-2021) -> 184.3232931 | K60: =K59*(1+生産と生産額!$O$31)^(K52-2021) -> 397.9040037 | L60: =L59*(1+生産と生産額!$O$31)^(L52-2021) -> 33.0733784 | M60: =M59*(1+生産と生産額!$O$31)^(M52-2021) -> 0 | N60: =N59*(1+生産と生産額!$O$31)^(N52-2021) -> 0 | O60: =O59*(1+生産と生産額!$O$31)^(O52-2021) -> 0 | P60: =P59*(1+生産と生産額!$O$31)^(P52-2021) -> 40.99262302 | Q60: =Q59*(1+生産と生産額!$O$31)^(Q52-2021) -> 0 | R60: =R59*(1+生産と生産額!$O$31)^(R52-2021) -> 85.19138157 | S60: =S59*(1+生産と生産額!$O$31)^(S52-2021) -> 0 | T60: =T59*(1+生産と生産額!$O$31)^(T52-2021) -> 0 | U60: =U59*(1+生産と生産額!$O$31)^(U52-2021) -> 0 | V60: =V59*(1+生産と生産額!$O$31)^(V52-2021) -> 0 | W60: =W59*(1+生産と生産額!$O$31)^(W52-2021) -> 0 | X60: =X59*(1+生産と生産額!$O$31)^(X52-2021) -> 0 | Y60: =Y59*(1+生産と生産額!$O$31)^(Y52-2021) -> 0 | Z60: =Z59*(1+生産と生産額!$O$31)^(Z52-2021) -> 0 | AA60: =AA59*(1+生産と生産額!$O$31)^(AA52-2021) -> 0 | AB60: =AB59*(1+生産と生産額!$O$31)^(AB52-2021) -> 0 | AC60: =AC59*(1+生産と生産額!$O$31)^(AC52-2021) -> 0 | AD60: =AD59*(1+生産と生産額!$O$31)^(AD52-2021) -> 0 | AE60: =AE59*(1+生産と生産額!$O$31)^(AE52-2021) -> 54.99082892 | AF60: 809.2118713
C61: 回収対象投資合計（インフレ含む名目値） | E61: =E37+E60 -> 16.5 | F61: 72.7755 | G61: 66.6555575 | H61: 80.20353136 | I61: 12.73636261 | J61: 184.3232931 | K61: 397.9040037 | L61: 33.0733784 | M61: 0 | N61: 0 | O61: 0 | P61: 40.99262302 | Q61: 0 | R61: 85.19138157 | S61: 0 | T61: 0 | U61: 0 | V61: 0 | W61: 0 | X61: 0 | Y61: 0 | Z61: 0 | AA61: 0 | AB61: 0 | AC61: 0 | AD61: 0 | AE61: 54.99082892 | AF61: 1045.34646
B63: ４．操業費の計算
C64: ・前提条件
C65: 1 | D65: 初期投資＊（固定部分２％＋生産比例部分＊１％） | I65: 固定部分 | J65: =Dashboard!G29*Dashboard!J29 -> 0.02 | L65: 比例部分 | M65: =Dashboard!G30*Dashboard!J30 -> 0.01 | O65: 生産比例部分は「ピーク生産量に対する各年の生産量の比率」に比例するとして計算。
C66: 2 | D66: パイプライン使用料 | F66: =Dashboard!G31*Dashboard!J31 -> 1 | G66: ドル/バレル
E67: 探鉱期間→ | I67: 開発期間→ | L67: 生産期間→ | AE67: 廃山ケース
C68: ・計算結果（百万ドル） | E68: 2021 | F68: =E68+1 -> 2022 | G68: =F68+1 -> 2023 | H68: =G68+1 -> 2024 | I68: =H68+1 -> 2025 | J68: =I68+1 -> 2026 | K68: =J68+1 -> 2027 | L68: =K68+1 -> 2028 | M68: =L68+1 -> 2029 | N68: =M68+1 -> 2030 | O68: =N68+1 -> 2031 | P68: =O68+1 -> 2032 | Q68: =P68+1 -> 2033 | R68: =Q68+1 -> 2034 | S68: =R68+1 -> 2035 | T68: =S68+1 -> 2036 | U68: =T68+1 -> 2037 | V68: =U68+1 -> 2038 | W68: =V68+1 -> 2039 | X68: =W68+1 -> 2040 | Y68: =X68+1 -> 2041 | Z68: =Y68+1 -> 2042 | AA68: =Z68+1 -> 2043 | AB68: =AA68+1 -> 2044 | AC68: =AB68+1 -> 2045 | AD68: =AC68+1 -> 2046 | AE68: =AC68+1 -> 2046 | AF68: 合計
C69: 操業費 | D69: 生産操業費 | L69: =($AF$54+$AF$56)*($J$65+生産と生産額!L34/生産と生産額!$M$34*$M$65) -> 15.725 | M69: =($AF$54+$AF$56)*($J$65+生産と生産額!M34/生産と生産額!$M$34*$M$65) -> 18.87 | N69: =($AF$54+$AF$56)*($J$65+生産と生産額!N34/生産と生産額!$M$34*$M$65) -> 18.6184 | O69: =($AF$54+$AF$56)*($J$65+生産と生産額!O34/生産と生産額!$M$34*$M$65) -> 18.135328 | P69: =($AF$54+$AF$56)*($J$65+生産と生産額!P34/生産と生産額!$M$34*$M$65) -> 17.69090176 | Q69: =($AF$54+$AF$56)*($J$65+生産と生産額!Q34/生産と生産額!$M$34*$M$65) -> 17.23305014 | R69: =($AF$54+$AF$56)*($J$65+生産と生産額!R34/生産と生産額!$M$34*$M$65) -> 16.65754131 | S69: =($AF$54+$AF$56)*($J$65+生産と生産額!S34/生産と生産額!$M$34*$M$65) -> 17.67855929 | T69: =($AF$54+$AF$56)*($J$65+生産と生産額!T34/生産と生産額!$M$34*$M$65) -> 16.99540785 | U69: =($AF$54+$AF$56)*($J$65+生産と生産額!U34/生産と生産額!$M$34*$M$65) -> 16.33309667 | V69: =($AF$54+$AF$56)*($J$65+生産と生産額!V34/生産と生産額!$M$34*$M$65) -> 15.65507801 | W69: =($AF$54+$AF$56)*($J$65+生産と生産額!W34/生産と生産額!$M$34*$M$65) -> 14.99247152 | X69: =($AF$54+$AF$56)*($J$65+生産と生産額!X34/生産と生産額!$M$34*$M$65) -> 14.4795922 | Y69: =($AF$54+$AF$56)*($J$65+生産と生産額!Y34/生産と生産額!$M$34*$M$65) -> 14.00469415 | Z69: =($AF$54+$AF$56)*($J$65+生産と生産額!Z34/生産と生産額!$M$34*$M$65) -> 13.63031868 | AA69: =($AF$54+$AF$56)*($J$65+生産と生産額!AA34/生産と生産額!$M$34*$M$65) -> 13.33679573 | AB69: =($AF$54+$AF$56)*($J$65+生産と生産額!AB34/生産と生産額!$M$34*$M$65) -> 13.12593651 | AC69: =($AF$54+$AF$56)*($J$65+生産と生産額!AC34/生産と生産額!$M$34*$M$65) -> 12.96215555 | AD69: =($AF$54+$AF$56)*($J$65+生産と生産額!AD34/生産と生産額!$M$34*$M$65) -> 12.84750889 | AE69: 0 | AF69: =SUM(E69:AC69)+AE69 -> 286.1243274
D70: パイプライン使用料 | L70: =生産と生産額!L35*$F$66 -> 5.475 | M70: =生産と生産額!M35*$F$66 -> 10.95 | N70: =生産と生産額!N35*$F$66 -> 10.512 | O70: =生産と生産額!O35*$F$66 -> 9.67104 | P70: =生産と生産額!P35*$F$66 -> 8.8973568 | Q70: =生産と生産額!Q35*$F$66 -> 8.10030192 | R70: =生産と生産額!R35*$F$66 -> 7.098422472 | S70: =生産と生産額!S35*$F$66 -> 8.875870301 | T70: =生産と生産額!T35*$F$66 -> 7.686600316 | U70: =生産と生産額!U35*$F$66 -> 6.533610269 | V70: =生産と生産額!V35*$F$66 -> 5.353275707 | W70: =生産と生産額!W35*$F$66 -> 4.199771563 | X70: =生産と生産額!X35*$F$66 -> 3.306921238 | Y70: =生産と生産額!Y35*$F$66 -> 2.480190929 | Z70: =生産と生産額!Z35*$F$66 -> 1.828456215 | AA70: =生産と生産額!AA35*$F$66 -> 1.317474292 | AB70: =生産と生産額!AB35*$F$66 -> 0.9503982104 | AC70: =生産と生産額!AC35*$F$66 -> 0.6652787473 | AD70: =生産と生産額!AD35*$F$66 -> 0.4656951231 | AE70: =生産と生産額!AE35*$F$66 -> 0 | AF70: =SUM(E70:AC70)+AE70 -> 103.901969
D71: 現地管理費 | L71: 7 | M71: 7 | N71: 7 | O71: 7 | P71: 7 | Q71: 7 | R71: 7 | S71: 7 | T71: 7 | U71: 7 | V71: 7 | W71: 7 | X71: 7 | Y71: 7 | Z71: 7 | AA71: 7 | AB71: 7 | AC71: 7 | AD71: 7 | AE71: 7 | AF71: =SUM(E71:AC71)+AE71 -> 133
D72: （計） | L72: =SUM(L69:L71) -> 28.2 | M72: =SUM(M69:M71) -> 36.82 | N72: 36.1304 | O72: 34.806368 | P72: 33.58825856 | Q72: 32.33335206 | R72: 30.75596378 | S72: 33.55442959 | T72: 31.68200817 | U72: 29.86670694 | V72: 28.00835372 | W72: 26.19224308 | X72: 24.78651344 | Y72: 23.48488508 | Z72: 22.4587749 | AA72: 21.65427003 | AB72: 21.07633472 | AC72: 20.6274343 | AD72: =SUM(AD69:AD71) -> 20.31320401 | AE72: 7 | AF72: =SUM(E72:AC72)+AE72 -> 523.0262964
D73: （計：インフレ含む名目値） | E73: =E72*(1+生産と生産額!$O$31)^(E68-2021) -> 0 | F73: =F72*(1+生産と生産額!$O$31)^(F68-2021) -> 0 | G73: =G72*(1+生産と生産額!$O$31)^(G68-2021) -> 0 | H73: =H72*(1+生産と生産額!$O$31)^(H68-2021) -> 0 | I73: =I72*(1+生産と生産額!$O$31)^(I68-2021) -> 0 | J73: =J72*(1+生産と生産額!$O$31)^(J68-2021) -> 0 | K73: =K72*(1+生産と生産額!$O$31)^(K68-2021) -> 0 | L73: =L72*(1+生産と生産額!$O$31)^(L68-2021) -> 31.29762654 | M73: =M72*(1+生産と生産額!$O$31)^(M68-2021) -> 41.47745704 | N73: =N72*(1+生産と生産額!$O$31)^(N68-2021) -> 41.31113717 | O73: =O72*(1+生産と生産額!$O$31)^(O68-2021) -> 40.39421103 | P73: =P72*(1+生産と生産額!$O$31)^(P68-2021) -> 39.56525348 | Q73: =Q72*(1+生産と生産額!$O$31)^(Q68-2021) -> 38.65834327 | R73: =R72*(1+生産と生産額!$O$31)^(R68-2021) -> 37.32397502 | S73: =S72*(1+生産と生産額!$O$31)^(S68-2021) -> 41.33086094 | T73: =T72*(1+生産と生産額!$O$31)^(T68-2021) -> 39.60986255 | U73: =U72*(1+生産と生産額!$O$31)^(U68-2021) -> 37.90041947 | V73: =V72*(1+生産と生産額!$O$31)^(V68-2021) -> 36.07532902 | W73: =W72*(1+生産と生産額!$O$31)^(W68-2021) -> 34.24218373 | X73: =X72*(1+生産と生産額!$O$31)^(X68-2021) -> 32.89048248 | Y73: =Y72*(1+生産と生産額!$O$31)^(Y68-2021) -> 31.63073505 | Z73: =Z72*(1+生産と生産額!$O$31)^(Z68-2021) -> 30.70244411 | AA73: =AA72*(1+生産と生産額!$O$31)^(AA68-2021) -> 30.04667902 | AB73: =AB72*(1+生産と生産額!$O$31)^(AB68-2021) -> 29.68342832 | AC73: =AC72*(1+生産と生産額!$O$31)^(AC68-2021) -> 29.48697534 | AD73: =AD72*(1+生産と生産額!$O$31)^(AD68-2021) -> 29.47334899 | AE73: =AE72*(1+生産と生産額!$O$31)^(AE68-2021) -> 10.15661748 | AF73: =SUM(E73:AC73)+AE73 -> 653.784021

Sheet 生産と生産額
B2: ５．原油生産プロファイルの計算 | H2: ⇒ Dashboardでセットする前提条件 | N2: → | O2: ここでは原油のみが商業生産され、随伴ガスは自家消費されるとしている。
C3: ・前提条件 | N3: → | O3: 天然ガス田の場合には、坑井数、生産プロファイル、価格シナリオなどが異なる。
C4: 1 | D4: 生産井は4坑ずつ、6ヶ月単位で生産に入るものとする。 | O4: 例えば、初日産＝４０MMCFD/坑、プラトー7年（生産を最大能力よりやや抑えている）、価格は$/kcf表示、など。
C5: 2 | D5: 生産プロファイル
D6: 1) １坑当たり生産量は、初日産2,500BDとし、最初の2年間は初日産と同じ100％で推移し、3年目から年率８％で減少する。
D7: 2) 減退率は、生産量が初日産の80％を割り込むと年率15％、30％を割り込むと年率25％、10％を割り込むと年率30％になると想定する。
C8: 3 | D8: 5年目に坑井改修作業を行うため、5年目と6年目は生産がやや持ち直す。
C9: 4 | D9: 7年後に4項のIn-fill wellを追加する。生産開始は8年目とし、In-fill wellの初日産は、初期生産井の5年目相当（約80％）から始まり、同じ減退パターンをたどるものとする。
C10: → | D10: 油田の生産プロファイルは条件によって変化するので、初期には標準的なシナリオを手入力するのが簡便でしょう。 | AF10: 2046年までの合計
C11: ・2046年には自社収支が赤字となるので、生産は2045年までとする。（「自社収支」参照） | AF11: ↓
P12: 坑井改修 | R12: In-fill well | AE12: 廃山ケース
C13: ・計算結果 | E13: 2021 | F13: =E13+1 -> 2022 | G13: =F13+1 -> 2023 | H13: 2024 | I13: 2025 | J13: 2026 | K13: 2027 | L13: 2028 | M13: 2029 | N13: 2030 | O13: 2031 | P13: 2032 | Q13: 2033 | R13: 2034 | S13: 2035 | T13: 2036 | U13: 2037 | V13: 2038 | W13: 2039 | X13: 2040 | Y13: 2041 | Z13: 2042 | AA13: 2043 | AB13: 2044 | AC13: =AB13+1 -> 2045 | AD13: =AC13+1 -> 2046 | AE13: 2046 | AF13: 合計
C14: 生産プロファイル | E14: プラトー | F14: 2年 | I14: 減退率： | L14: 0 | M14: 0 | N14: 0.08 | O14: 0.08 | P14: 0.08 | Q14: 0.1 | R14: 0.15 | S14: 0.15 | T14: 0.15 | U14: 0.15 | V14: 0.25 | W14: 0.25 | X14: 0.25 | Y14: 0.25 | Z14: 0.3 | AA14: 0.3 | AB14: 0.3 | AC14: 0.3 | AD14: 0.3 | AE14: 0.3
C15: 生産井 | F15: BD | I15: プロファイル | L15: 1 | M15: =L15*(1-M14) -> 1 | N15: =M15*(1-N14) -> 0.92 | O15: =N15*(1-O14) -> 0.8464 | P15: 0.778688 | Q15: 0.7008192 | R15: 0.59569632 | S15: 0.506341872 | T15: 0.4303905912 | U15: 0.3658320025 | V15: 0.2743740019 | W15: 0.2057805014 | X15: 0.1543353761 | Y15: 0.115751532 | Z15: 0.08102607243 | AA15: 0.0567182507 | AB15: 0.03970277549 | AC15: 0.02779194284 | AD15: 0.01945435999 | AE15: 0
D16: 原油生産開始時期 | E16: 初日産 | F16: =Dashboard!G25*Dashboard!J25 -> 2500 | I16: 同 半年遅れ | L16: =L15/2 -> 0.5 | M16: =(L15+M15)/2 -> 1 | N16: 0.96 | O16: 0.8832 | P16: 0.812544 | Q16: 0.7397536 | R16: 0.64825776 | S16: 0.551019096 | T16: 0.4683662316 | U16: 0.3981112969 | V16: 0.3201030022 | W16: 0.2400772517 | X16: 0.1800579387 | Y16: 0.1350434541 | Z16: 0.09838880224 | AA16: 0.06887216157 | AB16: 0.0482105131 | AC16: 0.03374735917 | AD16: 0.02362315142 | AE16: 0
C17: Ａ群 | D17: ４坑（２０２８年１月） | I17: 初日産×プロファイル | L17: =($F$16/1000)*365*4*L15 -> 3650 | M17: =($F$16/1000)*365*4*M15 -> 3650 | N17: 3358 | O17: 3089.36 | P17: 2842.2112 | Q17: 2557.99008 | R17: 2174.291568 | S17: 1848.147833 | T17: 1570.925658 | U17: 1335.286809 | V17: 1001.465107 | W17: 751.0988302 | X17: 563.3241226 | Y17: 422.493092 | Z17: 295.7451644 | AA17: 207.0216151 | AB17: 144.9151305 | AC17: 101.4405914 | AD17: 71.00841397 | AE17: =($F$16/1000)*365*4*AE15 -> 0
C18: Ｂ群 | D18: ４坑（２０２８年７月） | I18: 初日産×プロファイル | L18: =($F$16/1000)*365*4*L16 -> 1825 | M18: =($F$16/1000)*365*4*M16 -> 3650 | N18: 3504 | O18: 3223.68 | P18: 2965.7856 | Q18: 2700.10064 | R18: 2366.140824 | S18: 2011.2197 | T18: 1709.536745 | U18: 1453.106234 | V18: 1168.375958 | W18: 876.2819685 | X18: 657.2114764 | Y18: 492.9086073 | Z18: 359.1191282 | AA18: 251.3833897 | AB18: 175.9683728 | AC18: 123.177861 | AD18: 86.22450268 | AE18: =($F$16/1000)*365*4*AE16 -> 0
C19: Ｃ群 | D19: ４坑（２０２９年１月） | I19: 初日産×プロファイル | M19: =($F$16/1000)*4*365*L15 -> 3650 | N19: 3650 | O19: 3358 | P19: 3089.36 | Q19: 2842.2112 | R19: 2557.99008 | S19: 2174.291568 | T19: 1848.147833 | U19: 1570.925658 | V19: 1335.286809 | W19: 1001.465107 | X19: 751.0988302 | Y19: 563.3241226 | Z19: 422.493092 | AA19: 295.7451644 | AB19: 207.0216151 | AC19: 144.9151305 | AD19: 101.4405914 | AE19: 0
C20: D群 | D20: In-fill well 4坑(2035年1月） | S20: =($F$16/1000)*P15*4*365 -> 2842.2112 | T20: =($F$16/1000)*Q15*4*365 -> 2557.99008 | U20: 2174.291568 | V20: 1848.147833 | W20: 1570.925658 | X20: 1335.286809 | Y20: 1001.465107 | Z20: 751.0988302 | AA20: 563.3241226 | AB20: 422.493092 | AC20: 295.7451644 | AD20: =($F$16/1000)*AA15*4*365 -> 207.0216151 | AE20: 0
D21: 生産量合計（千バレル/年） | L21: =SUM(L17:L20) -> 5475 | M21: =SUM(M17:M20) -> 10950 | N21: 10512 | O21: 9671.04 | P21: 8897.3568 | Q21: 8100.30192 | R21: 7098.422472 | S21: 8875.870301 | T21: 7686.600316 | U21: 6533.610269 | V21: 5353.275707 | W21: 4199.771563 | X21: 3306.921238 | Y21: 2480.190929 | Z21: 1828.456215 | AA21: 1317.474292 | AB21: 950.3982104 | AC21: 665.2787473 | AD21: =SUM(AD17:AD20) -> 465.6951231 | AE21: =SUM(AE17:AE20) -> 0 | AF21: =SUM(M21:AC21) -> 98426.96898
D22: 日量（千バレル/日） | L22: =L21/365 -> 15 | M22: 30 | N22: 28.8 | O22: 26.496 | P22: 24.37632 | Q22: 22.192608 | R22: 19.4477328 | S22: 24.31745288 | T22: 21.05917895 | U22: 17.90030211 | V22: 14.66650879 | W22: 11.50622346 | X22: 9.060058187 | Y22: 6.795043641 | Z22: 5.009469081 | AA22: 3.609518608 | AB22: 2.603830713 | AC22: =AC21/365 -> 1.822681499 | AD22: =AD21/365 -> 1.27587705 | AE22: =AE21/365 -> 0 | AF22: =AVERAGE(M22:AC22) -> 15.86252522
B25: ６．生産額の計算
C26: ・前提条件
C27: 1 | D27: 生産レートは上記の計算による
C28: 2 | D28: 原油価格シナリオ：下記のような「任意のシナリオ」をセットする | L28: 前提条件
D29: 1) 2025年の実質原油価格（2021年表示）をバレルあたり「75ドル」とする。 | L29: 初期原油価格 | O29: =Dashboard!G22*Dashboard!J22 -> 75 | P29: ドル/バレル
D30: 2) 2021年を起点に、毎年の実質原油価格のエスカレーション率を「1.5％」とする。 | L30: エスカレーション | O30: =Dashboard!G24*Dashboard!J24 -> 0.015 | P30: /年
D31: 3) 2021年を起点に、毎年のインフレ率を「1.5％」とする。 | L31: インフレーション | O31: =Dashboard!G21*Dashboard!J21 -> 0.015 | P31: /年
AE32: 廃山ケース
C33: ・計算結果 | E33: 2021 | F33: =E33+1 -> 2022 | G33: =F33+1 -> 2023 | H33: =G33+1 -> 2024 | I33: =H33+1 -> 2025 | J33: =I33+1 -> 2026 | K33: =J33+1 -> 2027 | L33: =K33+1 -> 2028 | M33: =L33+1 -> 2029 | N33: =M33+1 -> 2030 | O33: =N33+1 -> 2031 | P33: =O33+1 -> 2032 | Q33: =P33+1 -> 2033 | R33: =Q33+1 -> 2034 | S33: =R33+1 -> 2035 | T33: =S33+1 -> 2036 | U33: =T33+1 -> 2037 | V33: =U33+1 -> 2038 | W33: =V33+1 -> 2039 | X33: =W33+1 -> 2040 | Y33: =X33+1 -> 2041 | Z33: =Y33+1 -> 2042 | AA33: =Z33+1 -> 2043 | AB33: =AA33+1 -> 2044 | AC33: =AB33+1 -> 2045 | AD33: =AC33+1 -> 2046 | AE33: 2046 | AF33: 合計
C34: 生産量 | D34: レート（1,000BPD) | L34: =L22 -> 15 | M34: 30 | N34: 28.8 | O34: 26.496 | P34: 24.37632 | Q34: 22.192608 | R34: 19.4477328 | S34: 24.31745288 | T34: 21.05917895 | U34: 17.90030211 | V34: 14.66650879 | W34: 11.50622346 | X34: 9.060058187 | Y34: 6.795043641 | Z34: 5.009469081 | AA34: 3.609518608 | AB34: 2.603830713 | AC34: 1.822681499 | AD34: =AD22 -> 1.27587705 | AE34: 0
D35: 年生産量（百万バレル) | L35: =L34*365/1000 -> 5.475 | M35: =M34*365/1000 -> 10.95 | N35: 10.512 | O35: 9.67104 | P35: 8.8973568 | Q35: 8.10030192 | R35: 7.098422472 | S35: 8.875870301 | T35: 7.686600316 | U35: 6.533610269 | V35: 5.353275707 | W35: 4.199771563 | X35: 3.306921238 | Y35: 2.480190929 | Z35: 1.828456215 | AA35: 1.317474292 | AB35: 0.9503982104 | AC35: 0.6652787473 | AD35: =AD34*365/1000 -> 0.4656951231 | AE35: 0 | AF35: =SUM(F35:AC35) -> 103.901969
D36: 実質原油価格（ドル/バレル) | I36: =O29 -> 75 | J36: =I36*(1+$O$30) -> 76.125 | K36: 77.266875 | L36: 78.42587812 | M36: 79.6022663 | N36: 80.79630029 | O36: 82.0082448 | P36: 83.23836847 | Q36: 84.48694399 | R36: 85.75424815 | S36: 87.04056188 | T36: 88.34617031 | U36: 89.67136286 | V36: 91.0164333 | W36: 92.3816798 | X36: 93.767405 | Y36: 95.17391607 | Z36: 96.60152482 | AA36: 98.05054769 | AB36: 99.5213059 | AC36: 101.0141255 | AD36: =AC36*(1+$O$30) -> 102.5293374 | AE36: 104.0672774
D37: 名目原油価格（ドル/バレル) | I37: =I36*(1+$O$31)^(I33-2021) -> 79.6022663 | J37: 82.0082448 | K37: 84.48694399 | L37: 87.04056188 | M37: 89.67136286 | N37: 92.3816798 | O37: 95.17391607 | P37: 98.05054769 | Q37: 101.0141255 | R37: 104.0672774 | S37: 107.2127109 | T37: 110.4532151 | U37: 113.7916635 | V37: 117.2310165 | W37: 120.774324 | X37: 124.424728 | Y37: 128.1854654 | Z37: 132.059871 | AA37: 136.0513807 | AB37: 140.1635336 | AC37: 144.3999764 | AD37: 148.7644657 | AE37: 150.9959327
D38: 総生産額（百万ドル） | L38: =L35*L37 -> 476.5470763 | M38: =M35*M37 -> 981.9014233 | N38: 971.1162181 | O38: 920.4307493 | P38: 872.3907072 | Q38: 818.2449147 | R38: 738.7135007 | S38: 951.6061165 | T38: 849.009718 | U38: 743.4703812 | V38: 627.5699529 | W38: 507.2245716 | X38: 411.4627755 | Y38: 317.9244284 | Z38: 241.4656919 | AA38: 179.2441964 | AB38: 133.2111715 | AC38: 96.06623543 | AD38: =AD35*AD37 -> 69.27888618 | AE38: 0 | AF38: =SUM(F38:AC38) -> 10837.59983

Sheet プロジェクト収支
B2: ７．プロジェクト全体の収支計算
C3: ・前提条件
C4: 1 | D4: ロイヤリティ | E4: =Dashboard!G10*Dashboard!J10 -> 0.1 | R4: → | S4: 生産量に対する比率
C5: 2 | D5: コスト回収上限 | F5: 原油 | G5: =Dashboard!G11*Dashboard!J11 -> 0.35 | I5: 天然ガス | J5: =Dashboard!G12*Dashboard!J12 -> 0.4 | R5: → | S5: 生産量に対する比率
C6: 3 | D6: プロフィット・シェアリング（石油会社取り分） | I6: 原油５万BD以下（Tier-1) | J6: =Dashboard!G13*Dashboard!J13 -> 0.3 | M6: 原油5万BD超（Tier-2) | N6: =Dashboard!G14*Dashboard!J13 -> 0.2 | P6: ガス（一律） | Q6: =Dashboard!G15*Dashboard!J15 -> 0.3 | R6: → | S6: 「生産量-（ロイヤリティ＋コスト回収）」に対する比率
C7: 4 | D7: 石油収入税 | E7: =Dashboard!G16*Dashboard!J16 -> 0.5 | R7: → | S7: プロフィットオイルに対する税率
C8: 5 | D8: 本社管理費 | E8: =Dashboard!G32*Dashboard!J32 -> 300 | F8: 千ドル/年
C9: 6 | D9: 割引率 | E9: =Dashboard!G36*Dashboard!J36 -> 0.05 | F9: /年
E10: 探鉱期間→ | I10: 開発期間→ | L10: 生産期間→ | AE10: 廃山ケース
C11: ・計算結果（百万ドル） | E11: 2021 | F11: =E11+1 -> 2022 | G11: =F11+1 -> 2023 | H11: 2024 | I11: 2025 | J11: 2026 | K11: 2027 | L11: 2028 | M11: 2029 | N11: 2030 | O11: 2031 | P11: 2032 | Q11: 2033 | R11: 2034 | S11: 2035 | T11: 2036 | U11: 2037 | V11: 2038 | W11: 2039 | X11: 2040 | Y11: 2041 | Z11: 2042 | AA11: 2043 | AB11: 2044 | AC11: =AB11+1 -> 2045 | AD11: =AC11+1 -> 2046 | AE11: 2046 | AF11: 合計
D12: ①総生産額（再掲） | L12: =生産と生産額!L38 -> 476.5470763 | M12: =生産と生産額!M38 -> 981.9014233 | N12: =生産と生産額!N38 -> 971.1162181 | O12: =生産と生産額!O38 -> 920.4307493 | P12: =生産と生産額!P38 -> 872.3907072 | Q12: =生産と生産額!Q38 -> 818.2449147 | R12: =生産と生産額!R38 -> 738.7135007 | S12: =生産と生産額!S38 -> 951.6061165 | T12: =生産と生産額!T38 -> 849.009718 | U12: =生産と生産額!U38 -> 743.4703812 | V12: =生産と生産額!V38 -> 627.5699529 | W12: =生産と生産額!W38 -> 507.2245716 | X12: =生産と生産額!X38 -> 411.4627755 | Y12: =生産と生産額!Y38 -> 317.9244284 | Z12: =生産と生産額!Z38 -> 241.4656919 | AA12: =生産と生産額!AA38 -> 179.2441964 | AB12: =生産と生産額!AB38 -> 133.2111715 | AC12: =生産と生産額!AC38 -> 96.06623543 | AD12: =生産と生産額!AD38 -> 69.27888618 | AE12: 0 | AF12: =SUM(E12:AC12)+AE12 -> 10837.59983
D14: ②ロイヤリティ（①生産額＊１０％） | L14: =L12*$E$4 -> 47.65470763 | M14: =M12*$E$4 -> 98.19014233 | N14: 97.11162181 | O14: 92.04307493 | P14: 87.23907072 | Q14: 81.82449147 | R14: 73.87135007 | S14: 95.16061165 | T14: 84.9009718 | U14: 74.34703812 | V14: 62.75699529 | W14: 50.72245716 | X14: 41.14627755 | Y14: 31.79244284 | Z14: 24.14656919 | AA14: 17.92441964 | AB14: 13.32111715 | AC14: 9.606623543 | AD14: =AD12*$E$4 -> 6.927888618 | AE14: 0 | AF14: =SUM(E14:AC14)+AE14 -> 1083.759983
C15: コスト回収
D16: ③コスト回収原資（①生産額＊３５％） | L16: =L12*$G$5 -> 166.7914767 | M16: 343.6654982 | N16: 339.8906763 | O16: 322.1507623 | P16: 305.3367475 | Q16: 286.3857201 | R16: 258.5497253 | S16: 333.0621408 | T16: 297.1534013 | U16: 260.2146334 | V16: 219.6494835 | W16: 177.5286001 | X16: 144.0119714 | Y16: 111.2735499 | Z16: 84.51299218 | AA16: 62.73546873 | AB16: 46.62391003 | AC16: 33.6231824 | AD16: 24.24761016 | AE16: 0
D17: Ａ．操業費（優先回収） | L17: =作業と支出!L73 -> 31.29762654 | M17: =作業と支出!M73 -> 41.47745704 | N17: =作業と支出!N73 -> 41.31113717 | O17: =作業と支出!O73 -> 40.39421103 | P17: =作業と支出!P73 -> 39.56525348 | Q17: =作業と支出!Q73 -> 38.65834327 | R17: =作業と支出!R73 -> 37.32397502 | S17: =作業と支出!S73 -> 41.33086094 | T17: =作業と支出!T73 -> 39.60986255 | U17: =作業と支出!U73 -> 37.90041947 | V17: =作業と支出!V73 -> 36.07532902 | W17: =作業と支出!W73 -> 34.24218373 | X17: =作業と支出!X73 -> 32.89048248 | Y17: =作業と支出!Y73 -> 31.63073505 | Z17: =作業と支出!Z73 -> 30.70244411 | AA17: =作業と支出!AA73 -> 30.04667902 | AB17: =作業と支出!AB73 -> 29.68342832 | AC17: =作業と支出!AC73 -> 29.48697534 | AD17: =作業と支出!AD73 -> 29.47334899 | AE17: =作業と支出!AE73 -> 10.15661748 | AF17: =SUM(E17:AC17)+AE17 -> 653.784021
D18: 投資回収充当原資（③-A） | K18: 累積投資額（建設仮勘定に相当） | L18: =IF(L16-L17>0,L16-L17,0) -> 135.4938502 | M18: =IF(M16-M17>0,M16-M17,0) -> 302.1880411 | N18: 298.5795392 | O18: 281.7565512 | P18: 265.771494 | Q18: 247.7273769 | R18: 221.2257502 | S18: 291.7312799 | T18: 257.5435387 | U18: 222.3142139 | V18: 183.5741545 | W18: 143.2864163 | X18: 111.1214889 | Y18: 79.64281489 | Z18: 53.81054806 | AA18: 32.68878971 | AB18: 16.94048172 | AC18: =IF(AC16-AC17>0,AC16-AC17,0) -> 4.136207063 | AD18: 0 | AE18: 0
D19: 投資回収残 | E19: =SUM(作業と支出!$E$61:'作業と支出'!E61) -> 16.5 | F19: =SUM(作業と支出!$E$61:'作業と支出'!F61) -> 89.2755 | G19: =SUM(作業と支出!$E$61:'作業と支出'!G61) -> 155.9310575 | H19: =SUM(作業と支出!$E$61:'作業と支出'!H61) -> 236.1345889 | I19: =SUM(作業と支出!$E$61:'作業と支出'!I61) -> 248.8709515 | J19: =SUM(作業と支出!$E$61:'作業と支出'!J61) -> 433.1942445 | K19: =SUM(作業と支出!$E$61:'作業と支出'!K61) -> 831.0982483 | L19: =K19-K20+作業と支出!L61 -> 864.1716267 | M19: =L19-L20+作業と支出!M61 -> 728.6777765 | N19: =M19-M20+作業と支出!N61 -> 426.4897354 | O19: =N19-N20+作業と支出!O61 -> 127.9101963 | P19: =O19-O20+作業と支出!P61 -> 40.99262302 | Q19: =P19-P20+作業と支出!Q61 -> 0 | R19: =Q19-Q20+作業と支出!R61 -> 85.19138157 | S19: =R19-R20+作業と支出!S61 -> 0 | T19: =S19-S20+作業と支出!T61 -> 0 | U19: =T19-T20+作業と支出!U61 -> 0 | V19: =U19-U20+作業と支出!V61 -> 0 | W19: =V19-V20+作業と支出!W61 -> 0 | X19: =W19-W20+作業と支出!X61 -> 0 | Y19: =X19-X20+作業と支出!Y61 -> 0 | Z19: =Y19-Y20+作業と支出!Z61 -> 0 | AA19: =Z19-Z20+作業と支出!AA61 -> 0 | AB19: =AA19-AA20+作業と支出!AB61 -> 0 | AC19: =AB19-AB20+作業と支出!AC61 -> 0 | AD19: =AC19-AC20+作業と支出!AD61 -> 0 | AE19: =AC19-AC20+作業と支出!AE61 -> 54.99082892
D20: Ｂ．投資回収 | L20: =IF(L19>L18,L18,L19) -> 135.4938502 | M20: =IF(M19>M18,M18,M19) -> 302.1880411 | N20: 298.5795392 | O20: 127.9101963 | P20: 40.99262302 | Q20: 0 | R20: 85.19138157 | S20: 0 | T20: 0 | U20: 0 | V20: 0 | W20: 0 | X20: 0 | Y20: 0 | Z20: 0 | AA20: 0 | AB20: 0 | AC20: 0 | AD20: =IF(AD19>AD18,AD18,AD19) -> 0 | AE20: 0 | AF20: =SUM(E20:AC20)+AE20 -> 990.3556313
D21: ④コスト回収額（Ａ＋Ｂ） | L21: =IF(L17+L20>L16,L16,L17+L20) -> 166.7914767 | M21: =IF(M17+M20>M16,M16,M17+M20) -> 343.6654982 | N21: 339.8906763 | O21: 168.3044073 | P21: 80.5578765 | Q21: 38.65834327 | R21: 122.5153566 | S21: 41.33086094 | T21: 39.60986255 | U21: 37.90041947 | V21: 36.07532902 | W21: 34.24218373 | X21: 32.89048248 | Y21: 31.63073505 | Z21: 30.70244411 | AA21: 30.04667902 | AB21: 29.68342832 | AC21: 29.48697534 | AD21: 24.24761016 | AE21: 0 | AF21: 1633.983035
C22: プロフィット原油 （総生産額 － ロイヤリティー と コスト回収＝ ①－②－④） | L22: =L12-L14-L21 -> 262.100892 | M22: =M12-M14-M21 -> 540.0457828 | N22: 534.1139199 | O22: 660.0832671 | P22: 704.59376 | Q22: 697.7620799 | R22: 542.3267941 | S22: 815.114644 | T22: 724.4988836 | U22: 631.2229236 | V22: 528.7376286 | W22: 422.2599307 | X22: 337.4260154 | Y22: 254.5012505 | Z22: 186.6166786 | AA22: 131.2730977 | AB22: 90.20662605 | AC22: 56.97263655 | AD22: =AD12-AD14-AD21 -> 38.1033874 | AE22: =AE12-AE14-AE21 -> 0 | AF22: 8119.856811
D23: ⑤プロフィット原油取り分 （前提条件「３」を適用） | L23: =IF(生産と生産額!L22>50,L22*((生産と生産額!L22-50)/生産と生産額!L22*プロジェクト収支!$N$6+50/生産と生産額!L22*プロジェクト収支!$J$6),L22*プロジェクト収支!$J$6) -> 78.63026759 | M23: =IF(生産と生産額!M22>50,M22*((生産と生産額!M22-50)/生産と生産額!M22*プロジェクト収支!$N$6+50/生産と生産額!M22*プロジェクト収支!$J$6),M22*プロジェクト収支!$J$6) -> 162.0137348 | N23: =IF(生産と生産額!N22>50,N22*((生産と生産額!N22-50)/生産と生産額!N22*プロジェクト収支!$N$6+50/生産と生産額!N22*プロジェクト収支!$J$6),N22*プロジェクト収支!$J$6) -> 160.234176 | O23: =IF(生産と生産額!O22>50,O22*((生産と生産額!O22-50)/生産と生産額!O22*プロジェクト収支!$N$6+50/生産と生産額!O22*プロジェクト収支!$J$6),O22*プロジェクト収支!$J$6) -> 198.0249801 | P23: =IF(生産と生産額!P22>50,P22*((生産と生産額!P22-50)/生産と生産額!P22*プロジェクト収支!$N$6+50/生産と生産額!P22*プロジェクト収支!$J$6),P22*プロジェクト収支!$J$6) -> 211.378128 | Q23: =IF(生産と生産額!Q22>50,Q22*((生産と生産額!Q22-50)/生産と生産額!Q22*プロジェクト収支!$N$6+50/生産と生産額!Q22*プロジェクト収支!$J$6),Q22*プロジェクト収支!$J$6) -> 209.328624 | R23: =IF(生産と生産額!R22>50,R22*((生産と生産額!R22-50)/生産と生産額!R22*プロジェクト収支!$N$6+50/生産と生産額!R22*プロジェクト収支!$J$6),R22*プロジェクト収支!$J$6) -> 162.6980382 | S23: =IF(生産と生産額!S22>50,S22*((生産と生産額!S22-50)/生産と生産額!S22*プロジェクト収支!$N$6+50/生産と生産額!S22*プロジェクト収支!$J$6),S22*プロジェクト収支!$J$6) -> 244.5343932 | T23: =IF(生産と生産額!T22>50,T22*((生産と生産額!T22-50)/生産と生産額!T22*プロジェクト収支!$N$6+50/生産と生産額!T22*プロジェクト収支!$J$6),T22*プロジェクト収支!$J$6) -> 217.3496651 | U23: =IF(生産と生産額!U22>50,U22*((生産と生産額!U22-50)/生産と生産額!U22*プロジェクト収支!$N$6+50/生産と生産額!U22*プロジェクト収支!$J$6),U22*プロジェクト収支!$J$6) -> 189.3668771 | V23: =IF(生産と生産額!V22>50,V22*((生産と生産額!V22-50)/生産と生産額!V22*プロジェクト収支!$N$6+50/生産と生産額!V22*プロジェクト収支!$J$6),V22*プロジェクト収支!$J$6) -> 158.6212886 | W23: =IF(生産と生産額!W22>50,W22*((生産と生産額!W22-50)/生産と生産額!W22*プロジェクト収支!$N$6+50/生産と生産額!W22*プロジェクト収支!$J$6),W22*プロジェクト収支!$J$6) -> 126.6779792 | X23: =IF(生産と生産額!X22>50,X22*((生産と生産額!X22-50)/生産と生産額!X22*プロジェクト収支!$N$6+50/生産と生産額!X22*プロジェクト収支!$J$6),X22*プロジェクト収支!$J$6) -> 101.2278046 | Y23: =IF(生産と生産額!Y22>50,Y22*((生産と生産額!Y22-50)/生産と生産額!Y22*プロジェクト収支!$N$6+50/生産と生産額!Y22*プロジェクト収支!$J$6),Y22*プロジェクト収支!$J$6) -> 76.35037515 | Z23: =IF(生産と生産額!Z22>50,Z22*((生産と生産額!Z22-50)/生産と生産額!Z22*プロジェクト収支!$N$6+50/生産と生産額!Z22*プロジェクト収支!$J$6),Z22*プロジェクト収支!$J$6) -> 55.98500359 | AA23: =IF(生産と生産額!AA22>50,AA22*((生産と生産額!AA22-50)/生産と生産額!AA22*プロジェクト収支!$N$6+50/生産と生産額!AA22*プロジェクト収支!$J$6),AA22*プロジェクト収支!$J$6) -> 39.38192931 | AB23: =IF(生産と生産額!AB22>50,AB22*((生産と生産額!AB22-50)/生産と生産額!AB22*プロジェクト収支!$N$6+50/生産と生産額!AB22*プロジェクト収支!$J$6),AB22*プロジェクト収支!$J$6) -> 27.06198782 | AC23: =IF(生産と生産額!AC22>50,AC22*((生産と生産額!AC22-50)/生産と生産額!AC22*プロジェクト収支!$N$6+50/生産と生産額!AC22*プロジェクト収支!$J$6),AC22*プロジェクト収支!$J$6) -> 17.09179096 | AD23: =IF(生産と生産額!AD22>50,AD22*((生産と生産額!AD22-50)/生産と生産額!AD22*プロジェクト収支!$N$6+50/生産と生産額!AD22*プロジェクト収支!$J$6),AD22*プロジェクト収支!$J$6) -> 11.43101622 | AE23: =IF(生産と生産額!AE22>50,AE22*((生産と生産額!AE22-50)/生産と生産額!AE22*プロジェクト収支!$N$6+50/生産と生産額!AE22*プロジェクト収支!$J$6),AE22*プロジェクト収支!$J$6) -> 0 | AF23: 2435.957043
D24: 石油収入税（⑤×５０％） | L24: =L23*$E$7 -> 39.31513379 | M24: =M23*$E$7 -> 81.00686742 | N24: 80.11708799 | O24: 99.01249006 | P24: 105.689064 | Q24: 104.664312 | R24: 81.34901911 | S24: 122.2671966 | T24: 108.6748325 | U24: 94.68343854 | V24: 79.31064429 | W24: 63.3389896 | X24: 50.61390231 | Y24: 38.17518757 | Z24: 27.99250179 | AA24: 19.69096466 | AB24: 13.53099391 | AC24: 8.545895482 | AD24: =AD23*$E$7 -> 5.71550811 | AE24: 0 | AF24: 1217.978522
C25: 原油販売収入（税前＝④＋⑤） | E25: =E21+E23 -> 0 | F25: =F21+F23 -> 0 | G25: 0 | H25: 0 | I25: 0 | J25: 0 | K25: 0 | L25: 245.4217443 | M25: 505.679233 | N25: 500.1248523 | O25: 366.3293874 | P25: 291.9360045 | Q25: 247.9869672 | R25: 285.2133948 | S25: 285.8652541 | T25: 256.9595276 | U25: 227.2672965 | V25: 194.6966176 | W25: 160.9201629 | X25: 134.1182871 | Y25: 107.9811102 | Z25: 86.6874477 | AA25: 69.42860833 | AB25: 56.74541613 | AC25: 46.5787663 | AD25: 35.67862638 | AE25: 0 | AF25: 4069.940078
C26: 本社管理費 | E26: =E8/1000 -> 0.3 | F26: =E26*(1+生産と生産額!$O$31) -> 0.3045 | G26: =F26*(1+生産と生産額!$O$31) -> 0.3090675 | H26: =G26*(1+生産と生産額!$O$31) -> 0.3137035125 | I26: =H26*(1+生産と生産額!$O$31) -> 0.3184090652 | J26: =I26*(1+生産と生産額!$O$31) -> 0.3231852012 | K26: =J26*(1+生産と生産額!$O$31) -> 0.3280329792 | L26: =K26*(1+生産と生産額!$O$31) -> 0.3329534739 | M26: =L26*(1+生産と生産額!$O$31) -> 0.337947776 | N26: =M26*(1+生産と生産額!$O$31) -> 0.3430169926 | O26: =N26*(1+生産と生産額!$O$31) -> 0.3481622475 | P26: =O26*(1+生産と生産額!$O$31) -> 0.3533846812 | Q26: =P26*(1+生産と生産額!$O$31) -> 0.3586854514 | R26: =Q26*(1+生産と生産額!$O$31) -> 0.3640657332 | S26: =R26*(1+生産と生産額!$O$31) -> 0.3695267192 | T26: =S26*(1+生産と生産額!$O$31) -> 0.37506962 | U26: =T26*(1+生産と生産額!$O$31) -> 0.3806956643 | V26: =U26*(1+生産と生産額!$O$31) -> 0.3864060993 | W26: =V26*(1+生産と生産額!$O$31) -> 0.3922021907 | X26: =W26*(1+生産と生産額!$O$31) -> 0.3980852236 | Y26: =X26*(1+生産と生産額!$O$31) -> 0.404056502 | Z26: =Y26*(1+生産と生産額!$O$31) -> 0.4101173495 | AA26: =Z26*(1+生産と生産額!$O$31) -> 0.4162691097 | AB26: =AA26*(1+生産と生産額!$O$31) -> 0.4225131464 | AC26: =AB26*(1+生産と生産額!$O$31) -> 0.4288508436 | AD26: =AC26*(1+生産と生産額!$O$31) -> 0.4352836062 | AE26: =AC26*(1+生産と生産額!$O$31) -> 0.4352836062 | AF26: 9.454190688
C27: 総支出（ボーナス＋費用＋税） | E27: =作業と支出!E30+作業と支出!E61+作業と支出!E73+プロジェクト収支!E24+E26 -> 26.8 | F27: =作業と支出!F30+作業と支出!F61+作業と支出!F73+プロジェクト収支!F24+F26 -> 73.08 | G27: =作業と支出!G30+作業と支出!G61+作業と支出!G73+プロジェクト収支!G24+G26 -> 66.964625 | H27: =作業と支出!H30+作業と支出!H61+作業と支出!H73+プロジェクト収支!H24+H26 -> 80.51723487 | I27: =作業と支出!I30+作業と支出!I61+作業と支出!I73+プロジェクト収支!I24+I26 -> 16.05477167 | J27: =作業と支出!J30+作業と支出!J61+作業と支出!J73+プロジェクト収支!J24+J26 -> 184.6464783 | K27: =作業と支出!K30+作業と支出!K61+作業と支出!K73+プロジェクト収支!K24+K26 -> 398.2320367 | L27: =作業と支出!L30+作業と支出!L61+作業と支出!L73+プロジェクト収支!L24+L26 -> 109.0190922 | M27: =作業と支出!M30+作業と支出!M61+作業と支出!M73+プロジェクト収支!M24+M26 -> 122.8222722 | N27: =作業と支出!N30+作業と支出!N61+作業と支出!N73+プロジェクト収支!N24+N26 -> 121.7712422 | O27: =作業と支出!O30+作業と支出!O61+作業と支出!O73+プロジェクト収支!O24+O26 -> 139.7548633 | P27: =作業と支出!P30+作業と支出!P61+作業と支出!P73+プロジェクト収支!P24+P26 -> 186.6003252 | Q27: =作業と支出!Q30+作業と支出!Q61+作業と支出!Q73+プロジェクト収支!Q24+Q26 -> 143.6813407 | R27: =作業と支出!R30+作業と支出!R61+作業と支出!R73+プロジェクト収支!R24+R26 -> 204.2284414 | S27: =作業と支出!S30+作業と支出!S61+作業と支出!S73+プロジェクト収支!S24+S26 -> 163.9675842 | T27: =作業と支出!T30+作業と支出!T61+作業と支出!T73+プロジェクト収支!T24+T26 -> 148.6597647 | U27: =作業と支出!U30+作業と支出!U61+作業と支出!U73+プロジェクト収支!U24+U26 -> 132.9645537 | V27: =作業と支出!V30+作業と支出!V61+作業と支出!V73+プロジェクト収支!V24+V26 -> 115.7723794 | W27: =作業と支出!W30+作業と支出!W61+作業と支出!W73+プロジェクト収支!W24+W26 -> 97.97337552 | X27: =作業と支出!X30+作業と支出!X61+作業と支出!X73+プロジェクト収支!X24+X26 -> 83.90247002 | Y27: =作業と支出!Y30+作業と支出!Y61+作業と支出!Y73+プロジェクト収支!Y24+Y26 -> 70.20997912 | Z27: =作業と支出!Z30+作業と支出!Z61+作業と支出!Z73+プロジェクト収支!Z24+Z26 -> 59.10506326 | AA27: =作業と支出!AA30+作業と支出!AA61+作業と支出!AA73+プロジェクト収支!AA24+AA26 -> 50.15391279 | AB27: =作業と支出!AB30+作業と支出!AB61+作業と支出!AB73+プロジェクト収支!AB24+AB26 -> 43.63693537 | AC27: =作業と支出!AC30+作業と支出!AC61+作業と支出!AC73+プロジェクト収支!AC24+AC26 -> 38.46172166 | AD27: =作業と支出!AD30+作業と支出!AD61+作業と支出!AD73+プロジェクト収支!AD24+AD26 -> 35.6241407 | AE27: =作業と支出!AE30+作業と支出!AE61+作業と支出!AE73+プロジェクト収支!AE24+AE26 -> 65.58273001 | AF27: 2944.563194
C28: 収支（Net Cash Flow＝総収入－総支出) | E28: =E25-E27 -> -26.8 | F28: =F25-F27 -> -73.08 | G28: -66.964625 | H28: -80.51723487 | I28: -16.05477167 | J28: -184.6464783 | K28: -398.2320367 | L28: 136.4026521 | M28: 382.8569608 | N28: 378.3536102 | O28: 226.5745241 | P28: 105.3356793 | Q28: 104.3056265 | R28: 80.98495338 | S28: 121.8976699 | T28: 108.2997629 | U28: 94.30274287 | V28: 78.92423819 | W28: 62.94678741 | X28: 50.21581709 | Y28: 37.77113107 | Z28: 27.58238444 | AA28: 19.27469555 | AB28: 13.10848076 | AC28: 8.117044639 | AD28: 0.05448567795 | AE28: -65.58273001 | AF28: 1125.376885
C29: 収支累計（名目額） | E29: =+E28 -> -26.8 | F29: =+E29+F28 -> -99.88 | G29: -166.844625 | H29: -247.3618599 | I29: -263.4166315 | J29: -448.0631098 | K29: -846.2951465 | L29: -709.8924945 | M29: -327.0355337 | N29: 51.31807645 | O29: 277.8926005 | P29: 383.2282798 | Q29: 487.5339064 | R29: 568.5188598 | S29: 690.4165296 | T29: 798.7162926 | U29: 893.0190354 | V29: 971.9432736 | W29: 1034.890061 | X29: 1085.105878 | Y29: 1122.877009 | Z29: 1150.459394 | AA29: 1169.734089 | AB29: 1182.84257 | AC29: 1190.959615 | AD29: 1191.0141 | AE29: =+AC29+AE28 -> 1125.376885
C30: 現在価値（割引率５％） | E30: =E28/((1+$E$9)^(E11-2021)) -> -26.8 | F30: =F28/((1+$E$9)^(F11-2021)) -> -69.6 | G30: -60.73888889 | H30: -69.55381481 | I30: -13.20830039 | J30: -144.6753473 | K30: -297.1668772 | L30: 96.9388182 | M30: 259.1326611 | N30: 243.8901106 | O30: 139.0971032 | P30: 61.5875901 | Q30: 58.08127578 | R30: 42.94804986 | S30: 61.5666066 | T30: 52.09403768 | U30: 43.20117307 | V30: 34.4343837 | W30: 26.15569033 | X30: 19.872104 | Y30: 14.23554206 | Z30: 9.900486295 | AA30: 6.589052188 | AB30: 4.267745199 | AC30: 2.516835069 | AD30: =AD28/((1+$E$9)^(AD11-2021)) -> 0.01608977172 | AE30: -19.36676195 | AF30: =SUM(E30:AC30)+AE30 -> 475.3992745
C31: 収支累計（割引額） | E31: =+E30 -> -26.8 | F31: =+E31+F30 -> -96.4 | G31: -157.1388889 | H31: -226.6927037 | I31: -239.9010041 | J31: -384.5763514 | K31: -681.7432286 | L31: -584.8044104 | M31: -325.6717493 | N31: -81.78163873 | O31: 57.31546451 | P31: 118.9030546 | Q31: 176.9843304 | R31: 219.9323803 | S31: 281.4989868 | T31: 333.5930245 | U31: 376.7941976 | V31: 411.2285813 | W31: 437.3842716 | X31: 457.2563756 | Y31: 471.4919177 | Z31: 481.392404 | AA31: 487.9814562 | AB31: 492.2492014 | AC31: 494.7660364 | AD31: 494.7821262 | AE31: =+AC31+AE30 -> 475.3992745
E32: 21年起算 | G32: 23年起算 | I32: 25年起算
D33: ROR | E33: =IRR(E28:AC28) -> 0.1459504278 | F33: Onward | G33: =IRR(G28:AC28) -> 0.194789659 | I33: =IRR(I28:AC28) -> 0.3125855545
D34: NPV （百万ドル） | E34: =AF30 -> 475.3992745
C35: Equity 原油取り分（百万バレル） | E35: =AF35 -> 39.93209408 | L35: =IF(生産と生産額!L35>0,(L21+L23)/生産と生産額!L37,0) -> 2.819625 | M35: =IF(生産と生産額!M35>0,(M21+M23)/生産と生産額!M37,0) -> 5.63925 | N35: =IF(生産と生産額!N35>0,(N21+N23)/生産と生産額!N37,0) -> 5.41368 | O35: =IF(生産と生産額!O35>0,(O21+O23)/生産と生産額!O37,0) -> 3.849052372 | P35: =IF(生産と生産額!P35>0,(P21+P23)/生産と生産額!P37,0) -> 2.977403099 | Q35: =IF(生産と生産額!Q35>0,(Q21+Q23)/生産と生産額!Q37,0) -> 2.454973164 | R35: =IF(生産と生産額!R35>0,(R21+R23)/生産と生産額!R37,0) -> 2.740663558 | S35: =IF(生産と生産額!S35>0,(S21+S23)/生産と生産額!S37,0) -> 2.666337338 | T35: =IF(生産と生産額!T35>0,(T21+T23)/生産と生産額!T37,0) -> 2.326410575 | U35: =IF(生産と生産額!U35>0,(U21+U23)/生産と生産額!U37,0) -> 1.997222727 | V35: =IF(生産と生産額!V35>0,(V21+V23)/生産と生産額!V37,0) -> 1.660794416 | W35: =IF(生産と生産額!W35>0,(W21+W23)/生産と生産額!W37,0) -> 1.332403756 | X35: =IF(生産と生産額!X35>0,(X21+X23)/生産と生産額!X37,0) -> 1.077907015 | Y35: =IF(生産と生産額!Y35>0,(Y21+Y23)/生産と生産額!Y37,0) -> 0.8423818558 | Z35: =IF(生産と生産額!Z35>0,(Z21+Z23)/生産と生産額!Z37,0) -> 0.6564253548 | AA35: =IF(生産と生産額!AA35>0,(AA21+AA23)/生産と生産額!AA37,0) -> 0.5103116779 | AB35: =IF(生産と生産額!AB35>0,(AB21+AB23)/生産と生産額!AB37,0) -> 0.404851495 | AC35: =IF(生産と生産額!AC35>0,(AC21+AC23)/生産と生産額!AC37,0) -> 0.3225676863 | AD35: =IF(生産と生産額!AD35>0,(AD21+AD23)/生産と生産額!AD37,0) -> 0.2398329884 | AE35: =IF(生産と生産額!AE35>0,(AE21+AE23)/生産と生産額!AE37,0) -> 0 | AF35: =SUM(G35:AD35) -> 39.93209408
L37: 投資回収期間（回収終了年分を手計算） | R37: 割引後
M38: 初年度から | P38: =9+(1-N29/N28) -> 9.864364777 | Q38: 年 | R38: =10+(1-O31/O30) -> 10.58794638 | S38: 年
M39: 開発開始以降 | P39: =P38-4 -> 5.864364777 | Q39: 年 | R39: =R38-4 -> 6.587946383 | S39: 年
M40: 生産開始以降 | P40: =P39-3 -> 2.864364777 | Q40: 年 | R40: =R39-3 -> 3.587946383 | S40: 年

Sheet 自社収支
B2: ８．自社投資の収支計算
C3: ・前提条件
C4: 1 | D4: 参加比率 | E4: =Dashboard!G7*Dashboard!J7 -> 0.6
C5: 2 | D5: 出資金 | E5: 探鉱期間の費用全額
C6: 3 | D6: 借入金 | E6: 開発費全額 | H6: → | I6: ここでは坑井改修、In-fill well掘削時に追加借り入れを発生させているが、手元資金で賄ってもよい。
C7: 4 | D7: 金利 | E7: =Dashboard!G34*Dashboard!J34 -> 0.05
C8: 5 | D8: 返済期間（元利均等返済） | E8: =Dashboard!G35 -> 7 | F8: 年 | H8: → | I8: 追加借り入れを発生させているため、返済期間が引き延ばされている。
C9: 6 | D9: 本社管理費 | E9: =Dashboard!G32*Dashboard!J32 -> 300 | F9: 千ドル/年 | H9: → | I9: 本社で本事業の管理のために必要とされる費用。現地作業の応援のための出張などは事業費に計上される。オペレーターの収入となる「overhead」(ノンオペレーターが支払い）は無視している。
C10: 7 | D10: 割引率 | E10: =Dashboard!G36 -> 0.05 | F10: /年
E11: 探鉱期間→ | I11: 開発期間→ | L11: 生産期間→ | AE11: 廃山ケース
C12: ・計算結果（百万ドル） | E12: 2021 | F12: =E12+1 -> 2022 | G12: =F12+1 -> 2023 | H12: 2024 | I12: 2025 | J12: 2026 | K12: 2027 | L12: 2028 | M12: 2029 | N12: 2030 | O12: 2031 | P12: 2032 | Q12: 2033 | R12: 2034 | S12: 2035 | T12: 2036 | U12: 2037 | V12: 2038 | W12: 2039 | X12: 2040 | Y12: 2041 | Z12: 2042 | AA12: 2043 | AB12: 2044 | AC12: =AB12+1 -> 2045 | AD12: =AC12+1 -> 2046 | AE12: 2046 | AF12: 合計
C13: プロジェクト会社の収支
D14: 原油販売収入（税前） | E14: =(プロジェクト収支!E21+プロジェクト収支!E23)*$E$4 -> 0 | F14: =(プロジェクト収支!F21+プロジェクト収支!F23)*$E$4 -> 0 | G14: =(プロジェクト収支!G21+プロジェクト収支!G23)*$E$4 -> 0 | H14: =(プロジェクト収支!H21+プロジェクト収支!H23)*$E$4 -> 0 | I14: =(プロジェクト収支!I21+プロジェクト収支!I23)*$E$4 -> 0 | J14: =(プロジェクト収支!J21+プロジェクト収支!J23)*$E$4 -> 0 | K14: =(プロジェクト収支!K21+プロジェクト収支!K23)*$E$4 -> 0 | L14: =(プロジェクト収支!L21+プロジェクト収支!L23)*$E$4 -> 147.2530466 | M14: =(プロジェクト収支!M21+プロジェクト収支!M23)*$E$4 -> 303.4075398 | N14: =(プロジェクト収支!N21+プロジェクト収支!N23)*$E$4 -> 300.0749114 | O14: =(プロジェクト収支!O21+プロジェクト収支!O23)*$E$4 -> 219.7976324 | P14: =(プロジェクト収支!P21+プロジェクト収支!P23)*$E$4 -> 175.1616027 | Q14: =(プロジェクト収支!Q21+プロジェクト収支!Q23)*$E$4 -> 148.7921803 | R14: =(プロジェクト収支!R21+プロジェクト収支!R23)*$E$4 -> 171.1280369 | S14: =(プロジェクト収支!S21+プロジェクト収支!S23)*$E$4 -> 171.5191525 | T14: =(プロジェクト収支!T21+プロジェクト収支!T23)*$E$4 -> 154.1757166 | U14: =(プロジェクト収支!U21+プロジェクト収支!U23)*$E$4 -> 136.3603779 | V14: =(プロジェクト収支!V21+プロジェクト収支!V23)*$E$4 -> 116.8179706 | W14: =(プロジェクト収支!W21+プロジェクト収支!W23)*$E$4 -> 96.55209776 | X14: =(プロジェクト収支!X21+プロジェクト収支!X23)*$E$4 -> 80.47097227 | Y14: =(プロジェクト収支!Y21+プロジェクト収支!Y23)*$E$4 -> 64.78866612 | Z14: =(プロジェクト収支!Z21+プロジェクト収支!Z23)*$E$4 -> 52.01246862 | AA14: =(プロジェクト収支!AA21+プロジェクト収支!AA23)*$E$4 -> 41.657165 | AB14: =(プロジェクト収支!AB21+プロジェクト収支!AB23)*$E$4 -> 34.04724968 | AC14: =(プロジェクト収支!AC21+プロジェクト収支!AC23)*$E$4 -> 27.94725978 | AD14: =(プロジェクト収支!AD21+プロジェクト収支!AD23)*$E$4 -> 21.40717583 | AE14: =(プロジェクト収支!AE21+プロジェクト収支!AE23)*$E$4 -> 0 | AF14: =SUM(E14:AC14)+AE14 -> 2441.964047
D15: ボーナス | E15: =作業と支出!E30*'自社収支 '!$E$4 -> 6 | F15: =作業と支出!F30*'自社収支 '!$E$4 -> 0 | G15: =作業と支出!G30*'自社収支 '!$E$4 -> 0 | H15: =作業と支出!H30*'自社収支 '!$E$4 -> 0 | I15: =作業と支出!I30*'自社収支 '!$E$4 -> 1.8 | J15: =作業と支出!J30*'自社収支 '!$E$4 -> 0 | K15: =作業と支出!K30*'自社収支 '!$E$4 -> 0 | L15: =作業と支出!L30*'自社収支 '!$E$4 -> 3 | M15: =作業と支出!M30*'自社収支 '!$E$4 -> 0 | N15: =作業と支出!N30*'自社収支 '!$E$4 -> 0 | O15: =作業と支出!O30*'自社収支 '!$E$4 -> 0 | P15: =作業と支出!P30*'自社収支 '!$E$4 -> 0 | Q15: =作業と支出!Q30*'自社収支 '!$E$4 -> 0 | R15: =作業と支出!R30*'自社収支 '!$E$4 -> 0 | S15: =作業と支出!S30*'自社収支 '!$E$4 -> 0 | T15: =作業と支出!T30*'自社収支 '!$E$4 -> 0 | U15: =作業と支出!U30*'自社収支 '!$E$4 -> 0 | V15: =作業と支出!V30*'自社収支 '!$E$4 -> 0 | W15: =作業と支出!W30*'自社収支 '!$E$4 -> 0 | X15: =作業と支出!X30*'自社収支 '!$E$4 -> 0 | Y15: =作業と支出!Y30*'自社収支 '!$E$4 -> 0 | Z15: =作業と支出!Z30*'自社収支 '!$E$4 -> 0 | AA15: =作業と支出!AA30*'自社収支 '!$E$4 -> 0 | AB15: =作業と支出!AB30*'自社収支 '!$E$4 -> 0 | AC15: =作業と支出!AC30*'自社収支 '!$E$4 -> 0 | AD15: =作業と支出!AD30*'自社収支 '!$E$4 -> 0 | AE15: =作業と支出!AE30*'自社収支 '!$E$4 -> 0 | AF15: =SUM(E15:AC15)+AE15 -> 10.8
D16: 探鉱・開発費 | E16: =作業と支出!E61*'自社収支 '!$E$4 -> 9.9 | F16: =作業と支出!F61*'自社収支 '!$E$4 -> 43.6653 | G16: =作業と支出!G61*'自社収支 '!$E$4 -> 39.9933345 | H16: =作業と支出!H61*'自社収支 '!$E$4 -> 48.12211882 | I16: =作業と支出!I61*'自社収支 '!$E$4 -> 7.641817564 | J16: =作業と支出!J61*'自社収支 '!$E$4 -> 110.5939758 | K16: =作業と支出!K61*'自社収支 '!$E$4 -> 238.7424022 | L16: =作業と支出!L61*'自社収支 '!$E$4 -> 19.84402704 | M16: =作業と支出!M61*'自社収支 '!$E$4 -> 0 | N16: =作業と支出!N61*'自社収支 '!$E$4 -> 0 | O16: =作業と支出!O61*'自社収支 '!$E$4 -> 0 | P16: =作業と支出!P61*'自社収支 '!$E$4 -> 24.59557381 | Q16: =作業と支出!Q61*'自社収支 '!$E$4 -> 0 | R16: =作業と支出!R61*'自社収支 '!$E$4 -> 51.11482894 | S16: =作業と支出!S61*'自社収支 '!$E$4 -> 0 | T16: =作業と支出!T61*'自社収支 '!$E$4 -> 0 | U16: =作業と支出!U61*'自社収支 '!$E$4 -> 0 | V16: =作業と支出!V61*'自社収支 '!$E$4 -> 0 | W16: =作業と支出!W61*'自社収支 '!$E$4 -> 0 | X16: =作業と支出!X61*'自社収支 '!$E$4 -> 0 | Y16: =作業と支出!Y61*'自社収支 '!$E$4 -> 0 | Z16: =作業と支出!Z61*'自社収支 '!$E$4 -> 0 | AA16: =作業と支出!AA61*'自社収支 '!$E$4 -> 0 | AB16: =作業と支出!AB61*'自社収支 '!$E$4 -> 0 | AC16: =作業と支出!AC61*'自社収支 '!$E$4 -> 0 | AD16: =作業と支出!AD61*'自社収支 '!$E$4 -> 0 | AE16: =作業と支出!AE61*'自社収支 '!$E$4 -> 32.99449735 | AF16: 627.2078761
D17: 操業費 | E17: =作業と支出!E73*$E$4 -> 0 | F17: =作業と支出!F73*'自社収支 '!$E$4 -> 0 | G17: =作業と支出!G73*'自社収支 '!$E$4 -> 0 | H17: =作業と支出!H73*'自社収支 '!$E$4 -> 0 | I17: =作業と支出!I73*'自社収支 '!$E$4 -> 0 | J17: =作業と支出!J73*'自社収支 '!$E$4 -> 0 | K17: =作業と支出!K73*'自社収支 '!$E$4 -> 0 | L17: =作業と支出!L73*'自社収支 '!$E$4 -> 18.77857593 | M17: =作業と支出!M73*'自社収支 '!$E$4 -> 24.88647422 | N17: =作業と支出!N73*'自社収支 '!$E$4 -> 24.7866823 | O17: =作業と支出!O73*'自社収支 '!$E$4 -> 24.23652662 | P17: =作業と支出!P73*'自社収支 '!$E$4 -> 23.73915209 | Q17: =作業と支出!Q73*'自社収支 '!$E$4 -> 23.19500596 | R17: =作業と支出!R73*'自社収支 '!$E$4 -> 22.39438501 | S17: =作業と支出!S73*'自社収支 '!$E$4 -> 24.79851656 | T17: =作業と支出!T73*'自社収支 '!$E$4 -> 23.76591753 | U17: =作業と支出!U73*'自社収支 '!$E$4 -> 22.74025168 | V17: =作業と支出!V73*'自社収支 '!$E$4 -> 21.64519741 | W17: =作業と支出!W73*'自社収支 '!$E$4 -> 20.54531024 | X17: =作業と支出!X73*'自社収支 '!$E$4 -> 19.73428949 | Y17: =作業と支出!Y73*'自社収支 '!$E$4 -> 18.97844103 | Z17: =作業と支出!Z73*'自社収支 '!$E$4 -> 18.42146647 | AA17: =作業と支出!AA73*'自社収支 '!$E$4 -> 18.02800741 | AB17: =作業と支出!AB73*'自社収支 '!$E$4 -> 17.81005699 | AC17: =作業と支出!AC73*'自社収支 '!$E$4 -> 17.6921852 | AD17: =作業と支出!AD73*'自社収支 '!$E$4 -> 17.68400939 | AE17: =作業と支出!AE73*'自社収支 '!$E$4 -> 6.093970487 | AF17: 392.2704126
D18: 石油収入税 | E18: =プロジェクト収支!E24*'自社収支 '!$E$4 -> 0 | F18: =プロジェクト収支!F24*'自社収支 '!$E$4 -> 0 | G18: =プロジェクト収支!G24*'自社収支 '!$E$4 -> 0 | H18: =プロジェクト収支!H24*'自社収支 '!$E$4 -> 0 | I18: =プロジェクト収支!I24*'自社収支 '!$E$4 -> 0 | J18: =プロジェクト収支!J24*'自社収支 '!$E$4 -> 0 | K18: =プロジェクト収支!K24*'自社収支 '!$E$4 -> 0 | L18: =プロジェクト収支!L24*'自社収支 '!$E$4 -> 23.58908028 | M18: =プロジェクト収支!M24*'自社収支 '!$E$4 -> 48.60412045 | N18: =プロジェクト収支!N24*'自社収支 '!$E$4 -> 48.07025279 | O18: =プロジェクト収支!O24*'自社収支 '!$E$4 -> 59.40749404 | P18: =プロジェクト収支!P24*'自社収支 '!$E$4 -> 63.4134384 | Q18: =プロジェクト収支!Q24*'自社収支 '!$E$4 -> 62.79858719 | R18: =プロジェクト収支!R24*'自社収支 '!$E$4 -> 48.80941147 | S18: =プロジェクト収支!S24*'自社収支 '!$E$4 -> 73.36031796 | T18: =プロジェクト収支!T24*'自社収支 '!$E$4 -> 65.20489952 | U18: =プロジェクト収支!U24*'自社収支 '!$E$4 -> 56.81006312 | V18: =プロジェクト収支!V24*'自社収支 '!$E$4 -> 47.58638658 | W18: =プロジェクト収支!W24*'自社収支 '!$E$4 -> 38.00339376 | X18: =プロジェクト収支!X24*'自社収支 '!$E$4 -> 30.36834139 | Y18: =プロジェクト収支!Y24*'自社収支 '!$E$4 -> 22.90511254 | Z18: =プロジェクト収支!Z24*'自社収支 '!$E$4 -> 16.79550108 | AA18: =プロジェクト収支!AA24*'自社収支 '!$E$4 -> 11.81457879 | AB18: =プロジェクト収支!AB24*'自社収支 '!$E$4 -> 8.118596345 | AC18: =プロジェクト収支!AC24*'自社収支 '!$E$4 -> 5.127537289 | AD18: =プロジェクト収支!AD24*'自社収支 '!$E$4 -> 3.429304866 | AE18: =プロジェクト収支!AE24*'自社収支 '!$E$4 -> 0 | AF18: 730.787113
D19: 支出合計 | E19: =SUM(E15:E18) -> 15.9 | F19: =SUM(F15:F18) -> 43.6653 | G19: 39.9933345 | H19: 48.12211882 | I19: 9.441817564 | J19: 110.5939758 | K19: 238.7424022 | L19: 65.21168324 | M19: 73.49059468 | N19: 72.8569351 | O19: 83.64402066 | P19: 111.7481643 | Q19: 85.99359316 | R19: 122.3186254 | S19: 98.15883452 | T19: 88.97081705 | U19: 79.5503148 | V19: 69.23158399 | W19: 58.548704 | X19: 50.10263088 | Y19: 41.88355357 | Z19: 35.21696754 | AA19: 29.84258621 | AB19: 25.92865334 | AC19: 22.81972249 | AD19: 21.11331426 | AE19: 39.08846784 | AF19: 1761.065402
D20: 借入金返済原資 | E20: =IF(E14-E15-E17-E18>0,E14-E15-E17-E18,0) -> 0 | F20: =IF(F14-F15-F17-F18>0,F14-F15-F17-F18,0) -> 0 | G20: 0 | H20: 0 | I20: 0 | J20: 0 | K20: 0 | L20: 101.8853904 | M20: 229.9169451 | N20: 227.2179763 | O20: 136.1536118 | P20: 88.00901221 | Q20: 62.79858719 | R20: 99.92424041 | S20: 73.36031796 | T20: 65.20489952 | U20: 56.81006312 | V20: 47.58638658 | W20: 38.00339376 | X20: 30.36834139 | Y20: 22.90511254 | Z20: 16.79550108 | AA20: 11.81457879 | AB20: 8.118596345 | AC20: 5.127537289 | AD20: 0.2938615705 | AE20: 0
C21: 出資 | E21: =E19 -> 15.9 | F21: =F19 -> 43.6653 | G21: =G19 -> 39.9933345 | H21: =H19 -> 48.12211882 | AF21: =SUM(E21:AC21)+AE21 -> 147.6807533
C22: 借入れ | D22: 元本 | E22: =IF(E19-E14-E21>0,E19-E14-E21,0) -> 0 | F22: =IF(F19-F14-F21>0,F19-F14-F21,0) -> 0 | G22: =IF(G19-G14-G21>0,G19-G14-G21,0) -> 0 | H22: =IF(H19-H14-H21>0,H19-H14-H21,0) -> 0 | I22: =I15+I16 -> 9.441817564 | J22: =J15+J16 -> 110.5939758 | K22: =K15+K16 -> 238.7424022 | L22: =L15+L16 -> 22.84402704 | M22: =M15+M16 -> 0 | N22: 0 | O22: 0 | P22: 24.59557381 | Q22: 0 | R22: 51.11482894 | S22: 0 | T22: 0 | U22: 0 | AF22: 457.3326255
D23: 金利 | E23: =(E22)*$E$7 -> 0 | F23: =(F22)*$E$7 -> 0 | G23: 0 | H23: 0 | I23: =(H26+I22)*$E$7 -> 0.4720908782 | J23: =(I26+J22)*$E$7 -> 6.025394214 | K23: 18.26378404 | L23: 20.31917459 | M23: 17.83513332 | N23: 15.22688999 | O23: 12.48823449 | P23: 10.8424249 | Q23: 7.884546146 | R23: 7.694585541 | S23: 4.579314818 | T23: 1.308280559 | U23: 0 | AF23: 122.9398535
C24: 資金返済（金利含む7年均等返済） | L24: =ROUND(SUM(I22:L23)*E25,-1) -> 70 | M24: =IF(L26+M22+M23>$L$24,IF(M20>$L$24,$L$24,M20),IF(M20>L26+M22+M23,L26+M22+M23,M20)) -> 70 | N24: =IF(M26+N22+N23>$L$24,IF(N20>$L$24,$L$24,N20),IF(N20>M26+N22+N23,M26+N22+N23,N20)) -> 70 | O24: 70 | P24: 70 | Q24: 62.79858719 | R24: 70 | S24: 70 | T24: 27.47389174 | U24: 0 | AF24: 580.2724789
D25: 資本回収係数 | E25: =E7/(1-(1+E7)^(-1*E8)) -> 0.1728198184 | F25: /年 | K25: Debt Service Coverage Ratio | L25: =SUM(L20:S20)/SUM(L24:S24) -> 1.843829027
C26: 年末借入残（金利含む） | I26: =H26+I22+I23-I24 -> 9.913908443 | J26: =I26+J22+J23-J24 -> 126.5332785 | K26: =J26+K22+K23-K24 -> 383.5394648 | L26: =K26+L22+L23-L24 -> 356.7026664 | M26: =L26+M22+M23-M24 -> 304.5377997 | N26: 249.7646897 | O26: 192.2529242 | P26: 157.6909229 | Q26: 102.7768819 | R26: 91.58629636 | S26: 26.16561118 | T26: 0 | U26: 0
D27: Debt/Equity Ratio | I27: =I26/$AF$21 -> 0.06713067356 | J27: 0.8568027698 | K27: 2.59708497 | L27: 2.415363264 | M27: 2.062136012 | N27: 1.691247398 | O27: 1.301814352
C28: 本社管理費 | E28: =プロジェクト収支!E26 -> 0.3 | F28: =プロジェクト収支!F26 -> 0.3045 | G28: =プロジェクト収支!G26 -> 0.3090675 | H28: =プロジェクト収支!H26 -> 0.3137035125 | I28: =プロジェクト収支!I26 -> 0.3184090652 | J28: =プロジェクト収支!J26 -> 0.3231852012 | K28: =プロジェクト収支!K26 -> 0.3280329792 | L28: =プロジェクト収支!L26 -> 0.3329534739 | M28: =プロジェクト収支!M26 -> 0.337947776 | N28: =プロジェクト収支!N26 -> 0.3430169926 | O28: =プロジェクト収支!O26 -> 0.3481622475 | P28: =プロジェクト収支!P26 -> 0.3533846812 | Q28: =プロジェクト収支!Q26 -> 0.3586854514 | R28: =プロジェクト収支!R26 -> 0.3640657332 | S28: =プロジェクト収支!S26 -> 0.3695267192 | T28: =プロジェクト収支!T26 -> 0.37506962 | U28: =プロジェクト収支!U26 -> 0.3806956643 | V28: =プロジェクト収支!V26 -> 0.3864060993 | W28: =プロジェクト収支!W26 -> 0.3922021907 | X28: =プロジェクト収支!X26 -> 0.3980852236 | Y28: =プロジェクト収支!Y26 -> 0.404056502 | Z28: =プロジェクト収支!Z26 -> 0.4101173495 | AA28: =プロジェクト収支!AA26 -> 0.4162691097 | AB28: =プロジェクト収支!AB26 -> 0.4225131464 | AC28: =プロジェクト収支!AC26 -> 0.4288508436 | AD28: =プロジェクト収支!AD26 -> 0.4352836062 | AE28: =プロジェクト収支!AE26 -> 0.4352836062 | AF28: =SUM(E28:AC28)+AE28 -> 9.454190688
C29: プロジェクト会社のキャッシュフロー
C30: ・借入金なし | E30: =E14-(E19+E28) -> -16.2 | F30: -43.9698 | G30: -40.302402 | H30: -48.43582233 | I30: -9.76022663 | J30: -110.917161 | K30: -239.0704352 | L30: 81.70840985 | M30: 229.5789974 | N30: 226.8749593 | O30: 135.8054495 | P30: 63.06005372 | Q30: 62.43990174 | R30: 48.44534573 | S30: 72.99079124 | T30: 64.8298299 | U30: 56.42936746 | V30: 47.19998048 | W30: 37.61119157 | X30: 29.97025616 | Y30: 22.50105604 | Z30: 16.38538373 | AA30: 11.39830968 | AB30: 7.696083199 | AC30: 4.698686446 | AD30: =AD14-(AD19+AD28) -> -0.1414220357 | AE30: -39.52375145 | AF30: =SUM(E30:AC30)+AE30 -> 671.4444545
D31: 収支累計 | E31: =SUM($E$30:E30) -> -16.2 | F31: =SUM($E$30:F30) -> -60.1698 | G31: =SUM($E$30:G30) -> -100.472202 | H31: =SUM($E$30:H30) -> -148.9080243 | I31: =SUM($E$30:I30) -> -158.668251 | J31: =SUM($E$30:J30) -> -269.585412 | K31: =SUM($E$30:K30) -> -508.6558472 | L31: =SUM($E$30:L30) -> -426.9474374 | M31: =SUM($E$30:M30) -> -197.36844 | N31: =SUM($E$30:N30) -> 29.50651927 | O31: =SUM($E$30:O30) -> 165.3119688 | P31: =SUM($E$30:P30) -> 228.3720225 | Q31: =SUM($E$30:Q30) -> 290.8119243 | R31: =SUM($E$30:R30) -> 339.25727 | S31: =SUM($E$30:S30) -> 412.2480612 | T31: =SUM($E$30:T30) -> 477.0778911 | U31: =SUM($E$30:U30) -> 533.5072586 | V31: =SUM($E$30:V30) -> 580.7072391 | W31: =SUM($E$30:W30) -> 618.3184307 | X31: =SUM($E$30:X30) -> 648.2886868 | Y31: =SUM($E$30:Y30) -> 670.7897429 | Z31: =SUM($E$30:Z30) -> 687.1751266 | AA31: =SUM($E$30:AA30) -> 698.5734363 | AB31: =SUM($E$30:AB30) -> 706.2695195 | AC31: =SUM($E$30:AC30) -> 710.9682059 | AD31: =SUM($E$30:AD30) -> 710.8267839 | AE31: =SUM($E$30:AC30)+AE30 -> 671.4444545
D32: 現在価値（割引率５％） | E32: =E30/((1+$E$10)^(E12-2021)) -> -16.2 | F32: =F30/((1+$E$10)^(F12-2021)) -> -41.876 | G32: -36.55546667 | H32: -41.84068444 | I32: -8.029762603 | J32: -86.90649799 | K32: -178.3980396 | L32: 58.0686414 | M32: 155.3881021 | N32: 146.2456216 | O32: 83.37276538 | P32: 36.86990738 | Q32: 34.76887368 | R32: 25.69160118 | S32: 36.86530952 | T32: 31.18425665 | U32: 25.85094341 | V32: 20.59319514 | W32: 15.62822695 | X32: 11.86024806 | Y32: 8.480411376 | Z32: 5.88140838 | AA32: 3.896510696 | AB32: 2.505623856 | AC32: 1.456911887 | AD32: -0.04176231913 | AE32: =AE30/((1+$E$10)^(AE12-2021)) -> -11.67147335 | AF32: =SUM(E32:AC32)+AE32 -> 283.130634
C33: ・借入金あり | E33: =E14+E22-E19-E24-E28 -> -16.2 | F33: =F14+F22-F19-F24-F28 -> -43.9698 | G33: -40.302402 | H33: -48.43582233 | I33: -0.3184090652 | J33: -0.3231852012 | K33: -0.3280329792 | L33: 34.55243689 | M33: 159.5789974 | N33: 156.8749593 | O33: 65.80544954 | P33: 17.65562753 | Q33: -0.3586854514 | R33: 29.56017468 | S33: 2.990791236 | T33: 37.35593817 | U33: 56.42936746 | V33: 47.19998048 | W33: 37.61119157 | X33: 29.97025616 | Y33: 22.50105604 | Z33: 16.38538373 | AA33: 11.39830968 | AB33: 7.696083199 | AC33: 4.698686446 | AD33: =AD14+AD22-AD19-AD24-AD28 -> -0.1414220357 | AE33: -39.52375145 | AF33: =SUM(E33:AC33)+AE33 -> 548.504601
D34: 収支累計 | E34: =SUM($E$33:E33) -> -16.2 | F34: =SUM($E$33:F33) -> -60.1698 | G34: =SUM($E$33:G33) -> -100.472202 | H34: =SUM($E$33:H33) -> -148.9080243 | I34: =SUM($E$33:I33) -> -149.2264334 | J34: =SUM($E$33:J33) -> -149.5496186 | K34: =SUM($E$33:K33) -> -149.8776516 | L34: =SUM($E$33:L33) -> -115.3252147 | M34: =SUM($E$33:M33) -> 44.25378267 | N34: =SUM($E$33:N33) -> 201.128742 | O34: =SUM($E$33:O33) -> 266.9341915 | P34: =SUM($E$33:P33) -> 284.589819 | Q34: =SUM($E$33:Q33) -> 284.2311336 | R34: =SUM($E$33:R33) -> 313.7913083 | S34: =SUM($E$33:S33) -> 316.7820995 | T34: =SUM($E$33:T33) -> 354.1380377 | U34: =SUM($E$33:U33) -> 410.5674051 | V34: =SUM($E$33:V33) -> 457.7673856 | W34: =SUM($E$33:W33) -> 495.3785772 | X34: =SUM($E$33:X33) -> 525.3488333 | Y34: =SUM($E$33:Y33) -> 547.8498894 | Z34: =SUM($E$33:Z33) -> 564.2352731 | AA34: =SUM($E$33:AA33) -> 575.6335828 | AB34: =SUM($E$33:AB33) -> 583.329666 | AC34: =SUM($E$33:AC33) -> 588.0283524 | AD34: =SUM($E$33:AD33) -> 587.8869304 | AE34: =SUM($E$33:AC33)+AE33 -> 548.504601
D35: 現在価値（割引率５％） | E35: =E33/((1+$E$10)^(E12-2021)) -> -16.2 | F35: =F33/((1+$E$10)^(F12-2021)) -> -41.876 | G35: -36.55546667 | H35: -41.84068444 | I35: -0.2619559259 | J35: -0.2532240617 | K35: -0.2447832597 | L35: 24.55577181 | M35: 108.0093468 | N35: 101.1229975 | O35: 40.39883763 | P35: 10.32287975 | Q35: -0.1997294807 | R35: 15.67639176 | S35: 1.510552808 | T35: 17.96884497 | U35: 25.85094341 | V35: 20.59319514 | W35: 15.62822695 | X35: 11.86024806 | Y35: 8.480411376 | Z35: 5.88140838 | AA35: 3.896510696 | AB35: 2.505623856 | AC35: 1.456911887 | AD35: =AD33/((1+$E$10)^(AD12-2021)) -> -0.04176231913 | AE35: -11.67147335 | AF35: =SUM(E35:AC35)+AE35 -> 266.6157856
D36: 割引後収支累計 | E36: =SUM($E$35:E35) -> -16.2 | F36: =SUM($E$35:F35) -> -58.076 | G36: =SUM($E$35:G35) -> -94.63146667 | H36: =SUM($E$35:H35) -> -136.4721511 | I36: =SUM($E$35:I35) -> -136.734107 | J36: =SUM($E$35:J35) -> -136.9873311 | K36: =SUM($E$35:K35) -> -137.2321144 | L36: =SUM($E$35:L35) -> -112.6763425 | M36: =SUM($E$35:M35) -> -4.666995788 | N36: =SUM($E$35:N35) -> 96.45600171 | O36: =SUM($E$35:O35) -> 136.8548393 | P36: =SUM($E$35:P35) -> 147.1777191 | Q36: =SUM($E$35:Q35) -> 146.9779896 | R36: =SUM($E$35:R35) -> 162.6543814 | S36: =SUM($E$35:S35) -> 164.1649342 | T36: =SUM($E$35:T35) -> 182.1337792 | U36: =SUM($E$35:U35) -> 207.9847226 | V36: =SUM($E$35:V35) -> 228.5779177 | W36: =SUM($E$35:W35) -> 244.2061447 | X36: =SUM($E$35:X35) -> 256.0663927 | Y36: =SUM($E$35:Y35) -> 264.5468041 | Z36: =SUM($E$35:Z35) -> 270.4282125 | AA36: =SUM($E$35:AA35) -> 274.3247232 | AB36: =SUM($E$35:AB35) -> 276.830347 | AC36: =SUM($E$35:AC35) -> 278.2872589 | AD36: =SUM($E$35:AD35) -> 278.2454966 | AE36: =SUM($E$35:AC35)+AE35 -> 266.6157856
E37: 21年起算 | I37: 25年起算
D38: ROR | E38: =IRR(E30:AC30) -> 0.1452773247 | H38: 開発以降 | I38: =IRR(I30:AC30) -> 0.3116967931
D39: NPV （借入金なし、百万ドル） | E39: =AF32 -> 283.130634
D40: FIRR | E40: =IRR(E33:AC33) -> 0.1931862379 | H40: 開発以降 | I40: =IRR(I33:AC33) -> 4.613517622 | K40: 金利/収益比率 | M40: =AF23/(AF23+AF33) -> 0.1830975782
D41: NPV （借入金あり、百万ドル） | E41: =AF35 -> 266.6157856
M43: 投資回収期間（借入金あり） | S43: 割引後
N44: 初年度から | Q44: =8+(1-M34/M33) -> 8.722684166 | R44: 年 | S44: =9+(1-N36/N35) -> 9.046151676 | T44: 年
N45: 開発開始以降 | Q45: =Q44-4 -> 4.722684166 | R45: 年 | S45: =S44-4 -> 5.046151676 | T45: 年
N46: 生産開始以降 | Q46: =Q45-3 -> 1.722684166 | R46: 年 | S46: =S45-3 -> 2.046151676 | T46: 年

Sheet 表8.2
B1: キャッシュフロー／採算計算(原油生産、廃山費用込みモデルケース)
J2: 表８．２ キャッシュフロー計算例
D3: 探鉱期間→ | H3: 開発期間→ | K3: 生産期間→ | AD3: 単位：百万ドル
D4: 2021 | E4: =D4+1 -> 2022 | F4: =E4+1 -> 2023 | G4: 2024 | H4: 2025 | I4: 2026 | J4: 2027 | K4: 2028 | L4: 2029 | M4: 2030 | N4: 2031 | O4: 2032 | P4: 2033 | Q4: 2034 | R4: 2035 | S4: 2036 | T4: 2037 | U4: 2038 | V4: 2039 | W4: 2040 | X4: 2041 | Y4: 2042 | Z4: 2043 | AA4: 2044 | AB4: =AA4+1 -> 2045 | AC4: =AB4+1 -> 2046 | AD4: 合計 (2046まで)
K5: 生産期間20年（2047年まで）
B6: 生産量 | C6: レート（1,000BPD) | K6: =生産と生産額!L22 -> 15 | L6: =生産と生産額!M22 -> 30 | M6: =生産と生産額!N22 -> 28.8 | N6: =生産と生産額!O22 -> 26.496 | O6: =生産と生産額!P22 -> 24.37632 | P6: =生産と生産額!Q22 -> 22.192608 | Q6: =生産と生産額!R22 -> 19.4477328 | R6: =生産と生産額!S22 -> 24.31745288 | S6: =生産と生産額!T22 -> 21.05917895 | T6: =生産と生産額!U22 -> 17.90030211 | U6: =生産と生産額!V22 -> 14.66650879 | V6: =生産と生産額!W22 -> 11.50622346 | W6: =生産と生産額!X22 -> 9.060058187 | X6: =生産と生産額!Y22 -> 6.795043641 | Y6: =生産と生産額!Z22 -> 5.009469081 | Z6: =生産と生産額!AA22 -> 3.609518608 | AA6: =生産と生産額!AB22 -> 2.603830713 | AB6: =生産と生産額!AC22 -> 1.822681499 | AC6: 0
C7: 年生産量（百万バレル) | K7: =K6*365/1000 -> 5.475 | L7: =L6*365/1000 -> 10.95 | M7: 10.512 | N7: 9.67104 | O7: 8.8973568 | P7: 8.10030192 | Q7: 7.098422472 | R7: 8.875870301 | S7: 7.686600316 | T7: 6.533610269 | U7: 5.353275707 | V7: 4.199771563 | W7: 3.306921238 | X7: 2.480190929 | Y7: 1.828456215 | Z7: 1.317474292 | AA7: 0.9503982104 | AB7: 0.6652787473 | AC7: =AC6*365/1000 -> 0 | AD7: =SUM(D7:AC7) -> 103.901969
C8: 実質原油価格（ドル/Bbl) | H8: =生産と生産額!I36 -> 75 | I8: =生産と生産額!J36 -> 76.125 | J8: =生産と生産額!K36 -> 77.266875 | K8: =生産と生産額!L36 -> 78.42587812 | L8: =生産と生産額!M36 -> 79.6022663 | M8: =生産と生産額!N36 -> 80.79630029 | N8: =生産と生産額!O36 -> 82.0082448 | O8: =生産と生産額!P36 -> 83.23836847 | P8: =生産と生産額!Q36 -> 84.48694399 | Q8: =生産と生産額!R36 -> 85.75424815 | R8: =生産と生産額!S36 -> 87.04056188 | S8: =生産と生産額!T36 -> 88.34617031 | T8: =生産と生産額!U36 -> 89.67136286 | U8: =生産と生産額!V36 -> 91.0164333 | V8: =生産と生産額!W36 -> 92.3816798 | W8: =生産と生産額!X36 -> 93.767405 | X8: =生産と生産額!Y36 -> 95.17391607 | Y8: =生産と生産額!Z36 -> 96.60152482 | Z8: =生産と生産額!AA36 -> 98.05054769 | AA8: =生産と生産額!AB36 -> 99.5213059 | AB8: =生産と生産額!AC36 -> 101.0141255 | AC8: =生産と生産額!AD36 -> 102.5293374
C9: 名目原油価格（ドル/Bbl) | H9: =生産と生産額!I37 -> 79.6022663 | I9: =生産と生産額!J37 -> 82.0082448 | J9: =生産と生産額!K37 -> 84.48694399 | K9: =生産と生産額!L37 -> 87.04056188 | L9: =生産と生産額!M37 -> 89.67136286 | M9: =生産と生産額!N37 -> 92.3816798 | N9: =生産と生産額!O37 -> 95.17391607 | O9: =生産と生産額!P37 -> 98.05054769 | P9: =生産と生産額!Q37 -> 101.0141255 | Q9: =生産と生産額!R37 -> 104.0672774 | R9: =生産と生産額!S37 -> 107.2127109 | S9: =生産と生産額!T37 -> 110.4532151 | T9: =生産と生産額!U37 -> 113.7916635 | U9: =生産と生産額!V37 -> 117.2310165 | V9: =生産と生産額!W37 -> 120.774324 | W9: =生産と生産額!X37 -> 124.424728 | X9: =生産と生産額!Y37 -> 128.1854654 | Y9: =生産と生産額!Z37 -> 132.059871 | Z9: =生産と生産額!AA37 -> 136.0513807 | AA9: =生産と生産額!AB37 -> 140.1635336 | AB9: =生産と生産額!AC37 -> 144.3999764 | AC9: =生産と生産額!AD37 -> 148.7644657
C10: 総生産額（百万ドル） | K10: =K7*K9 -> 476.5470763 | L10: =L7*L9 -> 981.9014233 | M10: 971.1162181 | N10: 920.4307493 | O10: 872.3907072 | P10: 818.2449147 | Q10: 738.7135007 | R10: 951.6061165 | S10: 849.009718 | T10: 743.4703812 | U10: 627.5699529 | V10: 507.2245716 | W10: 411.4627755 | X10: 317.9244284 | Y10: 241.4656919 | Z10: 179.2441964 | AA10: 133.2111715 | AB10: 96.06623543 | AC10: 0 | AD10: =SUM(D10:AC10) -> 10837.59983
D11: サインボーナス | H11: 商業発見ボーナス | K11: 生産移行ボーナス
B12: ボーナス | D12: =作業と支出!E30 -> 10 | H12: =作業と支出!I30 -> 3 | K12: =作業と支出!L30 -> 5 | AD12: =SUM(D12:AC12) -> 18
B13: 探鉱費 | C13: 地震探鉱費ほか | D13: =IF(作業と支出!E31=0," ",作業と支出!E31) -> 15 | E13: =IF(作業と支出!F31=0," ",作業と支出!F31) ->  | F13: =IF(作業と支出!G31=0," ",作業と支出!G31) -> 5 | G13: =IF(作業と支出!H31=0," ",作業と支出!H31) ->  | H13: =IF(作業と支出!I31=0," ",作業と支出!I31) ->  | I13: =IF(作業と支出!J31=0," ",作業と支出!J31) ->  | J13: =IF(作業と支出!K31=0," ",作業と支出!K31) ->  | K13: =IF(作業と支出!L31=0," ",作業と支出!L31) ->  | L13: =IF(作業と支出!M31=0," ",作業と支出!M31) ->  | M13: =IF(作業と支出!N31=0," ",作業と支出!N31) ->  | N13: =IF(作業と支出!O31=0," ",作業と支出!O31) ->  | O13: =IF(作業と支出!P31=0," ",作業と支出!P31) ->  | P13: =IF(作業と支出!Q31=0," ",作業と支出!Q31) ->  | Q13: =IF(作業と支出!R31=0," ",作業と支出!R31) ->  | R13: =IF(作業と支出!S31=0," ",作業と支出!S31) ->  | S13: =IF(作業と支出!T31=0," ",作業と支出!T31) ->  | T13: =IF(作業と支出!U31=0," ",作業と支出!U31) ->  | U13: =IF(作業と支出!V31=0," ",作業と支出!V31) ->  | V13: =IF(作業と支出!W31=0," ",作業と支出!W31) ->  | W13: =IF(作業と支出!X31=0," ",作業と支出!X31) ->  | X13: =IF(作業と支出!Y31=0," ",作業と支出!Y31) ->  | Y13: =IF(作業と支出!Z31=0," ",作業と支出!Z31) ->  | Z13: =IF(作業と支出!AA31=0," ",作業と支出!AA31) ->  | AA13: =IF(作業と支出!AB31=0," ",作業と支出!AB31) ->  | AB13: =IF(作業と支出!AC31=0," ",作業と支出!AC31) ->  | AD13: 20
B14: （実質） | C14: 試掘井掘削費 | D14: =IF(作業と支出!E32=0," ",作業と支出!E32) ->  | E14: =IF(作業と支出!F32=0," ",作業と支出!F32) -> 69.2 | F14: =IF(作業と支出!G32=0," ",作業と支出!G32) -> 57.2 | G14: =IF(作業と支出!H32=0," ",作業と支出!H32) ->  | H14: =IF(作業と支出!I32=0," ",作業と支出!I32) ->  | I14: =IF(作業と支出!J32=0," ",作業と支出!J32) ->  | J14: =IF(作業と支出!K32=0," ",作業と支出!K32) ->  | K14: =IF(作業と支出!L32=0," ",作業と支出!L32) ->  | L14: =IF(作業と支出!M32=0," ",作業と支出!M32) ->  | M14: =IF(作業と支出!N32=0," ",作業と支出!N32) ->  | N14: =IF(作業と支出!O32=0," ",作業と支出!O32) ->  | O14: =IF(作業と支出!P32=0," ",作業と支出!P32) ->  | P14: =IF(作業と支出!Q32=0," ",作業と支出!Q32) ->  | Q14: =IF(作業と支出!R32=0," ",作業と支出!R32) ->  | R14: =IF(作業と支出!S32=0," ",作業と支出!S32) ->  | S14: =IF(作業と支出!T32=0," ",作業と支出!T32) ->  | T14: =IF(作業と支出!U32=0," ",作業と支出!U32) ->  | U14: =IF(作業と支出!V32=0," ",作業と支出!V32) ->  | V14: =IF(作業と支出!W32=0," ",作業と支出!W32) ->  | W14: =IF(作業と支出!X32=0," ",作業と支出!X32) ->  | X14: =IF(作業と支出!Y32=0," ",作業と支出!Y32) ->  | Y14: =IF(作業と支出!Z32=0," ",作業と支出!Z32) ->  | Z14: =IF(作業と支出!AA32=0," ",作業と支出!AA32) ->  | AA14: =IF(作業と支出!AB32=0," ",作業と支出!AB32) ->  | AB14: =IF(作業と支出!AC32=0," ",作業と支出!AC32) ->  | AD14: 126.4
C15: 評価井掘削費 | D15: =IF(作業と支出!E33=0," ",作業と支出!E33) ->  | E15: =IF(作業と支出!F33=0," ",作業と支出!F33) ->  | F15: =IF(作業と支出!G33=0," ",作業と支出!G33) ->  | G15: =IF(作業と支出!H33=0," ",作業と支出!H33) -> 73.2 | H15: =IF(作業と支出!I33=0," ",作業と支出!I33) ->  | I15: =IF(作業と支出!J33=0," ",作業と支出!J33) ->  | J15: =IF(作業と支出!K33=0," ",作業と支出!K33) ->  | K15: =IF(作業と支出!L33=0," ",作業と支出!L33) ->  | L15: =IF(作業と支出!M33=0," ",作業と支出!M33) ->  | M15: =IF(作業と支出!N33=0," ",作業と支出!N33) ->  | N15: =IF(作業と支出!O33=0," ",作業と支出!O33) ->  | O15: =IF(作業と支出!P33=0," ",作業と支出!P33) ->  | P15: =IF(作業と支出!Q33=0," ",作業と支出!Q33) ->  | Q15: =IF(作業と支出!R33=0," ",作業と支出!R33) ->  | R15: =IF(作業と支出!S33=0," ",作業と支出!S33) ->  | S15: =IF(作業と支出!T33=0," ",作業と支出!T33) ->  | T15: =IF(作業と支出!U33=0," ",作業と支出!U33) ->  | U15: =IF(作業と支出!V33=0," ",作業と支出!V33) ->  | V15: =IF(作業と支出!W33=0," ",作業と支出!W33) ->  | W15: =IF(作業と支出!X33=0," ",作業と支出!X33) ->  | X15: =IF(作業と支出!Y33=0," ",作業と支出!Y33) ->  | Y15: =IF(作業と支出!Z33=0," ",作業と支出!Z33) ->  | Z15: =IF(作業と支出!AA33=0," ",作業と支出!AA33) ->  | AA15: =IF(作業と支出!AB33=0," ",作業と支出!AB33) ->  | AB15: =IF(作業と支出!AC33=0," ",作業と支出!AC33) ->  | AD15: 73.2
C16: スタディ費 | D16: =IF(作業と支出!E34=0," ",作業と支出!E34) ->  | E16: =IF(作業と支出!F34=0," ",作業と支出!F34) -> 0.5 | F16: =IF(作業と支出!G34=0," ",作業と支出!G34) -> 0.5 | G16: =IF(作業と支出!H34=0," ",作業と支出!H34) -> 1.5 | H16: =IF(作業と支出!I34=0," ",作業と支出!I34) ->  | I16: =IF(作業と支出!J34=0," ",作業と支出!J34) ->  | J16: =IF(作業と支出!K34=0," ",作業と支出!K34) ->  | K16: =IF(作業と支出!L34=0," ",作業と支出!L34) ->  | L16: =IF(作業と支出!M34=0," ",作業と支出!M34) ->  | M16: =IF(作業と支出!N34=0," ",作業と支出!N34) ->  | N16: =IF(作業と支出!O34=0," ",作業と支出!O34) ->  | O16: =IF(作業と支出!P34=0," ",作業と支出!P34) ->  | P16: =IF(作業と支出!Q34=0," ",作業と支出!Q34) ->  | Q16: =IF(作業と支出!R34=0," ",作業と支出!R34) ->  | R16: =IF(作業と支出!S34=0," ",作業と支出!S34) ->  | S16: =IF(作業と支出!T34=0," ",作業と支出!T34) ->  | T16: =IF(作業と支出!U34=0," ",作業と支出!U34) ->  | U16: =IF(作業と支出!V34=0," ",作業と支出!V34) ->  | V16: =IF(作業と支出!W34=0," ",作業と支出!W34) ->  | W16: =IF(作業と支出!X34=0," ",作業と支出!X34) ->  | X16: =IF(作業と支出!Y34=0," ",作業と支出!Y34) ->  | Y16: =IF(作業と支出!Z34=0," ",作業と支出!Z34) ->  | Z16: =IF(作業と支出!AA34=0," ",作業と支出!AA34) ->  | AA16: =IF(作業と支出!AB34=0," ",作業と支出!AB34) ->  | AB16: =IF(作業と支出!AC34=0," ",作業と支出!AC34) ->  | AD16: 2.5
C17: 現地管理費 | D17: =IF(作業と支出!E35=0," ",作業と支出!E35) -> 1.5 | E17: =IF(作業と支出!F35=0," ",作業と支出!F35) -> 2 | F17: =IF(作業と支出!G35=0," ",作業と支出!G35) -> 2 | G17: =IF(作業と支出!H35=0," ",作業と支出!H35) -> 2 | H17: =IF(作業と支出!I35=0," ",作業と支出!I35) ->  | I17: =IF(作業と支出!J35=0," ",作業と支出!J35) ->  | J17: =IF(作業と支出!K35=0," ",作業と支出!K35) ->  | K17: =IF(作業と支出!L35=0," ",作業と支出!L35) ->  | L17: =IF(作業と支出!M35=0," ",作業と支出!M35) ->  | M17: =IF(作業と支出!N35=0," ",作業と支出!N35) ->  | N17: =IF(作業と支出!O35=0," ",作業と支出!O35) ->  | O17: =IF(作業と支出!P35=0," ",作業と支出!P35) ->  | P17: =IF(作業と支出!Q35=0," ",作業と支出!Q35) ->  | Q17: =IF(作業と支出!R35=0," ",作業と支出!R35) ->  | R17: =IF(作業と支出!S35=0," ",作業と支出!S35) ->  | S17: =IF(作業と支出!T35=0," ",作業と支出!T35) ->  | T17: =IF(作業と支出!U35=0," ",作業と支出!U35) ->  | U17: =IF(作業と支出!V35=0," ",作業と支出!V35) ->  | V17: =IF(作業と支出!W35=0," ",作業と支出!W35) ->  | W17: =IF(作業と支出!X35=0," ",作業と支出!X35) ->  | X17: =IF(作業と支出!Y35=0," ",作業と支出!Y35) ->  | Y17: =IF(作業と支出!Z35=0," ",作業と支出!Z35) ->  | Z17: =IF(作業と支出!AA35=0," ",作業と支出!AA35) ->  | AA17: =IF(作業と支出!AB35=0," ",作業と支出!AB35) ->  | AB17: =IF(作業と支出!AC35=0," ",作業と支出!AC35) ->  | AD17: 7.5
C18: （計） | D18: =SUM(D13:D17) -> 16.5 | E18: =SUM(E13:E17) -> 71.7 | F18: 64.7 | G18: 76.7 | AD18: 229.6
C19: （計：インフレ含む名目値） | D19: =D18*(1+生産と生産額!$O$31)^(D4-2021) -> 16.5 | E19: =E18*(1+生産と生産額!$O$31)^(E4-2021) -> 72.7755 | F19: =F18*(1+生産と生産額!$O$31)^(F4-2021) -> 66.6555575 | G19: =G18*(1+生産と生産額!$O$31)^(G4-2021) -> 80.20353136 | H19: =H18*(1+生産と生産額!$O$31)^(H4-2021) -> 0 | I19: =I18*(1+生産と生産額!$O$31)^(I4-2021) -> 0 | J19: =J18*(1+生産と生産額!$O$31)^(J4-2021) -> 0 | K19: =K18*(1+生産と生産額!$O$31)^(K4-2021) -> 0 | L19: =L18*(1+生産と生産額!$O$31)^(L4-2021) -> 0 | M19: =M18*(1+生産と生産額!$O$31)^(M4-2021) -> 0 | N19: =N18*(1+生産と生産額!$O$31)^(N4-2021) -> 0 | O19: =O18*(1+生産と生産額!$O$31)^(O4-2021) -> 0 | P19: =P18*(1+生産と生産額!$O$31)^(P4-2021) -> 0 | Q19: =Q18*(1+生産と生産額!$O$31)^(Q4-2021) -> 0 | R19: =R18*(1+生産と生産額!$O$31)^(R4-2021) -> 0 | S19: =S18*(1+生産と生産額!$O$31)^(S4-2021) -> 0 | T19: =T18*(1+生産と生産額!$O$31)^(T4-2021) -> 0 | U19: =U18*(1+生産と生産額!$O$31)^(U4-2021) -> 0 | V19: =V18*(1+生産と生産額!$O$31)^(V4-2021) -> 0 | W19: =W18*(1+生産と生産額!$O$31)^(W4-2021) -> 0 | X19: =X18*(1+生産と生産額!$O$31)^(X4-2021) -> 0 | Y19: =Y18*(1+生産と生産額!$O$31)^(Y4-2021) -> 0 | Z19: =Z18*(1+生産と生産額!$O$31)^(Z4-2021) -> 0 | AA19: =AA18*(1+生産と生産額!$O$31)^(AA4-2021) -> 0 | AB19: =AB18*(1+生産と生産額!$O$31)^(AB4-2021) -> 0 | AD19: 236.1345889
B20: 開発費 | C20: FEED | D20: =IF(作業と支出!E53=0," ",作業と支出!E53) ->  | E20: =IF(作業と支出!F53=0," ",作業と支出!F53) ->  | F20: =IF(作業と支出!G53=0," ",作業と支出!G53) ->  | G20: =IF(作業と支出!H53=0," ",作業と支出!H53) ->  | H20: =IF(作業と支出!I53=0," ",作業と支出!I53) -> 10 | I20: =IF(作業と支出!J53=0," ",作業と支出!J53) ->  | J20: =IF(作業と支出!K53=0," ",作業と支出!K53) ->  | K20: =IF(作業と支出!L53=0," ",作業と支出!L53) ->  | L20: =IF(作業と支出!M53=0," ",作業と支出!M53) ->  | M20: =IF(作業と支出!N53=0," ",作業と支出!N53) ->  | N20: =IF(作業と支出!O53=0," ",作業と支出!O53) ->  | O20: =IF(作業と支出!P53=0," ",作業と支出!P53) ->  | P20: =IF(作業と支出!Q53=0," ",作業と支出!Q53) ->  | Q20: =IF(作業と支出!R53=0," ",作業と支出!R53) ->  | R20: =IF(作業と支出!S53=0," ",作業と支出!S53) ->  | S20: =IF(作業と支出!T53=0," ",作業と支出!T53) ->  | T20: =IF(作業と支出!U53=0," ",作業と支出!U53) ->  | U20: =IF(作業と支出!V53=0," ",作業と支出!V53) ->  | V20: =IF(作業と支出!W53=0," ",作業と支出!W53) ->  | W20: =IF(作業と支出!X53=0," ",作業と支出!X53) ->  | X20: =IF(作業と支出!Y53=0," ",作業と支出!Y53) ->  | Y20: =IF(作業と支出!Z53=0," ",作業と支出!Z53) ->  | Z20: =IF(作業と支出!AA53=0," ",作業と支出!AA53) ->  | AA20: =IF(作業と支出!AB53=0," ",作業と支出!AB53) ->  | AB20: =IF(作業と支出!AC53=0," ",作業と支出!AC53) ->  | AC20: =IF(作業と支出!AE53=0," ",作業と支出!AE53) ->  | AD20: 10
B21: （実質） | C21: 生産施設建設 | D21: =IF(作業と支出!E54=0," ",作業と支出!E54) ->  | E21: =IF(作業と支出!F54=0," ",作業と支出!F54) ->  | F21: =IF(作業と支出!G54=0," ",作業と支出!G54) ->  | G21: =IF(作業と支出!H54=0," ",作業と支出!H54) ->  | H21: =IF(作業と支出!I54=0," ",作業と支出!I54) ->  | I21: =IF(作業と支出!J54=0," ",作業と支出!J54) -> 120 | J21: =IF(作業と支出!K54=0," ",作業と支出!K54) -> 230 | K21: =IF(作業と支出!L54=0," ",作業と支出!L54) ->  | L21: =IF(作業と支出!M54=0," ",作業と支出!M54) ->  | M21: =IF(作業と支出!N54=0," ",作業と支出!N54) ->  | N21: =IF(作業と支出!O54=0," ",作業と支出!O54) ->  | O21: =IF(作業と支出!P54=0," ",作業と支出!P54) ->  | P21: =IF(作業と支出!Q54=0," ",作業と支出!Q54) ->  | Q21: =IF(作業と支出!R54=0," ",作業と支出!R54) ->  | R21: =IF(作業と支出!S54=0," ",作業と支出!S54) ->  | S21: =IF(作業と支出!T54=0," ",作業と支出!T54) ->  | T21: =IF(作業と支出!U54=0," ",作業と支出!U54) ->  | U21: =IF(作業と支出!V54=0," ",作業と支出!V54) ->  | V21: =IF(作業と支出!W54=0," ",作業と支出!W54) ->  | W21: =IF(作業と支出!X54=0," ",作業と支出!X54) ->  | X21: =IF(作業と支出!Y54=0," ",作業と支出!Y54) ->  | Y21: =IF(作業と支出!Z54=0," ",作業と支出!Z54) ->  | Z21: =IF(作業と支出!AA54=0," ",作業と支出!AA54) ->  | AA21: =IF(作業と支出!AB54=0," ",作業と支出!AB54) ->  | AB21: =IF(作業と支出!AC54=0," ",作業と支出!AC54) ->  | AC21: =IF(作業と支出!AE54=0," ",作業と支出!AE54) ->  | AD21: 350
C22: 廃山費用 | D22: =IF(作業と支出!E55=0," ",作業と支出!E55) ->  | E22: =IF(作業と支出!F55=0," ",作業と支出!F55) ->  | F22: =IF(作業と支出!G55=0," ",作業と支出!G55) ->  | G22: =IF(作業と支出!H55=0," ",作業と支出!H55) ->  | H22: =IF(作業と支出!I55=0," ",作業と支出!I55) ->  | I22: =IF(作業と支出!J55=0," ",作業と支出!J55) ->  | J22: =IF(作業と支出!K55=0," ",作業と支出!K55) ->  | K22: =IF(作業と支出!L55=0," ",作業と支出!L55) ->  | L22: =IF(作業と支出!M55=0," ",作業と支出!M55) ->  | M22: =IF(作業と支出!N55=0," ",作業と支出!N55) ->  | N22: =IF(作業と支出!O55=0," ",作業と支出!O55) ->  | O22: =IF(作業と支出!P55=0," ",作業と支出!P55) ->  | P22: =IF(作業と支出!Q55=0," ",作業と支出!Q55) ->  | R22: =IF(作業と支出!S55=0," ",作業と支出!S55) ->  | S22: =IF(作業と支出!T55=0," ",作業と支出!T55) ->  | T22: =IF(作業と支出!U55=0," ",作業と支出!U55) ->  | U22: =IF(作業と支出!V55=0," ",作業と支出!V55) ->  | V22: =IF(作業と支出!W55=0," ",作業と支出!W55) ->  | W22: =IF(作業と支出!X55=0," ",作業と支出!X55) ->  | X22: =IF(作業と支出!Y55=0," ",作業と支出!Y55) ->  | Y22: =IF(作業と支出!Z55=0," ",作業と支出!Z55) ->  | Z22: =IF(作業と支出!AA55=0," ",作業と支出!AA55) ->  | AA22: =IF(作業と支出!AB55=0," ",作業と支出!AB55) ->  | AB22: =IF(作業と支出!AC55=0," ",作業と支出!AC55) ->  | AC22: =IF(作業と支出!AE55=0," ",作業と支出!AE55) -> 17.5 | AD22: 17.5
C23: 生産井掘削 | D23: =IF(作業と支出!E56=0," ",作業と支出!E56) ->  | E23: =IF(作業と支出!F56=0," ",作業と支出!F56) ->  | F23: =IF(作業と支出!G56=0," ",作業と支出!G56) ->  | G23: =IF(作業と支出!H56=0," ",作業と支出!H56) ->  | H23: =IF(作業と支出!I56=0," ",作業と支出!I56) ->  | I23: =IF(作業と支出!J56=0," ",作業と支出!J56) -> 48.6 | J23: =IF(作業と支出!K56=0," ",作業と支出!K56) -> 131.4 | K23: =IF(作業と支出!L56=0," ",作業と支出!L56) -> 28.8 | L23: =IF(作業と支出!M56=0," ",作業と支出!M56) ->  | M23: =IF(作業と支出!N56=0," ",作業と支出!N56) ->  | N23: =IF(作業と支出!O56=0," ",作業と支出!O56) ->  | O23: =IF(作業と支出!P56=0," ",作業と支出!P56) ->  | P23: =IF(作業と支出!Q56=0," ",作業と支出!Q56) ->  | Q23: =IF(作業と支出!R56=0," ",作業と支出!R56) -> 70.2 | R23: =IF(作業と支出!S56=0," ",作業と支出!S56) ->  | S23: =IF(作業と支出!T56=0," ",作業と支出!T56) ->  | T23: =IF(作業と支出!U56=0," ",作業と支出!U56) ->  | U23: =IF(作業と支出!V56=0," ",作業と支出!V56) ->  | V23: =IF(作業と支出!W56=0," ",作業と支出!W56) ->  | W23: =IF(作業と支出!X56=0," ",作業と支出!X56) ->  | X23: =IF(作業と支出!Y56=0," ",作業と支出!Y56) ->  | Y23: =IF(作業と支出!Z56=0," ",作業と支出!Z56) ->  | Z23: =IF(作業と支出!AA56=0," ",作業と支出!AA56) ->  | AA23: =IF(作業と支出!AB56=0," ",作業と支出!AB56) ->  | AB23: =IF(作業と支出!AC56=0," ",作業と支出!AC56) ->  | AC23: =IF(作業と支出!AE56=0," ",作業と支出!AE56) ->  | AD23: 279
C24: 改修費用 | D24: =IF(作業と支出!E57=0," ",作業と支出!E57) ->  | E24: =IF(作業と支出!F57=0," ",作業と支出!F57) ->  | F24: =IF(作業と支出!G57=0," ",作業と支出!G57) ->  | G24: =IF(作業と支出!H57=0," ",作業と支出!H57) ->  | H24: =IF(作業と支出!I57=0," ",作業と支出!I57) ->  | I24: =IF(作業と支出!J57=0," ",作業と支出!J57) ->  | J24: =IF(作業と支出!K57=0," ",作業と支出!K57) ->  | K24: =IF(作業と支出!L57=0," ",作業と支出!L57) ->  | L24: =IF(作業と支出!M57=0," ",作業と支出!M57) ->  | M24: =IF(作業と支出!N57=0," ",作業と支出!N57) ->  | N24: =IF(作業と支出!O57=0," ",作業と支出!O57) ->  | O24: =IF(作業と支出!P57=0," ",作業と支出!P57) -> 34.8 | P24: =IF(作業と支出!Q57=0," ",作業と支出!Q57) ->  | Q24: =IF(作業と支出!R57=0," ",作業と支出!R57) ->  | R24: =IF(作業と支出!S57=0," ",作業と支出!S57) ->  | S24: =IF(作業と支出!T57=0," ",作業と支出!T57) ->  | T24: =IF(作業と支出!U57=0," ",作業と支出!U57) ->  | U24: =IF(作業と支出!V57=0," ",作業と支出!V57) ->  | V24: =IF(作業と支出!W57=0," ",作業と支出!W57) ->  | W24: =IF(作業と支出!X57=0," ",作業と支出!X57) ->  | X24: =IF(作業と支出!Y57=0," ",作業と支出!Y57) ->  | Y24: =IF(作業と支出!Z57=0," ",作業と支出!Z57) ->  | Z24: =IF(作業と支出!AA57=0," ",作業と支出!AA57) ->  | AA24: =IF(作業と支出!AB57=0," ",作業と支出!AB57) ->  | AB24: =IF(作業と支出!AC57=0," ",作業と支出!AC57) ->  | AC24: =IF(作業と支出!AE57=0," ",作業と支出!AE57) -> 20.4 | AD24: 55.2
C25: 現地管理費 | D25: =IF(作業と支出!E58=0," ",作業と支出!E58) ->  | E25: =IF(作業と支出!F58=0," ",作業と支出!F58) ->  | F25: =IF(作業と支出!G58=0," ",作業と支出!G58) ->  | G25: =IF(作業と支出!H58=0," ",作業と支出!H58) ->  | H25: =IF(作業と支出!I58=0," ",作業と支出!I58) -> 2 | I25: =IF(作業と支出!J58=0," ",作業と支出!J58) -> 2.5 | J25: =IF(作業と支出!K58=0," ",作業と支出!K58) -> 2.5 | K25: =IF(作業と支出!L58=0," ",作業と支出!L58) -> 1 | L25: =IF(作業と支出!M58=0," ",作業と支出!M58) ->  | M25: =IF(作業と支出!N58=0," ",作業と支出!N58) ->  | N25: =IF(作業と支出!O58=0," ",作業と支出!O58) ->  | O25: =IF(作業と支出!P58=0," ",作業と支出!P58) ->  | P25: =IF(作業と支出!Q58=0," ",作業と支出!Q58) ->  | Q25: =IF(作業と支出!R58=0," ",作業と支出!R58) ->  | R25: =IF(作業と支出!S58=0," ",作業と支出!S58) ->  | S25: =IF(作業と支出!T58=0," ",作業と支出!T58) ->  | T25: =IF(作業と支出!U58=0," ",作業と支出!U58) ->  | U25: =IF(作業と支出!V58=0," ",作業と支出!V58) ->  | V25: =IF(作業と支出!W58=0," ",作業と支出!W58) ->  | W25: =IF(作業と支出!X58=0," ",作業と支出!X58) ->  | X25: =IF(作業と支出!Y58=0," ",作業と支出!Y58) ->  | Y25: =IF(作業と支出!Z58=0," ",作業と支出!Z58) ->  | Z25: =IF(作業と支出!AA58=0," ",作業と支出!AA58) ->  | AA25: =IF(作業と支出!AB58=0," ",作業と支出!AB58) ->  | AB25: =IF(作業と支出!AC58=0," ",作業と支出!AC58) ->  | AC25: =IF(作業と支出!AE58=0," ",作業と支出!AE58) ->  | AD25: 8
C26: （計） | D26: =SUM(D20:D25) -> 0 | E26: =SUM(E20:E25) -> 0 | F26: 0 | G26: 0 | H26: 12 | I26: 171.1 | J26: 363.9 | K26: 29.8 | L26: 0 | M26: 0 | N26: 0 | O26: 34.8 | P26: 0 | Q26: 70.2 | R26: 0 | S26: 0 | T26: 0 | U26: 0 | V26: 0 | W26: 0 | X26: 0 | Y26: 0 | Z26: 0 | AA26: 0 | AB26: 0 | AC26: =SUM(AC20:AC25) -> 37.9 | AD26: 719.7
C27: （計：インフレ含む名目値） | D27: =D26*(1+生産と生産額!$O$31)^(D4-2021) -> 0 | E27: =E26*(1+生産と生産額!$O$31)^(E4-2021) -> 0 | F27: =F26*(1+生産と生産額!$O$31)^(F4-2021) -> 0 | G27: =G26*(1+生産と生産額!$O$31)^(G4-2021) -> 0 | H27: =H26*(1+生産と生産額!$O$31)^(H4-2021) -> 12.73636261 | I27: =I26*(1+生産と生産額!$O$31)^(I4-2021) -> 184.3232931 | J27: =J26*(1+生産と生産額!$O$31)^(J4-2021) -> 397.9040037 | K27: =K26*(1+生産と生産額!$O$31)^(K4-2021) -> 33.0733784 | L27: =L26*(1+生産と生産額!$O$31)^(L4-2021) -> 0 | M27: =M26*(1+生産と生産額!$O$31)^(M4-2021) -> 0 | N27: =N26*(1+生産と生産額!$O$31)^(N4-2021) -> 0 | O27: =O26*(1+生産と生産額!$O$31)^(O4-2021) -> 40.99262302 | P27: =P26*(1+生産と生産額!$O$31)^(P4-2021) -> 0 | Q27: =Q26*(1+生産と生産額!$O$31)^(Q4-2021) -> 85.19138157 | R27: =R26*(1+生産と生産額!$O$31)^(R4-2021) -> 0 | S27: =S26*(1+生産と生産額!$O$31)^(S4-2021) -> 0 | T27: =T26*(1+生産と生産額!$O$31)^(T4-2021) -> 0 | U27: =U26*(1+生産と生産額!$O$31)^(U4-2021) -> 0 | V27: =V26*(1+生産と生産額!$O$31)^(V4-2021) -> 0 | W27: =W26*(1+生産と生産額!$O$31)^(W4-2021) -> 0 | X27: =X26*(1+生産と生産額!$O$31)^(X4-2021) -> 0 | Y27: =Y26*(1+生産と生産額!$O$31)^(Y4-2021) -> 0 | Z27: =Z26*(1+生産と生産額!$O$31)^(Z4-2021) -> 0 | AA27: =AA26*(1+生産と生産額!$O$31)^(AA4-2021) -> 0 | AB27: =AB26*(1+生産と生産額!$O$31)^(AB4-2021) -> 0 | AC27: =AC26*(1+生産と生産額!$O$31)^(AC4-2021) -> 54.99082892 | AD27: 809.2118713
B28: 投資合計（インフレ含む名目値） | D28: =D19+D27 -> 16.5 | E28: =E19+E27 -> 72.7755 | F28: 66.6555575 | G28: 80.20353136 | H28: 12.73636261 | I28: 184.3232931 | J28: 397.9040037 | K28: 33.0733784 | L28: 0 | M28: 0 | N28: 0 | O28: 40.99262302 | P28: 0 | Q28: 85.19138157 | R28: 0 | S28: 0 | T28: 0 | U28: 0 | V28: 0 | W28: 0 | X28: 0 | Y28: 0 | Z28: 0 | AA28: 0 | AB28: 0 | AC28: 54.99082892 | AD28: 1045.34646
B29: 操業費 | C29: 生産操業費 | K29: =作業と支出!L69 -> 15.725 | L29: =作業と支出!M69 -> 18.87 | M29: =作業と支出!N69 -> 18.6184 | N29: =作業と支出!O69 -> 18.135328 | O29: =作業と支出!P69 -> 17.69090176 | P29: =作業と支出!Q69 -> 17.23305014 | Q29: =作業と支出!R69 -> 16.65754131 | R29: =作業と支出!S69 -> 17.67855929 | S29: =作業と支出!T69 -> 16.99540785 | T29: =作業と支出!U69 -> 16.33309667 | U29: =作業と支出!V69 -> 15.65507801 | V29: =作業と支出!W69 -> 14.99247152 | W29: =作業と支出!X69 -> 14.4795922 | X29: =作業と支出!Y69 -> 14.00469415 | Y29: =作業と支出!Z69 -> 13.63031868 | Z29: =作業と支出!AA69 -> 13.33679573 | AA29: =作業と支出!AB69 -> 13.12593651 | AB29: =作業と支出!AC69 -> 12.96215555 | AC29: 0 | AD29: =SUM(D29:AC29) -> 286.1243274
C30: パイプライン使用料 | K30: =作業と支出!L70 -> 5.475 | L30: =作業と支出!M70 -> 10.95 | M30: =作業と支出!N70 -> 10.512 | N30: =作業と支出!O70 -> 9.67104 | O30: =作業と支出!P70 -> 8.8973568 | P30: =作業と支出!Q70 -> 8.10030192 | Q30: =作業と支出!R70 -> 7.098422472 | R30: =作業と支出!S70 -> 8.875870301 | S30: =作業と支出!T70 -> 7.686600316 | T30: =作業と支出!U70 -> 6.533610269 | U30: =作業と支出!V70 -> 5.353275707 | V30: =作業と支出!W70 -> 4.199771563 | W30: =作業と支出!X70 -> 3.306921238 | X30: =作業と支出!Y70 -> 2.480190929 | Y30: =作業と支出!Z70 -> 1.828456215 | Z30: =作業と支出!AA70 -> 1.317474292 | AA30: =作業と支出!AB70 -> 0.9503982104 | AB30: =作業と支出!AC70 -> 0.6652787473 | AC30: =作業と支出!AE70 -> 0 | AD30: 103.901969
C31: 現地管理費 | K31: =作業と支出!L71 -> 7 | L31: =作業と支出!M71 -> 7 | M31: =作業と支出!N71 -> 7 | N31: =作業と支出!O71 -> 7 | O31: =作業と支出!P71 -> 7 | P31: =作業と支出!Q71 -> 7 | Q31: =作業と支出!R71 -> 7 | R31: =作業と支出!S71 -> 7 | S31: =作業と支出!T71 -> 7 | T31: =作業と支出!U71 -> 7 | U31: =作業と支出!V71 -> 7 | V31: =作業と支出!W71 -> 7 | W31: =作業と支出!X71 -> 7 | X31: =作業と支出!Y71 -> 7 | Y31: =作業と支出!Z71 -> 7 | Z31: =作業と支出!AA71 -> 7 | AA31: =作業と支出!AB71 -> 7 | AB31: =作業と支出!AC71 -> 7 | AC31: =作業と支出!AE71 -> 7 | AD31: 133
C32: （計） | K32: =SUM(K29:K31) -> 28.2 | L32: 36.82 | M32: 36.1304 | N32: 34.806368 | O32: 33.58825856 | P32: 32.33335206 | Q32: 30.75596378 | R32: 33.55442959 | S32: 31.68200817 | T32: 29.86670694 | U32: 28.00835372 | V32: 26.19224308 | W32: 24.78651344 | X32: 23.48488508 | Y32: 22.4587749 | Z32: 21.65427003 | AA32: 21.07633472 | AB32: 20.6274343 | AC32: 7 | AD32: 523.0262964
C33: （計：インフレ含む名目値） | K33: =SUM(K29:K31)*(1+生産と生産額!$O$31)^(K4-2021) -> 31.29762654 | L33: =SUM(L29:L31)*(1+生産と生産額!$O$31)^(L4-2021) -> 41.47745704 | M33: =SUM(M29:M31)*(1+生産と生産額!$O$31)^(M4-2021) -> 41.31113717 | N33: =SUM(N29:N31)*(1+生産と生産額!$O$31)^(N4-2021) -> 40.39421103 | O33: =SUM(O29:O31)*(1+生産と生産額!$O$31)^(O4-2021) -> 39.56525348 | P33: =SUM(P29:P31)*(1+生産と生産額!$O$31)^(P4-2021) -> 38.65834327 | Q33: =SUM(Q29:Q31)*(1+生産と生産額!$O$31)^(Q4-2021) -> 37.32397502 | R33: =SUM(R29:R31)*(1+生産と生産額!$O$31)^(R4-2021) -> 41.33086094 | S33: =SUM(S29:S31)*(1+生産と生産額!$O$31)^(S4-2021) -> 39.60986255 | T33: =SUM(T29:T31)*(1+生産と生産額!$O$31)^(T4-2021) -> 37.90041947 | U33: =SUM(U29:U31)*(1+生産と生産額!$O$31)^(U4-2021) -> 36.07532902 | V33: =SUM(V29:V31)*(1+生産と生産額!$O$31)^(V4-2021) -> 34.24218373 | W33: =SUM(W29:W31)*(1+生産と生産額!$O$31)^(W4-2021) -> 32.89048248 | X33: =SUM(X29:X31)*(1+生産と生産額!$O$31)^(X4-2021) -> 31.63073505 | Y33: =SUM(Y29:Y31)*(1+生産と生産額!$O$31)^(Y4-2021) -> 30.70244411 | Z33: =SUM(Z29:Z31)*(1+生産と生産額!$O$31)^(Z4-2021) -> 30.04667902 | AA33: =SUM(AA29:AA31)*(1+生産と生産額!$O$31)^(AA4-2021) -> 29.68342832 | AB33: =SUM(AB29:AB31)*(1+生産と生産額!$O$31)^(AB4-2021) -> 29.48697534 | AC33: =SUM(AC29:AC31)*(1+生産と生産額!$O$31)^(AC4-2021) -> 10.15661748 | AD33: 653.784021
B34: 支出合計（コスト回収対象費用：名目） | D34: =D28+D33 -> 16.5 | E34: =E28+E33 -> 72.7755 | F34: 66.6555575 | G34: 80.20353136 | H34: 12.73636261 | I34: 184.3232931 | J34: 397.9040037 | K34: 64.37100495 | L34: =L19+L28+L33 -> 41.47745704 | M34: 41.31113717 | N34: 40.39421103 | O34: 80.5578765 | P34: 38.65834327 | Q34: 122.5153566 | R34: 41.33086094 | S34: 39.60986255 | T34: 37.90041947 | U34: 36.07532902 | V34: 34.24218373 | W34: 32.89048248 | X34: 31.63073505 | Y34: 30.70244411 | Z34: 30.04667902 | AA34: 29.68342832 | AB34: 29.48697534 | AC34: 65.1474464 | AD34: 1699.130481
C36: ロイヤリティ（生産額＊１０％） | K36: =K10*10% -> 47.65470763 | L36: 98.19014233 | M36: 97.11162181 | N36: 92.04307493 | O36: 87.23907072 | P36: 81.82449147 | Q36: 73.87135007 | R36: 95.16061165 | S36: 84.9009718 | T36: 74.34703812 | U36: 62.75699529 | V36: 50.72245716 | W36: 41.14627755 | X36: 31.79244284 | Y36: 24.14656919 | Z36: 17.92441964 | AA36: =AA10*10% -> 13.32111715 | AB36: =AB10*10% -> 9.606623543 | AC36: =AC10*10% -> 0 | AD36: =SUM(D36:AC36) -> 1083.759983
B37: コスト回収
C38: コスト回収原資（生産額＊３５％） | K38: =K10*プロジェクト収支!$G$5 -> 166.7914767 | L38: =L10*プロジェクト収支!$G$5 -> 343.6654982 | M38: =M10*プロジェクト収支!$G$5 -> 339.8906763 | N38: =N10*プロジェクト収支!$G$5 -> 322.1507623 | O38: =O10*プロジェクト収支!$G$5 -> 305.3367475 | P38: =P10*プロジェクト収支!$G$5 -> 286.3857201 | Q38: =Q10*プロジェクト収支!$G$5 -> 258.5497253 | R38: =R10*プロジェクト収支!$G$5 -> 333.0621408 | S38: =S10*プロジェクト収支!$G$5 -> 297.1534013 | T38: =T10*プロジェクト収支!$G$5 -> 260.2146334 | U38: =U10*プロジェクト収支!$G$5 -> 219.6494835 | V38: =V10*プロジェクト収支!$G$5 -> 177.5286001 | W38: =W10*プロジェクト収支!$G$5 -> 144.0119714 | X38: =X10*プロジェクト収支!$G$5 -> 111.2735499 | Y38: =Y10*プロジェクト収支!$G$5 -> 84.51299218 | Z38: =Z10*プロジェクト収支!$G$5 -> 62.73546873 | AA38: =AA10*プロジェクト収支!$G$5 -> 46.62391003 | AB38: =AB10*プロジェクト収支!$G$5 -> 33.6231824 | AC38: =AC10*プロジェクト収支!$G$5 -> 0
C39: Ａ．操業費（優先回収） | K39: =K33 -> 31.29762654 | L39: 41.47745704 | M39: 41.31113717 | N39: 40.39421103 | O39: 39.56525348 | P39: 38.65834327 | Q39: 37.32397502 | R39: 41.33086094 | S39: 39.60986255 | T39: 37.90041947 | U39: 36.07532902 | V39: 34.24218373 | W39: 32.89048248 | X39: 31.63073505 | Y39: 30.70244411 | Z39: 30.04667902 | AA39: =AA33 -> 29.68342832 | AB39: =AB33 -> 29.48697534 | AC39: =AC33 -> 10.15661748 | AD39: =SUM(D39:AC39) -> 653.784021
C40: 投資回収充当原資 | K40: =IF(K38-K39>0,K38-K39,0) -> 135.4938502 | L40: =IF(L38-L39>0,L38-L39,0) -> 302.1880411 | M40: =IF(M38-M39>0,M38-M39,0) -> 298.5795392 | N40: 281.7565512 | O40: 265.771494 | P40: 247.7273769 | Q40: 221.2257502 | R40: 291.7312799 | S40: 257.5435387 | T40: 222.3142139 | U40: 183.5741545 | V40: 143.2864163 | W40: 111.1214889 | X40: 79.64281489 | Y40: 53.81054806 | Z40: 32.68878971 | AA40: 16.94048172 | AB40: 4.136207063 | AC40: 0
C41: 投資回収残 | D41: =D28 -> 16.5 | E41: =D41-D42+E28 -> 89.2755 | F41: 155.9310575 | G41: 236.1345889 | H41: 248.8709515 | I41: 433.1942445 | J41: 831.0982483 | K41: =J41-J42+K28 -> 864.1716267 | L41: 728.6777765 | M41: 426.4897354 | N41: 127.9101963 | O41: 40.99262302 | P41: 0 | Q41: 85.19138157 | R41: 0 | S41: 0 | T41: 0 | U41: 0 | V41: 0 | W41: 0 | X41: 0 | Y41: 0 | Z41: 0 | AA41: 0 | AB41: 0 | AC41: 54.99082892
C42: Ｂ．投資回収 | K42: =IF(K41>K40,K40,K41) -> 135.4938502 | L42: =IF(L41>L40,L40,L41) -> 302.1880411 | M42: 298.5795392 | N42: 127.9101963 | O42: 40.99262302 | P42: 0 | Q42: 85.19138157 | R42: 0 | S42: 0 | T42: 0 | U42: 0 | V42: 0 | W42: 0 | X42: 0 | Y42: 0 | Z42: 0 | AA42: 0 | AB42: 0 | AC42: =IF(AC41-AC40>0,AC40,AC41) -> 0 | AD42: =SUM(D42:AC42) -> 990.3556313
C43: コスト回収額（Ａ＋Ｂ） | K43: =IF(K39+K42>K38,K38,K39+K42) -> 166.7914767 | L43: =IF(L39+L42>L38,L38,L39+L42) -> 343.6654982 | M43: 339.8906763 | N43: 168.3044073 | O43: 80.5578765 | P43: 38.65834327 | Q43: 122.5153566 | R43: 41.33086094 | S43: 39.60986255 | T43: 37.90041947 | U43: 36.07532902 | V43: 34.24218373 | W43: 32.89048248 | X43: 31.63073505 | Y43: 30.70244411 | Z43: 30.04667902 | AA43: 29.68342832 | AB43: 29.48697534 | AC43: 0 | AD43: 1633.983035
B44: プロフィット原油（総生産額‐ロイヤリティ‐コスト回収） | K44: =K10-K36-K43 -> 262.100892 | L44: =L10-L36-L43 -> 540.0457828 | M44: 534.1139199 | N44: 660.0832671 | O44: 704.59376 | P44: 697.7620799 | Q44: 542.3267941 | R44: 815.114644 | S44: 724.4988836 | T44: 631.2229236 | U44: 528.7376286 | V44: 422.2599307 | W44: 337.4260154 | X44: 254.5012505 | Y44: 186.6166786 | Z44: 131.2730977 | AA44: 90.20662605 | AB44: 56.97263655 | AC44: 0 | AD44: 8119.856811
C45: プロフィット原油取り分 | K45: =IF(生産と生産額!L22>50,プロジェクト収支!L22*((生産と生産額!L22-50/生産と生産額!L22)*プロジェクト収支!$N$6+(50/生産と生産額!L22)*プロジェクト収支!$J$6),K44*プロジェクト収支!$J$6) -> 78.63026759 | L45: =IF(生産と生産額!M22>50,プロジェクト収支!M22*((生産と生産額!M22-50/生産と生産額!M22)*プロジェクト収支!$N$6+(50/生産と生産額!M22)*プロジェクト収支!$J$6),L44*プロジェクト収支!$J$6) -> 162.0137348 | M45: =IF(生産と生産額!N22>50,プロジェクト収支!N22*((生産と生産額!N22-50/生産と生産額!N22)*プロジェクト収支!$N$6+(50/生産と生産額!N22)*プロジェクト収支!$J$6),M44*プロジェクト収支!$J$6) -> 160.234176 | N45: =IF(生産と生産額!O22>50,プロジェクト収支!O22*((生産と生産額!O22-50/生産と生産額!O22)*プロジェクト収支!$N$6+(50/生産と生産額!O22)*プロジェクト収支!$J$6),N44*プロジェクト収支!$J$6) -> 198.0249801 | O45: =IF(生産と生産額!P22>50,プロジェクト収支!P22*((生産と生産額!P22-50/生産と生産額!P22)*プロジェクト収支!$N$6+(50/生産と生産額!P22)*プロジェクト収支!$J$6),O44*プロジェクト収支!$J$6) -> 211.378128 | P45: =IF(生産と生産額!Q22>50,プロジェクト収支!Q22*((生産と生産額!Q22-50/生産と生産額!Q22)*プロジェクト収支!$N$6+(50/生産と生産額!Q22)*プロジェクト収支!$J$6),P44*プロジェクト収支!$J$6) -> 209.328624 | Q45: =IF(生産と生産額!R22>50,プロジェクト収支!R22*((生産と生産額!R22-50/生産と生産額!R22)*プロジェクト収支!$N$6+(50/生産と生産額!R22)*プロジェクト収支!$J$6),Q44*プロジェクト収支!$J$6) -> 162.6980382 | R45: =IF(生産と生産額!S22>50,プロジェクト収支!S22*((生産と生産額!S22-50/生産と生産額!S22)*プロジェクト収支!$N$6+(50/生産と生産額!S22)*プロジェクト収支!$J$6),R44*プロジェクト収支!$J$6) -> 244.5343932 | S45: =IF(生産と生産額!T22>50,プロジェクト収支!T22*((生産と生産額!T22-50/生産と生産額!T22)*プロジェクト収支!$N$6+(50/生産と生産額!T22)*プロジェクト収支!$J$6),S44*プロジェクト収支!$J$6) -> 217.3496651 | T45: =IF(生産と生産額!U22>50,プロジェクト収支!U22*((生産と生産額!U22-50/生産と生産額!U22)*プロジェクト収支!$N$6+(50/生産と生産額!U22)*プロジェクト収支!$J$6),T44*プロジェクト収支!$J$6) -> 189.3668771 | U45: =IF(生産と生産額!V22>50,プロジェクト収支!V22*((生産と生産額!V22-50/生産と生産額!V22)*プロジェクト収支!$N$6+(50/生産と生産額!V22)*プロジェクト収支!$J$6),U44*プロジェクト収支!$J$6) -> 158.6212886 | V45: =IF(生産と生産額!W22>50,プロジェクト収支!W22*((生産と生産額!W22-50/生産と生産額!W22)*プロジェクト収支!$N$6+(50/生産と生産額!W22)*プロジェクト収支!$J$6),V44*プロジェクト収支!$J$6) -> 126.6779792 | W45: =IF(生産と生産額!X22>50,プロジェクト収支!X22*((生産と生産額!X22-50/生産と生産額!X22)*プロジェクト収支!$N$6+(50/生産と生産額!X22)*プロジェクト収支!$J$6),W44*プロジェクト収支!$J$6) -> 101.2278046 | X45: =IF(生産と生産額!Y22>50,プロジェクト収支!Y22*((生産と生産額!Y22-50/生産と生産額!Y22)*プロジェクト収支!$N$6+(50/生産と生産額!Y22)*プロジェクト収支!$J$6),X44*プロジェクト収支!$J$6) -> 76.35037515 | Y45: =IF(生産と生産額!Z22>50,プロジェクト収支!Z22*((生産と生産額!Z22-50/生産と生産額!Z22)*プロジェクト収支!$N$6+(50/生産と生産額!Z22)*プロジェクト収支!$J$6),Y44*プロジェクト収支!$J$6) -> 55.98500359 | Z45: =IF(生産と生産額!AA22>50,プロジェクト収支!AA22*((生産と生産額!AA22-50/生産と生産額!AA22)*プロジェクト収支!$N$6+(50/生産と生産額!AA22)*プロジェクト収支!$J$6),Z44*プロジェクト収支!$J$6) -> 39.38192931 | AA45: =IF(生産と生産額!AB22>50,プロジェクト収支!AB22*((生産と生産額!AB22-50/生産と生産額!AB22)*プロジェクト収支!$N$6+(50/生産と生産額!AB22)*プロジェクト収支!$J$6),AA44*プロジェクト収支!$J$6) -> 27.06198782 | AB45: =IF(生産と生産額!AC22>50,プロジェクト収支!AC22*((生産と生産額!AC22-50/生産と生産額!AC22)*プロジェクト収支!$N$6+(50/生産と生産額!AC22)*プロジェクト収支!$J$6),AB44*プロジェクト収支!$J$6) -> 17.09179096 | AC45: =IF(生産と生産額!AD22>50,プロジェクト収支!AD22*((生産と生産額!AD22-50/生産と生産額!AD22)*プロジェクト収支!$N$6+(50/生産と生産額!AD22)*プロジェクト収支!$J$6),AC44*プロジェクト収支!$J$6) -> 0 | AD45: 2435.957043
C46: 石油収入税（５０％） | K46: =K45*Dashboard!$G$16 -> 39.31513379 | L46: =L45*Dashboard!$G$16 -> 81.00686742 | M46: =M45*Dashboard!$G$16 -> 80.11708799 | N46: =N45*Dashboard!$G$16 -> 99.01249006 | O46: =O45*Dashboard!$G$16 -> 105.689064 | P46: =P45*Dashboard!$G$16 -> 104.664312 | Q46: =Q45*Dashboard!$G$16 -> 81.34901911 | R46: =R45*Dashboard!$G$16 -> 122.2671966 | S46: =S45*Dashboard!$G$16 -> 108.6748325 | T46: =T45*Dashboard!$G$16 -> 94.68343854 | U46: =U45*Dashboard!$G$16 -> 79.31064429 | V46: =V45*Dashboard!$G$16 -> 63.3389896 | W46: =W45*Dashboard!$G$16 -> 50.61390231 | X46: =X45*Dashboard!$G$16 -> 38.17518757 | Y46: =Y45*Dashboard!$G$16 -> 27.99250179 | Z46: =Z45*Dashboard!$G$16 -> 19.69096466 | AA46: =AA45*Dashboard!$G$16 -> 13.53099391 | AB46: =AB45*Dashboard!$G$16 -> 8.545895482 | AC46: =AC45*Dashboard!$G$16 -> 0 | AD46: 1217.978522 | AG46: =AD46*0.6 -> 730.787113
B47: 原油販売収入（税前） | K47: =K43+K45 -> 245.4217443 | L47: =L43+L45 -> 505.679233 | M47: 500.1248523 | N47: 366.3293874 | O47: 291.9360045 | P47: 247.9869672 | Q47: 285.2133948 | R47: 285.8652541 | S47: 256.9595276 | T47: 227.2672965 | U47: 194.6966176 | V47: 160.9201629 | W47: 134.1182871 | X47: 107.9811102 | Y47: 86.6874477 | Z47: 69.42860833 | AA47: 56.74541613 | AB47: 46.5787663 | AC47: 0 | AD47: =SUM(D47:AC47) -> 4069.940078
B48: 本社管理費 | D48: =Dashboard!G32/1000 -> 0.3 | E48: =D48*(1+生産と生産額!$O$31) -> 0.3045 | F48: =E48*(1+生産と生産額!$O$31) -> 0.3090675 | G48: =F48*(1+生産と生産額!$O$31) -> 0.3137035125 | H48: =G48*(1+生産と生産額!$O$31) -> 0.3184090652 | I48: =H48*(1+生産と生産額!$O$31) -> 0.3231852012 | J48: =I48*(1+生産と生産額!$O$31) -> 0.3280329792 | K48: =J48*(1+生産と生産額!$O$31) -> 0.3329534739 | L48: =K48*(1+生産と生産額!$O$31) -> 0.337947776 | M48: =L48*(1+生産と生産額!$O$31) -> 0.3430169926 | N48: =M48*(1+生産と生産額!$O$31) -> 0.3481622475 | O48: =N48*(1+生産と生産額!$O$31) -> 0.3533846812 | P48: =O48*(1+生産と生産額!$O$31) -> 0.3586854514 | Q48: =P48*(1+生産と生産額!$O$31) -> 0.3640657332 | R48: =Q48*(1+生産と生産額!$O$31) -> 0.3695267192 | S48: =R48*(1+生産と生産額!$O$31) -> 0.37506962 | T48: =S48*(1+生産と生産額!$O$31) -> 0.3806956643 | U48: =T48*(1+生産と生産額!$O$31) -> 0.3864060993 | V48: =U48*(1+生産と生産額!$O$31) -> 0.3922021907 | W48: =V48*(1+生産と生産額!$O$31) -> 0.3980852236 | X48: =W48*(1+生産と生産額!$O$31) -> 0.404056502 | Y48: =X48*(1+生産と生産額!$O$31) -> 0.4101173495 | Z48: =Y48*(1+生産と生産額!$O$31) -> 0.4162691097 | AA48: =Z48*(1+生産と生産額!$O$31) -> 0.4225131464 | AB48: =AA48*(1+生産と生産額!$O$31) -> 0.4288508436 | AC48: =AB48*(1+生産と生産額!$O$31) -> 0.4352836062 | AD48: 9.454190688
B49: 収支（Net Cash Flow) | D49: =D47-(D12+D34+D48+D46) -> -26.8 | E49: =E47-(E12+E34+E48+E46) -> -73.08 | F49: -66.964625 | G49: -80.51723487 | H49: -16.05477167 | I49: -184.6464783 | J49: -398.2320367 | K49: 136.4026521 | L49: 382.8569608 | M49: 378.3536102 | N49: 226.5745241 | O49: 105.3356793 | P49: 104.3056265 | Q49: 80.98495338 | R49: 121.8976699 | S49: 108.2997629 | T49: 94.30274287 | U49: 78.92423819 | V49: 62.94678741 | W49: 50.21581709 | X49: 37.77113107 | Y49: 27.58238444 | Z49: 19.27469555 | AA49: 13.10848076 | AB49: 8.117044639 | AC49: -65.58273001 | AD49: 1125.376885
B50: 現在価値（NPV：割引率５％） | D50: =D49/((1+Dashboard!$G$36*Dashboard!$J$36)^(D4-2021)) -> -26.8 | E50: =E49/((1+Dashboard!$G$36*Dashboard!$J$36)^(E4-2021)) -> -69.6 | F50: =F49/((1+Dashboard!$G$36*Dashboard!$J$36)^(F4-2021)) -> -60.73888889 | G50: =G49/((1+Dashboard!$G$36*Dashboard!$J$36)^(G4-2021)) -> -69.55381481 | H50: =H49/((1+Dashboard!$G$36*Dashboard!$J$36)^(H4-2021)) -> -13.20830039 | I50: =I49/((1+Dashboard!$G$36*Dashboard!$J$36)^(I4-2021)) -> -144.6753473 | J50: =J49/((1+Dashboard!$G$36*Dashboard!$J$36)^(J4-2021)) -> -297.1668772 | K50: =K49/((1+Dashboard!$G$36*Dashboard!$J$36)^(K4-2021)) -> 96.9388182 | L50: =L49/((1+Dashboard!$G$36*Dashboard!$J$36)^(L4-2021)) -> 259.1326611 | M50: =M49/((1+Dashboard!$G$36*Dashboard!$J$36)^(M4-2021)) -> 243.8901106 | N50: =N49/((1+Dashboard!$G$36*Dashboard!$J$36)^(N4-2021)) -> 139.0971032 | O50: =O49/((1+Dashboard!$G$36*Dashboard!$J$36)^(O4-2021)) -> 61.5875901 | P50: =P49/((1+Dashboard!$G$36*Dashboard!$J$36)^(P4-2021)) -> 58.08127578 | Q50: =Q49/((1+Dashboard!$G$36*Dashboard!$J$36)^(Q4-2021)) -> 42.94804986 | R50: =R49/((1+Dashboard!$G$36*Dashboard!$J$36)^(R4-2021)) -> 61.5666066 | S50: =S49/((1+Dashboard!$G$36*Dashboard!$J$36)^(S4-2021)) -> 52.09403768 | T50: =T49/((1+Dashboard!$G$36*Dashboard!$J$36)^(T4-2021)) -> 43.20117307 | U50: =U49/((1+Dashboard!$G$36*Dashboard!$J$36)^(U4-2021)) -> 34.4343837 | V50: =V49/((1+Dashboard!$G$36*Dashboard!$J$36)^(V4-2021)) -> 26.15569033 | W50: =W49/((1+Dashboard!$G$36*Dashboard!$J$36)^(W4-2021)) -> 19.872104 | X50: =X49/((1+Dashboard!$G$36*Dashboard!$J$36)^(X4-2021)) -> 14.23554206 | Y50: =Y49/((1+Dashboard!$G$36*Dashboard!$J$36)^(Y4-2021)) -> 9.900486295 | Z50: =Z49/((1+Dashboard!$G$36*Dashboard!$J$36)^(Z4-2021)) -> 6.589052188 | AA50: =AA49/((1+Dashboard!$G$36*Dashboard!$J$36)^(AA4-2021)) -> 4.267745199 | AB50: =AB49/((1+Dashboard!$G$36*Dashboard!$J$36)^(AB4-2021)) -> 2.516835069 | AC50: =AC49/((1+Dashboard!$G$36*Dashboard!$J$36)^(AC4-2021)) -> -19.36676195 | AD50: 475.3992745
B51: 収支累計 | D51: =+D49 -> -26.8 | E51: =+D51+E49 -> -99.88 | F51: -166.844625 | G51: -247.3618599 | H51: -263.4166315 | I51: -448.0631098 | J51: -846.2951465 | K51: -709.8924945 | L51: -327.0355337 | M51: 51.31807645 | N51: 277.8926005 | O51: 383.2282798 | P51: 487.5339064 | Q51: 568.5188598 | R51: 690.4165296 | S51: 798.7162926 | T51: 893.0190354 | U51: 971.9432736 | V51: 1034.890061 | W51: 1085.105878 | X51: 1122.877009 | Y51: 1150.459394 | Z51: 1169.734089 | AA51: =+Z51+AA49 -> 1182.84257 | AB51: =+AA51+AB49 -> 1190.959615 | AC51: =+AB51+AC49 -> 1125.376885
C52: ROR | D52: =IRR(D49:AB49) -> 0.1459504278 | E52: Onrward | F52: =IRR(F49:AB49) -> 0.194789659 | H52: =IRR(H49:AB49) -> 0.3125855545
B53: Equity 原油取り分（百万バレル） | K53: =IF(K7>0,(K43+K45)/K9,0) -> 2.819625 | L53: 5.63925 | M53: 5.41368 | N53: 3.849052372 | O53: 2.977403099 | P53: 2.454973164 | Q53: 2.740663558 | R53: 2.666337338 | S53: 2.326410575 | T53: 1.997222727 | U53: 1.660794416 | V53: 1.332403756 | W53: 1.077907015 | X53: 0.8423818558 | Y53: 0.6564253548 | Z53: 0.5103116779 | AA53: 0.404851495 | AB53: 0.3225676863 | AC53: 0 | AD53: =SUM(D53:AC53) -> 39.69226109
B54: プロジェクト会社の収支
C55: 原油販売収入（税前） | D55: =D47*Dashboard!$G$7*Dashboard!$J$7 -> 0 | E55: =E47*Dashboard!$G$7*Dashboard!$J$7 -> 0 | F55: =F47*Dashboard!$G$7*Dashboard!$J$7 -> 0 | G55: =G47*Dashboard!$G$7*Dashboard!$J$7 -> 0 | H55: =H47*Dashboard!$G$7*Dashboard!$J$7 -> 0 | I55: =I47*Dashboard!$G$7*Dashboard!$J$7 -> 0 | J55: =J47*Dashboard!$G$7*Dashboard!$J$7 -> 0 | K55: =K47*Dashboard!$G$7*Dashboard!$J$7 -> 147.2530466 | L55: =L47*Dashboard!$G$7*Dashboard!$J$7 -> 303.4075398 | M55: =M47*Dashboard!$G$7*Dashboard!$J$7 -> 300.0749114 | N55: =N47*Dashboard!$G$7*Dashboard!$J$7 -> 219.7976324 | O55: =O47*Dashboard!$G$7*Dashboard!$J$7 -> 175.1616027 | P55: =P47*Dashboard!$G$7*Dashboard!$J$7 -> 148.7921803 | Q55: =Q47*Dashboard!$G$7*Dashboard!$J$7 -> 171.1280369 | R55: =R47*Dashboard!$G$7*Dashboard!$J$7 -> 171.5191525 | S55: =S47*Dashboard!$G$7*Dashboard!$J$7 -> 154.1757166 | T55: =T47*Dashboard!$G$7*Dashboard!$J$7 -> 136.3603779 | U55: =U47*Dashboard!$G$7*Dashboard!$J$7 -> 116.8179706 | V55: =V47*Dashboard!$G$7*Dashboard!$J$7 -> 96.55209776 | W55: =W47*Dashboard!$G$7*Dashboard!$J$7 -> 80.47097227 | X55: =X47*Dashboard!$G$7*Dashboard!$J$7 -> 64.78866612 | Y55: =Y47*Dashboard!$G$7*Dashboard!$J$7 -> 52.01246862 | Z55: =Z47*Dashboard!$G$7*Dashboard!$J$7 -> 41.657165 | AA55: =AA47*Dashboard!$G$7*Dashboard!$J$7 -> 34.04724968 | AB55: =AB47*Dashboard!$G$7*Dashboard!$J$7 -> 27.94725978 | AC55: =AC47*Dashboard!$G$7*Dashboard!$J$7 -> 0 | AD55: =SUM(D55:AC55) -> 2441.964047
C56: ボーナス | D56: =D12*Dashboard!$G$7*Dashboard!$J$7 -> 6 | E56: =E12*Dashboard!$G$7*Dashboard!$J$7 -> 0 | F56: =F12*Dashboard!$G$7*Dashboard!$J$7 -> 0 | G56: =G12*Dashboard!$G$7*Dashboard!$J$7 -> 0 | H56: =H12*Dashboard!$G$7*Dashboard!$J$7 -> 1.8 | I56: =I12*Dashboard!$G$7*Dashboard!$J$7 -> 0 | J56: =J12*Dashboard!$G$7*Dashboard!$J$7 -> 0 | K56: =K12*Dashboard!$G$7*Dashboard!$J$7 -> 3 | L56: =L12*Dashboard!$G$7*Dashboard!$J$7 -> 0 | M56: =M12*Dashboard!$G$7*Dashboard!$J$7 -> 0 | N56: =N12*Dashboard!$G$7*Dashboard!$J$7 -> 0 | O56: =O12*Dashboard!$G$7*Dashboard!$J$7 -> 0 | P56: =P12*Dashboard!$G$7*Dashboard!$J$7 -> 0 | Q56: =Q12*Dashboard!$G$7*Dashboard!$J$7 -> 0 | R56: =R12*Dashboard!$G$7*Dashboard!$J$7 -> 0 | S56: =S12*Dashboard!$G$7*Dashboard!$J$7 -> 0 | T56: =T12*Dashboard!$G$7*Dashboard!$J$7 -> 0 | U56: =U12*Dashboard!$G$7*Dashboard!$J$7 -> 0 | V56: =V12*Dashboard!$G$7*Dashboard!$J$7 -> 0 | W56: =W12*Dashboard!$G$7*Dashboard!$J$7 -> 0 | X56: =X12*Dashboard!$G$7*Dashboard!$J$7 -> 0 | Y56: =Y12*Dashboard!$G$7*Dashboard!$J$7 -> 0 | Z56: =Z12*Dashboard!$G$7*Dashboard!$J$7 -> 0 | AA56: =AA12*Dashboard!$G$7*Dashboard!$J$7 -> 0 | AB56: =AB12*Dashboard!$G$7*Dashboard!$J$7 -> 0 | AC56: =AC12*Dashboard!$G$7*Dashboard!$J$7 -> 0 | AD56: 10.8
C57: 探鉱・開発費 | D57: =D28*Dashboard!$G$7*Dashboard!$J$7 -> 9.9 | E57: =E28*Dashboard!$G$7*Dashboard!$J$7 -> 43.6653 | F57: =F28*Dashboard!$G$7*Dashboard!$J$7 -> 39.9933345 | G57: =G28*Dashboard!$G$7*Dashboard!$J$7 -> 48.12211882 | H57: =H28*Dashboard!$G$7*Dashboard!$J$7 -> 7.641817564 | I57: =I28*Dashboard!$G$7*Dashboard!$J$7 -> 110.5939758 | J57: =J28*Dashboard!$G$7*Dashboard!$J$7 -> 238.7424022 | K57: =K28*Dashboard!$G$7*Dashboard!$J$7 -> 19.84402704 | L57: =L28*Dashboard!$G$7*Dashboard!$J$7 -> 0 | M57: =M28*Dashboard!$G$7*Dashboard!$J$7 -> 0 | N57: =N28*Dashboard!$G$7*Dashboard!$J$7 -> 0 | O57: =O28*Dashboard!$G$7*Dashboard!$J$7 -> 24.59557381 | P57: =P28*Dashboard!$G$7*Dashboard!$J$7 -> 0 | Q57: =Q28*Dashboard!$G$7*Dashboard!$J$7 -> 51.11482894 | R57: =R28*Dashboard!$G$7*Dashboard!$J$7 -> 0 | S57: =S28*Dashboard!$G$7*Dashboard!$J$7 -> 0 | T57: =T28*Dashboard!$G$7*Dashboard!$J$7 -> 0 | U57: =U28*Dashboard!$G$7*Dashboard!$J$7 -> 0 | V57: =V28*Dashboard!$G$7*Dashboard!$J$7 -> 0 | W57: =W28*Dashboard!$G$7*Dashboard!$J$7 -> 0 | X57: =X28*Dashboard!$G$7*Dashboard!$J$7 -> 0 | Y57: =Y28*Dashboard!$G$7*Dashboard!$J$7 -> 0 | Z57: =Z28*Dashboard!$G$7*Dashboard!$J$7 -> 0 | AA57: =AA28*Dashboard!$G$7*Dashboard!$J$7 -> 0 | AB57: =AB28*Dashboard!$G$7*Dashboard!$J$7 -> 0 | AC57: =AC28*Dashboard!$G$7*Dashboard!$J$7 -> 32.99449735 | AD57: 627.2078761
C58: 操業費 | D58: =D33*Dashboard!$G$7*Dashboard!$J$7 -> 0 | E58: =E33*Dashboard!$G$7*Dashboard!$J$7 -> 0 | F58: =F33*Dashboard!$G$7*Dashboard!$J$7 -> 0 | G58: =G33*Dashboard!$G$7*Dashboard!$J$7 -> 0 | H58: =H33*Dashboard!$G$7*Dashboard!$J$7 -> 0 | I58: =I33*Dashboard!$G$7*Dashboard!$J$7 -> 0 | J58: =J33*Dashboard!$G$7*Dashboard!$J$7 -> 0 | K58: =K33*Dashboard!$G$7*Dashboard!$J$7 -> 18.77857593 | L58: =L33*Dashboard!$G$7*Dashboard!$J$7 -> 24.88647422 | M58: =M33*Dashboard!$G$7*Dashboard!$J$7 -> 24.7866823 | N58: =N33*Dashboard!$G$7*Dashboard!$J$7 -> 24.23652662 | O58: =O33*Dashboard!$G$7*Dashboard!$J$7 -> 23.73915209 | P58: =P33*Dashboard!$G$7*Dashboard!$J$7 -> 23.19500596 | Q58: =Q33*Dashboard!$G$7*Dashboard!$J$7 -> 22.39438501 | R58: =R33*Dashboard!$G$7*Dashboard!$J$7 -> 24.79851656 | S58: =S33*Dashboard!$G$7*Dashboard!$J$7 -> 23.76591753 | T58: =T33*Dashboard!$G$7*Dashboard!$J$7 -> 22.74025168 | U58: =U33*Dashboard!$G$7*Dashboard!$J$7 -> 21.64519741 | V58: =V33*Dashboard!$G$7*Dashboard!$J$7 -> 20.54531024 | W58: =W33*Dashboard!$G$7*Dashboard!$J$7 -> 19.73428949 | X58: =X33*Dashboard!$G$7*Dashboard!$J$7 -> 18.97844103 | Y58: =Y33*Dashboard!$G$7*Dashboard!$J$7 -> 18.42146647 | Z58: =Z33*Dashboard!$G$7*Dashboard!$J$7 -> 18.02800741 | AA58: =AA33*Dashboard!$G$7*Dashboard!$J$7 -> 17.81005699 | AB58: =AB33*Dashboard!$G$7*Dashboard!$J$7 -> 17.6921852 | AC58: =AC33*Dashboard!$G$7*Dashboard!$J$7 -> 6.093970487 | AD58: 392.2704126
C59: 石油収入税（５０％） | D59: =D46*Dashboard!$G$7 -> 0 | E59: =E46*Dashboard!$G$7 -> 0 | F59: =F46*Dashboard!$G$7 -> 0 | G59: =G46*Dashboard!$G$7 -> 0 | H59: =H46*Dashboard!$G$7 -> 0 | I59: =I46*Dashboard!$G$7 -> 0 | J59: =J46*Dashboard!$G$7 -> 0 | K59: =K46*Dashboard!$G$7 -> 23.58908028 | L59: =L46*Dashboard!$G$7 -> 48.60412045 | M59: =M46*Dashboard!$G$7 -> 48.07025279 | N59: =N46*Dashboard!$G$7 -> 59.40749404 | O59: =O46*Dashboard!$G$7 -> 63.4134384 | P59: =P46*Dashboard!$G$7 -> 62.79858719 | Q59: =Q46*Dashboard!$G$7 -> 48.80941147 | R59: =R46*Dashboard!$G$7 -> 73.36031796 | S59: =S46*Dashboard!$G$7 -> 65.20489952 | T59: =T46*Dashboard!$G$7 -> 56.81006312 | U59: =U46*Dashboard!$G$7 -> 47.58638658 | V59: =V46*Dashboard!$G$7 -> 38.00339376 | W59: =W46*Dashboard!$G$7 -> 30.36834139 | X59: =X46*Dashboard!$G$7 -> 22.90511254 | Y59: =Y46*Dashboard!$G$7 -> 16.79550108 | Z59: =Z46*Dashboard!$G$7 -> 11.81457879 | AA59: =AA46*Dashboard!$G$7 -> 8.118596345 | AB59: =AB46*Dashboard!$G$7 -> 5.127537289 | AC59: =AC46*Dashboard!$G$7 -> 0 | AD59: 730.787113
C60: 支出合計 | D60: =SUM(D56:D59) -> 15.9 | E60: =SUM(E56:E59) -> 43.6653 | F60: 39.9933345 | G60: 48.12211882 | H60: 9.441817564 | I60: 110.5939758 | J60: 238.7424022 | K60: 65.21168324 | L60: 73.49059468 | M60: 72.8569351 | N60: 83.64402066 | O60: 111.7481643 | P60: 85.99359316 | Q60: 122.3186254 | R60: 98.15883452 | S60: 88.97081705 | T60: 79.5503148 | U60: 69.23158399 | V60: 58.548704 | W60: 50.10263088 | X60: 41.88355357 | Y60: 35.21696754 | Z60: 29.84258621 | AA60: 25.92865334 | AB60: 22.81972249 | AC60: 39.08846784 | AD60: 1761.065402
C61: 借入金返済原資 | D61: =IF(D55-D56-D58-D59>0,D55-D56-D58-D59,0) -> 0 | E61: =IF(E55-E56-E58-E59>0,E55-E56-E58-E59,0) -> 0 | F61: 0 | G61: 0 | H61: 0 | I61: 0 | J61: 0 | K61: 101.8853904 | L61: 229.9169451 | M61: 227.2179763 | N61: 136.1536118 | O61: 88.00901221 | P61: 62.79858719 | Q61: 99.92424041 | R61: 73.36031796 | S61: 65.20489952 | T61: 56.81006312 | U61: 47.58638658 | V61: 38.00339376 | W61: 30.36834139 | X61: 22.90511254 | Y61: 16.79550108 | Z61: 11.81457879 | AA61: 8.118596345 | AB61: 5.127537289 | AC61: 0
B62: 出資 | D62: =D60 -> 15.9 | E62: =E60 -> 43.6653 | F62: =F60 -> 39.9933345 | G62: =G60 -> 48.12211882 | AD62: =SUM(D62:AC62) -> 147.6807533
B63: 借入れ | C63: 元本 | D63: =IF(D60-D55-D62>0,D60-D55-D62,0) -> 0 | E63: =IF(E60-E55-E62>0,E60-E55-E62,0) -> 0 | F63: =IF(F60-F55-F62>0,F60-F55-F62,0) -> 0 | G63: =IF(G60-G55-G62>0,G60-G55-G62,0) -> 0 | H63: =H56+H57 -> 9.441817564 | I63: =I56+I57 -> 110.5939758 | J63: =J56+J57 -> 238.7424022 | K63: =K56+K57 -> 22.84402704 | L63: =L56+L57 -> 0 | M63: 0 | N63: 0 | O63: 24.59557381 | P63: 0 | Q63: 51.11482894 | R63: 0 | S63: 0 | T63: 0 | AD63: =SUM(D63:AC63) -> 457.3326255
C64: 金利 | D64: =(D63)*Dashboard!G34*Dashboard!J34 -> 0 | E64: =(D67+E63)*Dashboard!$G$34*Dashboard!$J$34 -> 0 | F64: =(E67+F63)*Dashboard!$G$34*Dashboard!$J$34 -> 0 | G64: =(F67+G63)*Dashboard!$G$34*Dashboard!$J$34 -> 0 | H64: =(G67+H63)*Dashboard!$G$34*Dashboard!$J$34 -> 0.4720908782 | I64: =(H67+I63)*Dashboard!$G$34*Dashboard!$J$34 -> 6.025394214 | J64: =(I67+J63)*Dashboard!$G$34*Dashboard!$J$34 -> 18.26378404 | K64: =(J67+K63)*Dashboard!$G$34*Dashboard!$J$34 -> 20.31917459 | L64: =(K67+L63)*Dashboard!$G$34*Dashboard!$J$34 -> 17.83513332 | M64: =(L67+M63)*Dashboard!$G$34*Dashboard!$J$34 -> 15.22688999 | N64: =(M67+N63)*Dashboard!$G$34*Dashboard!$J$34 -> 12.48823449 | O64: =(N67+O63)*Dashboard!$G$34*Dashboard!$J$34 -> 10.8424249 | P64: =(O67+P63)*Dashboard!$G$34*Dashboard!$J$34 -> 7.884546146 | Q64: =(P67+Q63)*Dashboard!$G$34*Dashboard!$J$34 -> 7.694585541 | R64: =(Q67+R63)*Dashboard!$G$34*Dashboard!$J$34 -> 4.579314818 | S64: =(R67+S63)*Dashboard!$G$34*Dashboard!$J$34 -> 1.308280559 | T64: =(S67+T63)*Dashboard!$G$34*Dashboard!$J$34 -> 0 | AD64: =SUM(D64:AC64) -> 122.9398535
B65: 資金返済（金利含む7年均等返済） | K65: =ROUND(SUM(H63:K64)*E66,-1) -> 70 | L65: =IF(K67+L63+L64>$K$65,IF(L61>$K$65,$K$65,L61),IF(L61>K67+L63+L64,K67+L63+L64,L61)) -> 70 | M65: =IF(L67+M63+M64>$K$65,IF(M61>$K$65,$K$65,M61),IF(M61>L67+M63+M64,L67+M63+M64,M61)) -> 70 | N65: 70 | O65: 70 | P65: 62.79858719 | Q65: 70 | R65: 70 | S65: 27.47389174 | T65: 0 | AD65: =SUM(D65:AC65) -> 580.2724789
C66: 資本回収係数 | E66: =Dashboard!G34*Dashboard!J34/(1-(1+Dashboard!G34*Dashboard!J34)^(-1*Dashboard!G35)) -> 0.1728198184 | O66: Debt Service Coverage Ratio | R66: =SUM(K61:R61)/SUM(K65:R65) -> 1.843829027
B67: 年末借入残（金利含む） | H67: =G67+H63+H64-H65 -> 9.913908443 | I67: =H67+I63+I64-I65 -> 126.5332785 | J67: =I67+J63+J64-J65 -> 383.5394648 | K67: =J67+K63+K64-K65 -> 356.7026664 | L67: =K67+L63+L64-L65 -> 304.5377997 | M67: 249.7646897 | N67: 192.2529242 | O67: 157.6909229 | P67: 102.7768819 | Q67: 91.58629636 | R67: 26.16561118 | S67: 0 | T67: 0
C68: Debt/Equity Ratio | H68: =H67/$AD$62 -> 0.06713067356 | I68: 0.8568027698 | J68: 2.59708497 | K68: 2.415363264 | L68: 2.062136012 | M68: 1.691247398 | N68: 1.301814352
B69: 本社管理費 | D69: =D48 -> 0.3 | E69: =E48 -> 0.3045 | F69: 0.3090675 | G69: 0.3137035125 | H69: 0.3184090652 | I69: 0.3231852012 | J69: 0.3280329792 | K69: 0.3329534739 | L69: 0.337947776 | M69: 0.3430169926 | N69: 0.3481622475 | O69: 0.3533846812 | P69: 0.3586854514 | Q69: 0.3640657332 | R69: 0.3695267192 | S69: 0.37506962 | T69: 0.3806956643 | U69: 0.3864060993 | V69: 0.3922021907 | W69: 0.3980852236 | X69: 0.404056502 | Y69: 0.4101173495 | Z69: 0.4162691097 | AA69: 0.4225131464 | AB69: 0.4288508436 | AC69: 0.4352836062 | AD69: =SUM(D69:AC69) -> 9.454190688
B70: プロジェクト会社のキャッシュフロー
C71: 借入金なし | D71: =D55-(D60+D69) -> -16.2 | E71: =E55-(E60+E69) -> -43.9698 | F71: -40.302402 | G71: -48.43582233 | H71: -9.76022663 | I71: -110.917161 | J71: -239.0704352 | K71: 81.70840985 | L71: 229.5789974 | M71: 226.8749593 | N71: 135.8054495 | O71: 63.06005372 | P71: 62.43990174 | Q71: 48.44534573 | R71: 72.99079124 | S71: 64.8298299 | T71: 56.42936746 | U71: 47.19998048 | V71: 37.61119157 | W71: 29.97025616 | X71: 22.50105604 | Y71: 16.38538373 | Z71: 11.39830968 | AA71: 7.696083199 | AB71: 4.698686446 | AC71: -39.52375145 | AD71: =SUM(D71:AC71) -> 671.4444545
C72: 借入金あり | D72: =D55+D63-D60-D65-D69 -> -16.2 | E72: =E55+E63-E60-E65-E69 -> -43.9698 | F72: -40.302402 | G72: -48.43582233 | H72: -0.3184090652 | I72: -0.3231852012 | J72: -0.3280329792 | K72: 34.55243689 | L72: 159.5789974 | M72: 156.8749593 | N72: 65.80544954 | O72: 17.65562753 | P72: -0.3586854514 | Q72: 29.56017468 | R72: 2.990791236 | S72: 37.35593817 | T72: 56.42936746 | U72: 47.19998048 | V72: 37.61119157 | W72: 29.97025616 | X72: 22.50105604 | Y72: 16.38538373 | Z72: 11.39830968 | AA72: 7.696083199 | AB72: 4.698686446 | AC72: -39.52375145 | AD72: =SUM(D72:AC72) -> 548.504601
C73: 収支累計 | D73: =SUM($D$72:D72) -> -16.2 | E73: =SUM($D$72:E72) -> -60.1698 | F73: =SUM($D$72:F72) -> -100.472202 | G73: =SUM($D$72:G72) -> -148.9080243 | H73: =SUM($D$72:H72) -> -149.2264334 | I73: =SUM($D$72:I72) -> -149.5496186 | J73: =SUM($D$72:J72) -> -149.8776516 | K73: =SUM($D$72:K72) -> -115.3252147 | L73: =SUM($D$72:L72) -> 44.25378267 | M73: =SUM($D$72:M72) -> 201.128742 | N73: =SUM($D$72:N72) -> 266.9341915 | O73: =SUM($D$72:O72) -> 284.589819 | P73: =SUM($D$72:P72) -> 284.2311336 | Q73: =SUM($D$72:Q72) -> 313.7913083 | R73: =SUM($D$72:R72) -> 316.7820995 | S73: =SUM($D$72:S72) -> 354.1380377 | T73: =SUM($D$72:T72) -> 410.5674051 | U73: =SUM($D$72:U72) -> 457.7673856 | V73: =SUM($D$72:V72) -> 495.3785772 | W73: =SUM($D$72:W72) -> 525.3488333 | X73: =SUM($D$72:X72) -> 547.8498894 | Y73: =SUM($D$72:Y72) -> 564.2352731 | Z73: =SUM($D$72:Z72) -> 575.6335828 | AA73: =SUM($D$72:AA72) -> 583.329666 | AB73: =SUM($D$72:AB72) -> 588.0283524 | AC73: =SUM($D$72:AC72) -> 548.504601
B74: 現在価値（割引率５％） | D74: =D72/((1+Dashboard!$G$36*Dashboard!$J$36)^(D4-2021)) -> -16.2 | E74: =E72/((1+Dashboard!$G$36*Dashboard!$J$36)^(E4-2021)) -> -41.876 | F74: =F72/((1+Dashboard!$G$36*Dashboard!$J$36)^(F4-2021)) -> -36.55546667 | G74: =G72/((1+Dashboard!$G$36*Dashboard!$J$36)^(G4-2021)) -> -41.84068444 | H74: =H72/((1+Dashboard!$G$36*Dashboard!$J$36)^(H4-2021)) -> -0.2619559259 | I74: =I72/((1+Dashboard!$G$36*Dashboard!$J$36)^(I4-2021)) -> -0.2532240617 | J74: =J72/((1+Dashboard!$G$36*Dashboard!$J$36)^(J4-2021)) -> -0.2447832597 | K74: =K72/((1+Dashboard!$G$36*Dashboard!$J$36)^(K4-2021)) -> 24.55577181 | L74: =L72/((1+Dashboard!$G$36*Dashboard!$J$36)^(L4-2021)) -> 108.0093468 | M74: =M72/((1+Dashboard!$G$36*Dashboard!$J$36)^(M4-2021)) -> 101.1229975 | N74: =N72/((1+Dashboard!$G$36*Dashboard!$J$36)^(N4-2021)) -> 40.39883763 | O74: =O72/((1+Dashboard!$G$36*Dashboard!$J$36)^(O4-2021)) -> 10.32287975 | P74: =P72/((1+Dashboard!$G$36*Dashboard!$J$36)^(P4-2021)) -> -0.1997294807 | Q74: =Q72/((1+Dashboard!$G$36*Dashboard!$J$36)^(Q4-2021)) -> 15.67639176 | R74: =R72/((1+Dashboard!$G$36*Dashboard!$J$36)^(R4-2021)) -> 1.510552808 | S74: =S72/((1+Dashboard!$G$36*Dashboard!$J$36)^(S4-2021)) -> 17.96884497 | T74: =T72/((1+Dashboard!$G$36*Dashboard!$J$36)^(T4-2021)) -> 25.85094341 | U74: =U72/((1+Dashboard!$G$36*Dashboard!$J$36)^(U4-2021)) -> 20.59319514 | V74: =V72/((1+Dashboard!$G$36*Dashboard!$J$36)^(V4-2021)) -> 15.62822695 | W74: =W72/((1+Dashboard!$G$36*Dashboard!$J$36)^(W4-2021)) -> 11.86024806 | X74: =X72/((1+Dashboard!$G$36*Dashboard!$J$36)^(X4-2021)) -> 8.480411376 | Y74: =Y72/((1+Dashboard!$G$36*Dashboard!$J$36)^(Y4-2021)) -> 5.88140838 | Z74: =Z72/((1+Dashboard!$G$36*Dashboard!$J$36)^(Z4-2021)) -> 3.896510696 | AA74: =AA72/((1+Dashboard!$G$36*Dashboard!$J$36)^(AA4-2021)) -> 2.505623856 | AB74: =AB72/((1+Dashboard!$G$36*Dashboard!$J$36)^(AB4-2021)) -> 1.456911887 | AC74: =AC72/((1+Dashboard!$G$36*Dashboard!$J$36)^(AC4-2021)) -> -11.67147335 | AD74: =SUM(D74:AC74) -> 266.6157856
C75: ROR | D75: =IRR(D71:AB71) -> 0.1452773247 | G75: 開発以降 | H75: =IRR(H71:AB71) -> 0.3116967931
C76: FIRR | D76: =IRR(D72:AB72) -> 0.1931862379 | H76: =IRR(H72:AB72) -> 4.613517622 | K76: 金利/収益比率 | M76: =AD64/(AD64+AD72) -> 0.1830975782
B78: (注）本書の表８．２のうち、原油販売収入を税前に変更し、支出に石油収入税を加えてあります。

Sheet グラフ
B2: プロジェクト収支：廃山費を含まず。 | AD2: 採算指標一覧（廃山費用を含む）
B3: 探鉱期間→ | C3: 探鉱期間→ | G3: 開発期間→ | J3: 生産期間→
C4: 2021 | D4: =C4+1 -> 2022 | E4: =D4+1 -> 2023 | F4: 2024 | G4: 2025 | H4: 2026 | I4: 2027 | J4: 2028 | K4: 2029 | L4: 2030 | M4: 2031 | N4: 2032 | O4: 2033 | P4: 2034 | Q4: 2035 | R4: 2036 | S4: 2037 | T4: 2038 | U4: 2039 | V4: 2040 | W4: 2041 | X4: 2042 | Y4: 2043 | Z4: 2044 | AA4: =Z4+1 -> 2045 | AB4: =AA4+1 -> 2046 | AE4: 科 目 | AF4: 合計 | AG4: 備 考
AD5: （プロジェクト全体の採算） | AF5: 百万ドル
B6: 売上高（税前） | C6: =プロジェクト収支!E25 -> 0 | D6: =プロジェクト収支!F25 -> 0 | E6: =プロジェクト収支!G25 -> 0 | F6: =プロジェクト収支!H25 -> 0 | G6: =プロジェクト収支!I25 -> 0 | H6: =プロジェクト収支!J25 -> 0 | I6: =プロジェクト収支!K25 -> 0 | J6: =プロジェクト収支!L25 -> 245.4217443 | K6: =プロジェクト収支!M25 -> 505.679233 | L6: =プロジェクト収支!N25 -> 500.1248523 | M6: =プロジェクト収支!O25 -> 366.3293874 | N6: =プロジェクト収支!P25 -> 291.9360045 | O6: =プロジェクト収支!Q25 -> 247.9869672 | P6: =プロジェクト収支!R25 -> 285.2133948 | Q6: =プロジェクト収支!S25 -> 285.8652541 | R6: =プロジェクト収支!T25 -> 256.9595276 | S6: =プロジェクト収支!U25 -> 227.2672965 | T6: =プロジェクト収支!V25 -> 194.6966176 | U6: =プロジェクト収支!W25 -> 160.9201629 | V6: =プロジェクト収支!X25 -> 134.1182871 | W6: =プロジェクト収支!Y25 -> 107.9811102 | X6: =プロジェクト収支!Z25 -> 86.6874477 | Y6: =プロジェクト収支!AA25 -> 69.42860833 | Z6: =プロジェクト収支!AB25 -> 56.74541613 | AA6: =プロジェクト収支!AC25 -> 46.5787663 | AB6: =プロジェクト収支!AD25 -> 35.67862638 | AE6: 生産総額 | AF6: =生産と生産額!AF38 -> 10837.59983 | AG6: プロジェクト期間中の生産総額（産油国取り分を含む）
B7: ＮＣＦ | C7: =プロジェクト収支!E28 -> -26.8 | D7: =プロジェクト収支!F28 -> -73.08 | E7: =プロジェクト収支!G28 -> -66.964625 | F7: =プロジェクト収支!H28 -> -80.51723487 | G7: =プロジェクト収支!I28 -> -16.05477167 | H7: =プロジェクト収支!J28 -> -184.6464783 | I7: =プロジェクト収支!K28 -> -398.2320367 | J7: =プロジェクト収支!L28 -> 136.4026521 | K7: =プロジェクト収支!M28 -> 382.8569608 | L7: =プロジェクト収支!N28 -> 378.3536102 | M7: =プロジェクト収支!O28 -> 226.5745241 | N7: =プロジェクト収支!P28 -> 105.3356793 | O7: =プロジェクト収支!Q28 -> 104.3056265 | P7: =プロジェクト収支!R28 -> 80.98495338 | Q7: =プロジェクト収支!S28 -> 121.8976699 | R7: =プロジェクト収支!T28 -> 108.2997629 | S7: =プロジェクト収支!U28 -> 94.30274287 | T7: =プロジェクト収支!V28 -> 78.92423819 | U7: =プロジェクト収支!W28 -> 62.94678741 | V7: =プロジェクト収支!X28 -> 50.21581709 | W7: =プロジェクト収支!Y28 -> 37.77113107 | X7: =プロジェクト収支!Z28 -> 27.58238444 | Y7: =プロジェクト収支!AA28 -> 19.27469555 | Z7: =プロジェクト収支!AB28 -> 13.10848076 | AA7: =プロジェクト収支!AC28 -> 8.117044639 | AB7: =プロジェクト収支!AD28 -> 0.05448567795 | AE7: 売上総額 | AF7: =プロジェクト収支!AF25 -> 4069.940078 | AG7: プロジェクト会社の売上総額
B8: 操業費 | C8: =プロジェクト収支!E17 -> 0 | D8: =プロジェクト収支!F17 -> 0 | E8: =プロジェクト収支!G17 -> 0 | F8: =プロジェクト収支!H17 -> 0 | G8: =プロジェクト収支!I17 -> 0 | H8: =プロジェクト収支!J17 -> 0 | I8: =プロジェクト収支!K17 -> 0 | J8: =プロジェクト収支!L17 -> 31.29762654 | K8: =プロジェクト収支!M17 -> 41.47745704 | L8: =プロジェクト収支!N17 -> 41.31113717 | M8: =プロジェクト収支!O17 -> 40.39421103 | N8: =プロジェクト収支!P17 -> 39.56525348 | O8: =プロジェクト収支!Q17 -> 38.65834327 | P8: =プロジェクト収支!R17 -> 37.32397502 | Q8: =プロジェクト収支!S17 -> 41.33086094 | R8: =プロジェクト収支!T17 -> 39.60986255 | S8: =プロジェクト収支!U17 -> 37.90041947 | T8: =プロジェクト収支!V17 -> 36.07532902 | U8: =プロジェクト収支!W17 -> 34.24218373 | V8: =プロジェクト収支!X17 -> 32.89048248 | W8: =プロジェクト収支!Y17 -> 31.63073505 | X8: =プロジェクト収支!Z17 -> 30.70244411 | Y8: =プロジェクト収支!AA17 -> 30.04667902 | Z8: =プロジェクト収支!AB17 -> 29.68342832 | AA8: =プロジェクト収支!AC17 -> 29.48697534 | AB8: =プロジェクト収支!AD17 -> 29.47334899 | AE8: 支出総額 | AF8: =AF9+AF13 -> 1726.584672 | AG8: 直接事業費＋本社管理費
B9: Discounted NCF @5% | C9: =プロジェクト収支!E30 -> -26.8 | D9: =プロジェクト収支!F30 -> -69.6 | E9: =プロジェクト収支!G30 -> -60.73888889 | F9: =プロジェクト収支!H30 -> -69.55381481 | G9: =プロジェクト収支!I30 -> -13.20830039 | H9: =プロジェクト収支!J30 -> -144.6753473 | I9: =プロジェクト収支!K30 -> -297.1668772 | J9: =プロジェクト収支!L30 -> 96.9388182 | K9: =プロジェクト収支!M30 -> 259.1326611 | L9: =プロジェクト収支!N30 -> 243.8901106 | M9: =プロジェクト収支!O30 -> 139.0971032 | N9: =プロジェクト収支!P30 -> 61.5875901 | O9: =プロジェクト収支!Q30 -> 58.08127578 | P9: =プロジェクト収支!R30 -> 42.94804986 | Q9: =プロジェクト収支!S30 -> 61.5666066 | R9: =プロジェクト収支!T30 -> 52.09403768 | S9: =プロジェクト収支!U30 -> 43.20117307 | T9: =プロジェクト収支!V30 -> 34.4343837 | U9: =プロジェクト収支!W30 -> 26.15569033 | V9: =プロジェクト収支!X30 -> 19.872104 | W9: =プロジェクト収支!Y30 -> 14.23554206 | X9: =プロジェクト収支!Z30 -> 9.900486295 | Y9: =プロジェクト収支!AA30 -> 6.589052188 | Z9: =プロジェクト収支!AB30 -> 4.267745199 | AA9: =プロジェクト収支!AC30 -> 2.516835069 | AB9: =プロジェクト収支!AD30 -> 0.01608977172 | AE9: 直接事業費 | AF9: =AF10+AF11+AF12 -> 1717.130481 | AG9: 探鉱費＋開発費＋生産費
B10: Production（千BD) | C10: 0 | D10: 0 | E10: 0 | F10: 0 | G10: 0 | H10: 0 | I10: 0 | J10: =生産と生産額!L22 -> 15 | K10: =生産と生産額!M22 -> 30 | L10: =生産と生産額!N22 -> 28.8 | M10: =生産と生産額!O22 -> 26.496 | N10: =生産と生産額!P22 -> 24.37632 | O10: =生産と生産額!Q22 -> 22.192608 | P10: =生産と生産額!R22 -> 19.4477328 | Q10: =生産と生産額!S22 -> 24.31745288 | R10: =生産と生産額!T22 -> 21.05917895 | S10: =生産と生産額!U22 -> 17.90030211 | T10: =生産と生産額!V22 -> 14.66650879 | U10: =生産と生産額!W22 -> 11.50622346 | V10: =生産と生産額!X22 -> 9.060058187 | W10: =生産と生産額!Y22 -> 6.795043641 | X10: =生産と生産額!Z22 -> 5.009469081 | Y10: =生産と生産額!AA22 -> 3.609518608 | Z10: =生産と生産額!AB22 -> 2.603830713 | AA10: =生産と生産額!AC22 -> 1.822681499 | AB10: =生産と生産額!AD22 -> 1.27587705 | AE10: 探鉱費 | AF10: =作業と支出!AF37+作業と支出!E30 -> 246.1345889 | AG10: サインボーナスを含む
B11: Equity oil（千BD) | C11: 0 | D11: 0 | E11: 0 | F11: 0 | G11: 0 | H11: 0 | I11: 0 | J11: =プロジェクト収支!L35*1000/365 -> 7.725 | K11: =プロジェクト収支!M35*1000/365 -> 15.45 | L11: =プロジェクト収支!N35*1000/365 -> 14.832 | M11: =プロジェクト収支!O35*1000/365 -> 10.54534896 | N11: =プロジェクト収支!P35*1000/365 -> 8.157268763 | O11: =プロジェクト収支!Q35*1000/365 -> 6.725953874 | P11: =プロジェクト収支!R35*1000/365 -> 7.508667281 | Q11: =プロジェクト収支!S35*1000/365 -> 7.305033802 | R11: =プロジェクト収支!T35*1000/365 -> 6.373727603 | S11: =プロジェクト収支!U35*1000/365 -> 5.471843089 | T11: =プロジェクト収支!V35*1000/365 -> 4.550121687 | U11: =プロジェクト収支!W35*1000/365 -> 3.650421249 | V11: =プロジェクト収支!X35*1000/365 -> 2.953169904 | W11: =プロジェクト収支!Y35*1000/365 -> 2.307895495 | X11: =プロジェクト収支!Z35*1000/365 -> 1.798425629 | Y11: =プロジェクト収支!AA35*1000/365 -> 1.398114186 | Z11: =プロジェクト収支!AB35*1000/365 -> 1.109182178 | AA11: =プロジェクト収支!AC35*1000/365 -> 0.8837470858 | AB11: =プロジェクト収支!AD35*1000/365 -> 0.6570766805 | AE11: 開発費 | AF11: =作業と支出!AF60+作業と支出!I30 -> 812.2118713 | AG11: 発見ボーナスを含む。廃山費用（＝施設撤去費＋廃坑費、将来価格＝5,500万ドル）
AE12: 生産費 | AF12: =作業と支出!AF73+作業と支出!L30 -> 658.784021 | AG12: 生産開始ボーナスを含む
B13: （注）本書の図８．３では税引き後売上高をリンクしていますので、税前売上高に修正します。 | AE13: 本社管理費 | AF13: =プロジェクト収支!AF26 -> 9.454190688 | AG13: プロジェクト検討の段階ではカウントしないことが多い。
AE14: NCF (Net Cash Flow) | AF14: =プロジェクト収支!AF28 -> 1125.376885 | AG14: 利益総額（名目値）
AE15: NPV（正味現在価値：割引き率＠５％) | AF15: =プロジェクト収支!AF30 -> 475.3992745 | AG15: 事業着手以降のＮＣＦを年利５％で割り引いたプロジェクトの正味現在価値
AE16: ROR（割引現金収支利益率） | AF16: =プロジェクト収支!E33 -> 0.1459504278 | AG16: 期待投資利回り：この率で割り引いたＮＰＶはゼロとなる
AE17: Payout（投資回収期間） | AF17: １０年 | AG17: 事業開始以降の収支累計が黒字になるまでの期間（Cash Flow Chartより手計算）
AE18: Equity 原油取得量（百万バーレル） | AF18: =プロジェクト収支!AF35 -> 39.93209408 | AG18: コスト回収原油＋利益原油
AD19: （６０％出資会社の採算）
AE20: 出資総額 | AF20: ='自社収支 '!AF21 -> 147.6807533 | AG20: 探鉱期間に発生する費用（本社管理費は除く）
AE21: 借入総額 | AF21: ='自社収支 '!AF24 -> 580.2724789 | AG21: 「開発投資＋金利」に充当
AE22: NCF (Net Cash Flow) | AF22: ='自社収支 '!AF33 -> 548.504601 | AG22: 「借入～返済」の資金収支は含まない
AE23: NPV（正味現在価値：割引き率＠５％) | AF23: ='自社収支 '!AF32 -> 283.130634
AE24: ROR（割引現金収支利益率） | AF24: ='自社収支 '!E38 -> 0.1452773247 | AG24: 上記のシェア100%の場合に比べ、本社管理費の負担率がやや上がる。
AE25: FIRR（自己資本利益率） | AF25: ='自社収支 '!E40 -> 0.1931862379 | AG25: 自己資本投資に対する利益率
AE26: NPV（正味現在価値：割引き率＠５％) | AF26: ='自社収支 '!AF35 -> 266.6157856 | AG26: 借り入れを行うケース
AE27: Payout（投資回収期間） | AF27: 9年/15年 | AG27: 自社投資は9年目で回収するが、借入金返済完了は15年目
AD29: （注）本書のの表８．３では「生産総額」を「収入総額」と表記していますので、修正し、売上総額を追加します。
